Workbook

Sheet Calculation
H3: With Holiday Adjustment? | I3: YES | J3: standard: YES
D5: IMSM Margin Calculator Example V 3.3.1
D6: valid from: 2025-12-08
A10: Date | B10: Exposure | C10: T0Exposure | D10: ="Exposure > " & minIMSM & " EUR" -> Exposure > 0 EUR | E10: number of Exposures > 0 | F10: Weighted Mean | G10: Weighted Standard Deviation (SD) | H10: Mean + alpha * SD | I10: Statistical Component | J10: beta * Max (T-30 to T) | K10: Scaling Factor (Holiday Adjustment) | L10: IMSM Requirement
A11: =IF($A$12="","",OFFSET(Calendar!$A$1,VLOOKUP(Calculation!$A$12,Calendar!$A$2:$C$1825,2,FALSE)+1,0)) -> 2025-10-02 | E11: =COUNTIF($D13:$D262,">0") -> 214 | F11: =IF($A11="","",IF(E11=0,0,SUMPRODUCT($D13:$D262,Parameter!$B$14:$B$263)/E11)) -> 371253.9611 | G11: =IF($A11="","",IF(E11=0,0,SQRT(SUMPRODUCT(IF($D13:$D262>0,(($D13:$D262)-$F11)^2,0),Parameter!$B$14:$B$263)/E11))) -> 509196.9179 | H11: =IF($A11="","",F11+alpha*G11) -> 2306202.249 | I11: =IF($A11="","",IF($D13>0,$H11,MIN($H11,I12))) -> 2306202.249 | J11: =IF($A11="","",beta*MAX(0,C12,INDIRECT("B" & ROW(A13) & ":B" & ROW(A13) + window_size_max-2))) -> 4444297.6 | K11: =IF($A12="","",IF($I$3="YES",VLOOKUP(OFFSET(A12,M11,0),Calendar!$A$2:$C$10000,3,FALSE),1)) -> 1 | L11: =IF(A12="","",IF(VLOOKUP(A11,Calendar!A:E,5,FALSE)=0,"",CEILING(K11*CEILING(MAX(OFFSET(J11,M11,0),OFFSET(I11,M11,0)),roundto),roundto)+add_margin)) -> 4500000 | M11: =IF(INDIRECT("Calendar!E"&MATCH($A11,Calendar!A:A,0)-1),0,IF(INDIRECT("Calendar!E"&MATCH($A11,Calendar!A:A,0)-2),1,2)) -> 0
A12: 2025-10-01 | B12: 323440 | C12: 240947 | D12: =IF(B12>minIMSM,B12,minIMSM) -> 323440 | E12: =COUNTIF($D14:$D263,">0") -> 214 | F12: =IF($A12="","",IF(E12=0,0,SUMPRODUCT($D14:$D263,Parameter!$B$14:$B$263)/E12)) -> 372841.224 | G12: =IF($A12="","",IF(E12=0,0,SQRT(SUMPRODUCT(IF($D14:$D263>0,(($D14:$D263)-$F12)^2,0),Parameter!$B$14:$B$263)/E12))) -> 511177.3797 | H12: 2315315.267 | I12: =IF($A12="","",IF($D14>0,$H12,MIN($H12,I13))) -> 2315315.267 | J12: 4444297.6 | K12: =IF($A13="","",IF($I$3="YES",VLOOKUP(OFFSET(A13,M12,0),Calendar!$A$2:$C$10000,3,FALSE),1)) -> 1 | L12: =IF(A13="","",IF(VLOOKUP(A12,Calendar!A:E,5,FALSE)=0,"",CEILING(K12*CEILING(MAX(OFFSET(J12,M12,0),OFFSET(I12,M12,0)),roundto),roundto)+add_margin)) -> 4500000 | M12: =IF(INDIRECT("Calendar!E"&MATCH($A12,Calendar!A:A,0)-1),0,IF(INDIRECT("Calendar!E"&MATCH($A12,Calendar!A:A,0)-2),1,2)) -> 0
A13: 2025-09-30 | B13: 566967 | C13: 326020 | D13: 566967 | E13: 214 | F13: =IF($A13="","",IF(E13=0,0,SUMPRODUCT($D15:$D264,Parameter!$B$14:$B$263)/E13)) -> 375436.6365 | G13: =IF($A13="","",IF(E13=0,0,SQRT(SUMPRODUCT(IF($D15:$D264>0,(($D15:$D264)-$F13)^2,0),Parameter!$B$14:$B$263)/E13))) -> 512769.2826 | H13: 2323959.91 | I13: 2323959.91 | J13: 4444297.6 | K13: =IF($A14="","",IF($I$3="YES",VLOOKUP(OFFSET(A14,M13,0),Calendar!$A$2:$C$10000,3,FALSE),1)) -> 1 | L13: =IF(A14="","",IF(VLOOKUP(A13,Calendar!A:E,5,FALSE)=0,"",CEILING(K13*CEILING(MAX(OFFSET(J13,M13,0),OFFSET(I13,M13,0)),roundto),roundto)+add_margin)) -> 4500000 | M13: =IF(INDIRECT("Calendar!E"&MATCH($A13,Calendar!A:A,0)-1),0,IF(INDIRECT("Calendar!E"&MATCH($A13,Calendar!A:A,0)-2),1,2)) -> 0
A14: 2025-09-29 | B14: 340789 | C14: 56745 | D14: 340789 | E14: 215 | F14: =IF($A14="","",IF(E14=0,0,SUMPRODUCT($D16:$D265,Parameter!$B$14:$B$263)/E14)) -> 377600.1138 | G14: =IF($A14="","",IF(E14=0,0,SQRT(SUMPRODUCT(IF($D16:$D265>0,(($D16:$D265)-$F14)^2,0),Parameter!$B$14:$B$263)/E14))) -> 513167.4836 | H14: 2327636.551 | I14: 2327636.551 | J14: 4444297.6 | K14: =IF($A15="","",IF($I$3="YES",VLOOKUP(OFFSET(A15,M14,0),Calendar!$A$2:$C$10000,3,FALSE),1)) -> 1 | L14: =IF(A15="","",IF(VLOOKUP(A14,Calendar!A:E,5,FALSE)=0,"",CEILING(K14*CEILING(MAX(OFFSET(J14,M14,0),OFFSET(I14,M14,0)),roundto),roundto)+add_margin)) -> 4500000 | M14: =IF(INDIRECT("Calendar!E"&MATCH($A14,Calendar!A:A,0)-1),0,IF(INDIRECT("Calendar!E"&MATCH($A14,Calendar!A:A,0)-2),1,2)) -> 0
A15: 2025-09-26 | B15: -3109 | C15: 40545 | D15: 0 | E15: 215 | F15: =IF($A15="","",IF(E15=0,0,SUMPRODUCT($D17:$D266,Parameter!$B$14:$B$263)/E15)) -> 376836.615 | G15: =IF($A15="","",IF(E15=0,0,SQRT(SUMPRODUCT(IF($D17:$D266>0,(($D17:$D266)-$F15)^2,0),Parameter!$B$14:$B$263)/E15))) -> 514263.6251 | H15: 2331038.39 | I15: 2331038.39 | J15: 4444297.6 | K15: =IF($A16="","",IF($I$3="YES",VLOOKUP(OFFSET(A16,M15,0),Calendar!$A$2:$C$10000,3,FALSE),1)) -> 1 | L15: =IF(A16="","",IF(VLOOKUP(A15,Calendar!A:E,5,FALSE)=0,"",CEILING(K15*CEILING(MAX(OFFSET(J15,M15,0),OFFSET(I15,M15,0)),roundto),roundto)+add_margin)) -> 4500000 | M15: =IF(INDIRECT("Calendar!E"&MATCH($A15,Calendar!A:A,0)-1),0,IF(INDIRECT("Calendar!E"&MATCH($A15,Calendar!A:A,0)-2),1,2)) -> 0
A16: 2025-09-25 | B16: 1015000 | C16: 1029335 | D16: 1015000 | E16: 215 | F16: =IF($A16="","",IF(E16=0,0,SUMPRODUCT($D18:$D267,Parameter!$B$14:$B$263)/E16)) -> 375527.0628 | G16: =IF($A16="","",IF(E16=0,0,SQRT(SUMPRODUCT(IF($D18:$D267>0,(($D18:$D267)-$F16)^2,0),Parameter!$B$14:$B$263)/E16))) -> 514946.7111 | H16: 2332324.565 | I16: 2332324.565 | J16: 4444297.6 | K16: =IF($A17="","",IF($I$3="YES",VLOOKUP(OFFSET(A17,M16,0),Calendar!$A$2:$C$10000,3,FALSE),1)) -> 1 | L16: =IF(A17="","",IF(VLOOKUP(A16,Calendar!A:E,5,FALSE)=0,"",CEILING(K16*CEILING(MAX(OFFSET(J16,M16,0),OFFSET(I16,M16,0)),roundto),roundto)+add_margin)) -> 4500000 | M16: =IF(INDIRECT("Calendar!E"&MATCH($A16,Calendar!A:A,0)-1),0,IF(INDIRECT("Calendar!E"&MATCH($A16,Calendar!A:A,0)-2),1,2)) -> 0
A17: 2025-09-24 | B17: 1121777 | C17: 252812 | D17: 1121777 | E17: 215 | F17: =IF($A17="","",IF(E17=0,0,SUMPRODUCT($D19:$D268,Parameter!$B$14:$B$263)/E17)) -> 369497.6606 | G17: =IF($A17="","",IF(E17=0,0,SQRT(SUMPRODUCT(IF($D19:$D268>0,(($D19:$D268)-$F17)^2,0),Parameter!$B$14:$B$263)/E17))) -> 505663.0323 | H17: 2291017.183 | I17: 2291017.183 | J17: 4444297.6 | K17: =IF($A18="","",IF($I$3="YES",VLOOKUP(OFFSET(A18,M17,0),Calendar!$A$2:$C$10000,3,FALSE),1)) -> 1 | L17: =IF(A18="","",IF(VLOOKUP(A17,Calendar!A:E,5,FALSE)=0,"",CEILING(K17*CEILING(MAX(OFFSET(J17,M17,0),OFFSET(I17,M17,0)),roundto),roundto)+add_margin)) -> 4500000 | M17: =IF(INDIRECT("Calendar!E"&MATCH($A17,Calendar!A:A,0)-1),0,IF(INDIRECT("Calendar!E"&MATCH($A17,Calendar!A:A,0)-2),1,2)) -> 0
A18: 2025-09-23 | B18: 2167612 | C18: 2048958 | D18: 2167612 | E18: 215 | F18: =IF($A18="","",IF(E18=0,0,SUMPRODUCT($D20:$D269,Parameter!$B$14:$B$263)/E18)) -> 360566.5818 | G18: =IF($A18="","",IF(E18=0,0,SQRT(SUMPRODUCT(IF($D20:$D269>0,(($D20:$D269)-$F18)^2,0),Parameter!$B$14:$B$263)/E18))) -> 485081.1712 | H18: 2203875.032 | I18: 2203875.032 | J18: 2520105.6 | K18: =IF($A19="","",IF($I$3="YES",VLOOKUP(OFFSET(A19,M18,0),Calendar!$A$2:$C$10000,3,FALSE),1)) -> 1 | L18: =IF(A19="","",IF(VLOOKUP(A18,Calendar!A:E,5,FALSE)=0,"",CEILING(K18*CEILING(MAX(OFFSET(J18,M18,0),OFFSET(I18,M18,0)),roundto),roundto)+add_margin)) -> 2580000 | M18: =IF(INDIRECT("Calendar!E"&MATCH($A18,Calendar!A:A,0)-1),0,IF(INDIRECT("Calendar!E"&MATCH($A18,Calendar!A:A,0)-2),1,2)) -> 0
A19: 2025-09-22 | B19: 2777686 | C19: 861622 | D19: 2777686 | E19: 215 | F19: =IF($A19="","",IF(E19=0,0,SUMPRODUCT($D21:$D270,Parameter!$B$14:$B$263)/E19)) -> 359117.1455 | G19: =IF($A19="","",IF(E19=0,0,SQRT(SUMPRODUCT(IF($D21:$D270>0,(($D21:$D270)-$F19)^2,0),Parameter!$B$14:$B$263)/E19))) -> 485252.2361 | H19: 2203075.643 | I19: 2203075.643 | J19: 2783016 | K19: =IF($A20="","",IF($I$3="YES",VLOOKUP(OFFSET(A20,M19,0),Calendar!$A$2:$C$10000,3,FALSE),1)) -> 1 | L19: =IF(A20="","",IF(VLOOKUP(A19,Calendar!A:E,5,FALSE)=0,"",CEILING(K19*CEILING(MAX(OFFSET(J19,M19,0),OFFSET(I19,M19,0)),roundto),roundto)+add_margin)) -> 2840000 | M19: =IF(INDIRECT("Calendar!E"&MATCH($A19,Calendar!A:A,0)-1),0,IF(INDIRECT("Calendar!E"&MATCH($A19,Calendar!A:A,0)-2),1,2)) -> 0
A20: 2025-09-19 | B20: 1149197 | C20: 421528 | D20: 1149197 | E20: 215 | F20: =IF($A20="","",IF(E20=0,0,SUMPRODUCT($D22:$D271,Parameter!$B$14:$B$263)/E20)) -> 357133.8679 | G20: =IF($A20="","",IF(E20=0,0,SQRT(SUMPRODUCT(IF($D22:$D271>0,(($D22:$D271)-$F20)^2,0),Parameter!$B$14:$B$263)/E20))) -> 484769.0519 | H20: 2199256.265 | I20: 2199256.265 | J20: 2783016 | K20: =IF($A21="","",IF($I$3="YES",VLOOKUP(OFFSET(A21,M20,0),Calendar!$A$2:$C$10000,3,FALSE),1)) -> 1 | L20: =IF(A21="","",IF(VLOOKUP(A20,Calendar!A:E,5,FALSE)=0,"",CEILING(K20*CEILING(MAX(OFFSET(J20,M20,0),OFFSET(I20,M20,0)),roundto),roundto)+add_margin)) -> 2840000 | M20: =IF(INDIRECT("Calendar!E"&MATCH($A20,Calendar!A:A,0)-1),0,IF(INDIRECT("Calendar!E"&MATCH($A20,Calendar!A:A,0)-2),1,2)) -> 0
A21: 2025-09-18 | B21: 1257405 | C21: 935896 | D21: 1257405 | E21: 215 | F21: =IF($A21="","",IF(E21=0,0,SUMPRODUCT($D23:$D272,Parameter!$B$14:$B$263)/E21)) -> 355001.626 | G21: =IF($A21="","",IF(E21=0,0,SQRT(SUMPRODUCT(IF($D23:$D272>0,(($D23:$D272)-$F21)^2,0),Parameter!$B$14:$B$263)/E21))) -> 484391.0531 | H21: 2195687.628 | I21: 2195687.628 | J21: 2783016 | K21: =IF($A22="","",IF($I$3="YES",VLOOKUP(OFFSET(A22,M21,0),Calendar!$A$2:$C$10000,3,FALSE),1)) -> 1 | L21: =IF(A22="","",IF(VLOOKUP(A21,Calendar!A:E,5,FALSE)=0,"",CEILING(K21*CEILING(MAX(OFFSET(J21,M21,0),OFFSET(I21,M21,0)),roundto),roundto)+add_margin)) -> 2840000 | M21: =IF(INDIRECT("Calendar!E"&MATCH($A21,Calendar!A:A,0)-1),0,IF(INDIRECT("Calendar!E"&MATCH($A21,Calendar!A:A,0)-2),1,2)) -> 0
A22: 2025-09-17 | B22: 1248066 | C22: 628424 | D22: 1248066 | E22: 215 | F22: =IF($A22="","",IF(E22=0,0,SUMPRODUCT($D24:$D273,Parameter!$B$14:$B$263)/E22)) -> 353562.0423 | G22: =IF($A22="","",IF(E22=0,0,SQRT(SUMPRODUCT(IF($D24:$D273>0,(($D24:$D273)-$F22)^2,0),Parameter!$B$14:$B$263)/E22))) -> 484810.7521 | H22: 2195842.9 | I22: 2195842.9 | J22: 2783016 | K22: =IF($A23="","",IF($I$3="YES",VLOOKUP(OFFSET(A23,M22,0),Calendar!$A$2:$C$10000,3,FALSE),1)) -> 1 | L22: =IF(A23="","",IF(VLOOKUP(A22,Calendar!A:E,5,FALSE)=0,"",CEILING(K22*CEILING(MAX(OFFSET(J22,M22,0),OFFSET(I22,M22,0)),roundto),roundto)+add_margin)) -> 2840000 | M22: =IF(INDIRECT("Calendar!E"&MATCH($A22,Calendar!A:A,0)-1),0,IF(INDIRECT("Calendar!E"&MATCH($A22,Calendar!A:A,0)-2),1,2)) -> 0
A23: 2025-09-16 | B23: 1102410 | C23: 548039 | D23: 1102410 | E23: 215 | F23: =IF($A23="","",IF(E23=0,0,SUMPRODUCT($D25:$D274,Parameter!$B$14:$B$263)/E23)) -> 355194.128 | G23: =IF($A23="","",IF(E23=0,0,SQRT(SUMPRODUCT(IF($D25:$D274>0,(($D25:$D274)-$F23)^2,0),Parameter!$B$14:$B$263)/E23))) -> 486467.0641 | H23: 2203768.971 | I23: 2203768.971 | J23: 2783016 | K23: =IF($A24="","",IF($I$3="YES",VLOOKUP(OFFSET(A24,M23,0),Calendar!$A$2:$C$10000,3,FALSE),1)) -> 1 | L23: =IF(A24="","",IF(VLOOKUP(A23,Calendar!A:E,5,FALSE)=0,"",CEILING(K23*CEILING(MAX(OFFSET(J23,M23,0),OFFSET(I23,M23,0)),roundto),roundto)+add_margin)) -> 2840000 | M23: =IF(INDIRECT("Calendar!E"&MATCH($A23,Calendar!A:A,0)-1),0,IF(INDIRECT("Calendar!E"&MATCH($A23,Calendar!A:A,0)-2),1,2)) -> 0
A24: 2025-09-15 | B24: 453305 | C24: 19400 | D24: 453305 | E24: 215 | F24: =IF($A24="","",IF(E24=0,0,SUMPRODUCT($D26:$D275,Parameter!$B$14:$B$263)/E24)) -> 357602.7259 | G24: =IF($A24="","",IF(E24=0,0,SQRT(SUMPRODUCT(IF($D26:$D275>0,(($D26:$D275)-$F24)^2,0),Parameter!$B$14:$B$263)/E24))) -> 487806.503 | H24: 2211267.437 | I24: 2211267.437 | J24: 2783016 | K24: =IF($A25="","",IF($I$3="YES",VLOOKUP(OFFSET(A25,M24,0),Calendar!$A$2:$C$10000,3,FALSE),1)) -> 1 | L24: =IF(A25="","",IF(VLOOKUP(A24,Calendar!A:E,5,FALSE)=0,"",CEILING(K24*CEILING(MAX(OFFSET(J24,M24,0),OFFSET(I24,M24,0)),roundto),roundto)+add_margin)) -> 2840000 | M24: =IF(INDIRECT("Calendar!E"&MATCH($A24,Calendar!A:A,0)-1),0,IF(INDIRECT("Calendar!E"&MATCH($A24,Calendar!A:A,0)-2),1,2)) -> 0
A25: 2025-09-12 | B25: 293583 | C25: 388371 | D25: 293583 | E25: 215 | F25: =IF($A25="","",IF(E25=0,0,SUMPRODUCT($D27:$D276,Parameter!$B$14:$B$263)/E25)) -> 358395.992 | G25: =IF($A25="","",IF(E25=0,0,SQRT(SUMPRODUCT(IF($D27:$D276>0,(($D27:$D276)-$F25)^2,0),Parameter!$B$14:$B$263)/E25))) -> 489507.4521 | H25: 2218524.31 | I25: 2218524.31 | J25: 2783016 | K25: =IF($A26="","",IF($I$3="YES",VLOOKUP(OFFSET(A26,M25,0),Calendar!$A$2:$C$10000,3,FALSE),1)) -> 1 | L25: =IF(A26="","",IF(VLOOKUP(A25,Calendar!A:E,5,FALSE)=0,"",CEILING(K25*CEILING(MAX(OFFSET(J25,M25,0),OFFSET(I25,M25,0)),roundto),roundto)+add_margin)) -> 2840000 | M25: =IF(INDIRECT("Calendar!E"&MATCH($A25,Calendar!A:A,0)-1),0,IF(INDIRECT("Calendar!E"&MATCH($A25,Calendar!A:A,0)-2),1,2)) -> 0
A26: 2025-09-11 | B26: 651970 | C26: 432616 | D26: 651970 | E26: 215 | F26: =IF($A26="","",IF(E26=0,0,SUMPRODUCT($D28:$D277,Parameter!$B$14:$B$263)/E26)) -> 358050.4368 | G26: =IF($A26="","",IF(E26=0,0,SQRT(SUMPRODUCT(IF($D28:$D277>0,(($D28:$D277)-$F26)^2,0),Parameter!$B$14:$B$263)/E26))) -> 490949.4837 | H26: 2223658.475 | I26: 2223658.475 | J26: 2783016 | K26: =IF($A27="","",IF($I$3="YES",VLOOKUP(OFFSET(A27,M26,0),Calendar!$A$2:$C$10000,3,FALSE),1)) -> 1 | L26: =IF(A27="","",IF(VLOOKUP(A26,Calendar!A:E,5,FALSE)=0,"",CEILING(K26*CEILING(MAX(OFFSET(J26,M26,0),OFFSET(I26,M26,0)),roundto),roundto)+add_margin)) -> 2840000 | M26: =IF(INDIRECT("Calendar!E"&MATCH($A26,Calendar!A:A,0)-1),0,IF(INDIRECT("Calendar!E"&MATCH($A26,Calendar!A:A,0)-2),1,2)) -> 0
A27: 2025-09-10 | B27: 862497 | C27: 588877 | D27: 862497 | E27: 215 | F27: =IF($A27="","",IF(E27=0,0,SUMPRODUCT($D29:$D278,Parameter!$B$14:$B$263)/E27)) -> 356157.4169 | G27: =IF($A27="","",IF(E27=0,0,SQRT(SUMPRODUCT(IF($D29:$D278>0,(($D29:$D278)-$F27)^2,0),Parameter!$B$14:$B$263)/E27))) -> 490580.2625 | H27: 2220362.414 | I27: 2220362.414 | J27: 2783016 | K27: =IF($A28="","",IF($I$3="YES",VLOOKUP(OFFSET(A28,M27,0),Calendar!$A$2:$C$10000,3,FALSE),1)) -> 1 | L27: =IF(A28="","",IF(VLOOKUP(A27,Calendar!A:E,5,FALSE)=0,"",CEILING(K27*CEILING(MAX(OFFSET(J27,M27,0),OFFSET(I27,M27,0)),roundto),roundto)+add_margin)) -> 2840000 | M27: =IF(INDIRECT("Calendar!E"&MATCH($A27,Calendar!A:A,0)-1),0,IF(INDIRECT("Calendar!E"&MATCH($A27,Calendar!A:A,0)-2),1,2)) -> 0
A28: 2025-09-09 | B28: 1253310 | C28: 741357 | D28: 1253310 | E28: 215 | F28: =IF($A28="","",IF(E28=0,0,SUMPRODUCT($D30:$D279,Parameter!$B$14:$B$263)/E28)) -> 354942.3891 | G28: =IF($A28="","",IF(E28=0,0,SQRT(SUMPRODUCT(IF($D30:$D279>0,(($D30:$D279)-$F28)^2,0),Parameter!$B$14:$B$263)/E28))) -> 491024.9922 | H28: 2220837.36 | I28: 2220837.36 | J28: 2783016 | K28: =IF($A29="","",IF($I$3="YES",VLOOKUP(OFFSET(A29,M28,0),Calendar!$A$2:$C$10000,3,FALSE),1)) -> 1 | L28: =IF(A29="","",IF(VLOOKUP(A28,Calendar!A:E,5,FALSE)=0,"",CEILING(K28*CEILING(MAX(OFFSET(J28,M28,0),OFFSET(I28,M28,0)),roundto),roundto)+add_margin)) -> 2840000 | M28: =IF(INDIRECT("Calendar!E"&MATCH($A28,Calendar!A:A,0)-1),0,IF(INDIRECT("Calendar!E"&MATCH($A28,Calendar!A:A,0)-2),1,2)) -> 0
A29: 2025-09-08 | B29: 1123881 | C29: 533563 | D29: 1123881 | E29: 215 | F29: =IF($A29="","",IF(E29=0,0,SUMPRODUCT($D31:$D280,Parameter!$B$14:$B$263)/E29)) -> 355495.8614 | G29: =IF($A29="","",IF(E29=0,0,SQRT(SUMPRODUCT(IF($D31:$D280>0,(($D31:$D280)-$F29)^2,0),Parameter!$B$14:$B$263)/E29))) -> 492715.7724 | H29: 2227815.797 | I29: 2227815.797 | J29: 2783016 | K29: =IF($A30="","",IF($I$3="YES",VLOOKUP(OFFSET(A30,M29,0),Calendar!$A$2:$C$10000,3,FALSE),1)) -> 1 | L29: =IF(A30="","",IF(VLOOKUP(A29,Calendar!A:E,5,FALSE)=0,"",CEILING(K29*CEILING(MAX(OFFSET(J29,M29,0),OFFSET(I29,M29,0)),roundto),roundto)+add_margin)) -> 2840000 | M29: =IF(INDIRECT("Calendar!E"&MATCH($A29,Calendar!A:A,0)-1),0,IF(INDIRECT("Calendar!E"&MATCH($A29,Calendar!A:A,0)-2),1,2)) -> 0
A30: 2025-09-05 | B30: 695014 | C30: 474965 | D30: 695014 | E30: 215 | F30: =IF($A30="","",IF(E30=0,0,SUMPRODUCT($D32:$D281,Parameter!$B$14:$B$263)/E30)) -> 355295.3937 | G30: =IF($A30="","",IF(E30=0,0,SQRT(SUMPRODUCT(IF($D32:$D281>0,(($D32:$D281)-$F30)^2,0),Parameter!$B$14:$B$263)/E30))) -> 494067.8232 | H30: 2232753.122 | I30: 2232753.122 | J30: 2783016 | K30: =IF($A31="","",IF($I$3="YES",VLOOKUP(OFFSET(A31,M30,0),Calendar!$A$2:$C$10000,3,FALSE),1)) -> 1 | L30: =IF(A31="","",IF(VLOOKUP(A30,Calendar!A:E,5,FALSE)=0,"",CEILING(K30*CEILING(MAX(OFFSET(J30,M30,0),OFFSET(I30,M30,0)),roundto),roundto)+add_margin)) -> 2840000 | M30: =IF(INDIRECT("Calendar!E"&MATCH($A30,Calendar!A:A,0)-1),0,IF(INDIRECT("Calendar!E"&MATCH($A30,Calendar!A:A,0)-2),1,2)) -> 0
A31: 2025-09-04 | B31: 884049 | C31: 587569 | D31: 884049 | E31: 215 | F31: =IF($A31="","",IF(E31=0,0,SUMPRODUCT($D33:$D282,Parameter!$B$14:$B$263)/E31)) -> 353845.3505 | G31: =IF($A31="","",IF(E31=0,0,SQRT(SUMPRODUCT(IF($D33:$D282>0,(($D33:$D282)-$F31)^2,0),Parameter!$B$14:$B$263)/E31))) -> 494342.9574 | H31: 2232348.589 | I31: 2232348.589 | J31: 2783016 | K31: =IF($A32="","",IF($I$3="YES",VLOOKUP(OFFSET(A32,M31,0),Calendar!$A$2:$C$10000,3,FALSE),1)) -> 1 | L31: =IF(A32="","",IF(VLOOKUP(A31,Calendar!A:E,5,FALSE)=0,"",CEILING(K31*CEILING(MAX(OFFSET(J31,M31,0),OFFSET(I31,M31,0)),roundto),roundto)+add_margin)) -> 2840000 | M31: =IF(INDIRECT("Calendar!E"&MATCH($A31,Calendar!A:A,0)-1),0,IF(INDIRECT("Calendar!E"&MATCH($A31,Calendar!A:A,0)-2),1,2)) -> 0
A32: 2025-09-03 | B32: 1144105 | C32: 715273 | D32: 1144105 | E32: 215 | F32: =IF($A32="","",IF(E32=0,0,SUMPRODUCT($D34:$D283,Parameter!$B$14:$B$263)/E32)) -> 350587.7146 | G32: =IF($A32="","",IF(E32=0,0,SQRT(SUMPRODUCT(IF($D34:$D283>0,(($D34:$D283)-$F32)^2,0),Parameter!$B$14:$B$263)/E32))) -> 491608.7255 | H32: 2218700.871 | I32: 2218700.871 | J32: 2783016 | K32: =IF($A33="","",IF($I$3="YES",VLOOKUP(OFFSET(A33,M32,0),Calendar!$A$2:$C$10000,3,FALSE),1)) -> 1 | L32: =IF(A33="","",IF(VLOOKUP(A32,Calendar!A:E,5,FALSE)=0,"",CEILING(K32*CEILING(MAX(OFFSET(J32,M32,0),OFFSET(I32,M32,0)),roundto),roundto)+add_margin)) -> 2840000 | M32: =IF(INDIRECT("Calendar!E"&MATCH($A32,Calendar!A:A,0)-1),0,IF(INDIRECT("Calendar!E"&MATCH($A32,Calendar!A:A,0)-2),1,2)) -> 0
A33: 2025-09-02 | B33: 1575066 | C33: 1063504 | D33: 1575066 | E33: 215 | F33: =IF($A33="","",IF(E33=0,0,SUMPRODUCT($D35:$D284,Parameter!$B$14:$B$263)/E33)) -> 348803.7044 | G33: =IF($A33="","",IF(E33=0,0,SQRT(SUMPRODUCT(IF($D35:$D284>0,(($D35:$D284)-$F33)^2,0),Parameter!$B$14:$B$263)/E33))) -> 491444.0234 | H33: 2216290.993 | I33: 2216290.993 | J33: 3581795.2 | K33: =IF($A34="","",IF($I$3="YES",VLOOKUP(OFFSET(A34,M33,0),Calendar!$A$2:$C$10000,3,FALSE),1)) -> 1 | L33: =IF(A34="","",IF(VLOOKUP(A33,Calendar!A:E,5,FALSE)=0,"",CEILING(K33*CEILING(MAX(OFFSET(J33,M33,0),OFFSET(I33,M33,0)),roundto),roundto)+add_margin)) -> 3640000 | M33: =IF(INDIRECT("Calendar!E"&MATCH($A33,Calendar!A:A,0)-1),0,IF(INDIRECT("Calendar!E"&MATCH($A33,Calendar!A:A,0)-2),1,2)) -> 0
A34: 2025-09-01 | B34: 1217077 | C34: 310029 | D34: 1217077 | E34: 215 | F34: =IF($A34="","",IF(E34=0,0,SUMPRODUCT($D36:$D285,Parameter!$B$14:$B$263)/E34)) -> 350512.0883 | G34: =IF($A34="","",IF(E34=0,0,SQRT(SUMPRODUCT(IF($D36:$D285>0,(($D36:$D285)-$F34)^2,0),Parameter!$B$14:$B$263)/E34))) -> 493143.3641 | H34: 2224456.872 | I34: 2224456.872 | J34: 3581795.2 | K34: =IF($A35="","",IF($I$3="YES",VLOOKUP(OFFSET(A35,M34,0),Calendar!$A$2:$C$10000,3,FALSE),1)) -> 1 | L34: =IF(A35="","",IF(VLOOKUP(A34,Calendar!A:E,5,FALSE)=0,"",CEILING(K34*CEILING(MAX(OFFSET(J34,M34,0),OFFSET(I34,M34,0)),roundto),roundto)+add_margin)) -> 3640000 | M34: =IF(INDIRECT("Calendar!E"&MATCH($A34,Calendar!A:A,0)-1),0,IF(INDIRECT("Calendar!E"&MATCH($A34,Calendar!A:A,0)-2),1,2)) -> 0
A35: 2025-08-29 | B35: 410225 | C35: 301574 | D35: 410225 | E35: 215 | F35: =IF($A35="","",IF(E35=0,0,SUMPRODUCT($D37:$D286,Parameter!$B$14:$B$263)/E35)) -> 351197.2661 | G35: =IF($A35="","",IF(E35=0,0,SQRT(SUMPRODUCT(IF($D37:$D286>0,(($D37:$D286)-$F35)^2,0),Parameter!$B$14:$B$263)/E35))) -> 494981.3554 | H35: 2232126.417 | I35: 2232126.417 | J35: 3581795.2 | K35: =IF($A36="","",IF($I$3="YES",VLOOKUP(OFFSET(A36,M35,0),Calendar!$A$2:$C$10000,3,FALSE),1)) -> 1 | L35: =IF(A36="","",IF(VLOOKUP(A35,Calendar!A:E,5,FALSE)=0,"",CEILING(K35*CEILING(MAX(OFFSET(J35,M35,0),OFFSET(I35,M35,0)),roundto),roundto)+add_margin)) -> 3640000 | M35: =IF(INDIRECT("Calendar!E"&MATCH($A35,Calendar!A:A,0)-1),0,IF(INDIRECT("Calendar!E"&MATCH($A35,Calendar!A:A,0)-2),1,2)) -> 0
A36: 2025-08-28 | B36: 626020 | C36: 483621 | D36: 626020 | E36: 215 | F36: =IF($A36="","",IF(E36=0,0,SUMPRODUCT($D38:$D287,Parameter!$B$14:$B$263)/E36)) -> 352135.4865 | G36: =IF($A36="","",IF(E36=0,0,SQRT(SUMPRODUCT(IF($D38:$D287>0,(($D38:$D287)-$F36)^2,0),Parameter!$B$14:$B$263)/E36))) -> 496814.9851 | H36: 2240032.43 | I36: 2240032.43 | J36: 3581795.2 | K36: =IF($A37="","",IF($I$3="YES",VLOOKUP(OFFSET(A37,M36,0),Calendar!$A$2:$C$10000,3,FALSE),1)) -> 1 | L36: =IF(A37="","",IF(VLOOKUP(A36,Calendar!A:E,5,FALSE)=0,"",CEILING(K36*CEILING(MAX(OFFSET(J36,M36,0),OFFSET(I36,M36,0)),roundto),roundto)+add_margin)) -> 3640000 | M36: =IF(INDIRECT("Calendar!E"&MATCH($A36,Calendar!A:A,0)-1),0,IF(INDIRECT("Calendar!E"&MATCH($A36,Calendar!A:A,0)-2),1,2)) -> 0
A37: 2025-08-27 | B37: 580668 | C37: 333994 | D37: 580668 | E37: 215 | F37: =IF($A37="","",IF(E37=0,0,SUMPRODUCT($D39:$D288,Parameter!$B$14:$B$263)/E37)) -> 352348.4561 | G37: =IF($A37="","",IF(E37=0,0,SQRT(SUMPRODUCT(IF($D39:$D288>0,(($D39:$D288)-$F37)^2,0),Parameter!$B$14:$B$263)/E37))) -> 498510.893 | H37: 2246689.85 | I37: 2246689.85 | J37: 3581795.2 | K37: =IF($A38="","",IF($I$3="YES",VLOOKUP(OFFSET(A38,M37,0),Calendar!$A$2:$C$10000,3,FALSE),1)) -> 1 | L37: =IF(A38="","",IF(VLOOKUP(A37,Calendar!A:E,5,FALSE)=0,"",CEILING(K37*CEILING(MAX(OFFSET(J37,M37,0),OFFSET(I37,M37,0)),roundto),roundto)+add_margin)) -> 3640000 | M37: =IF(INDIRECT("Calendar!E"&MATCH($A37,Calendar!A:A,0)-1),0,IF(INDIRECT("Calendar!E"&MATCH($A37,Calendar!A:A,0)-2),1,2)) -> 0
A38: 2025-08-26 | B38: 743322 | C38: 628866 | D38: 743322 | E38: 215 | F38: =IF($A38="","",IF(E38=0,0,SUMPRODUCT($D40:$D289,Parameter!$B$14:$B$263)/E38)) -> 352930.656 | G38: =IF($A38="","",IF(E38=0,0,SQRT(SUMPRODUCT(IF($D40:$D289>0,(($D40:$D289)-$F38)^2,0),Parameter!$B$14:$B$263)/E38))) -> 500342.3697 | H38: 2254231.661 | I38: 2254231.661 | J38: 3581795.2 | K38: =IF($A39="","",IF($I$3="YES",VLOOKUP(OFFSET(A39,M38,0),Calendar!$A$2:$C$10000,3,FALSE),1)) -> 1 | L38: =IF(A39="","",IF(VLOOKUP(A38,Calendar!A:E,5,FALSE)=0,"",CEILING(K38*CEILING(MAX(OFFSET(J38,M38,0),OFFSET(I38,M38,0)),roundto),roundto)+add_margin)) -> 3640000 | M38: =IF(INDIRECT("Calendar!E"&MATCH($A38,Calendar!A:A,0)-1),0,IF(INDIRECT("Calendar!E"&MATCH($A38,Calendar!A:A,0)-2),1,2)) -> 0
A39: 2025-08-25 | B39: 656513 | C39: 254069 | D39: 656513 | E39: 215 | F39: =IF($A39="","",IF(E39=0,0,SUMPRODUCT($D41:$D290,Parameter!$B$14:$B$263)/E39)) -> 355423.5568 | G39: =IF($A39="","",IF(E39=0,0,SQRT(SUMPRODUCT(IF($D41:$D290>0,(($D41:$D290)-$F39)^2,0),Parameter!$B$14:$B$263)/E39))) -> 501704.818 | H39: 2261901.865 | I39: 2261901.865 | J39: 3581795.2 | K39: =IF($A40="","",IF($I$3="YES",VLOOKUP(OFFSET(A40,M39,0),Calendar!$A$2:$C$10000,3,FALSE),1)) -> 1 | L39: =IF(A40="","",IF(VLOOKUP(A39,Calendar!A:E,5,FALSE)=0,"",CEILING(K39*CEILING(MAX(OFFSET(J39,M39,0),OFFSET(I39,M39,0)),roundto),roundto)+add_margin)) -> 3640000 | M39: =IF(INDIRECT("Calendar!E"&MATCH($A39,Calendar!A:A,0)-1),0,IF(INDIRECT("Calendar!E"&MATCH($A39,Calendar!A:A,0)-2),1,2)) -> 0
A40: 2025-08-22 | B40: 248557 | C40: 144410 | D40: 248557 | E40: 215 | F40: =IF($A40="","",IF(E40=0,0,SUMPRODUCT($D42:$D291,Parameter!$B$14:$B$263)/E40)) -> 358353.5544 | G40: =IF($A40="","",IF(E40=0,0,SQRT(SUMPRODUCT(IF($D42:$D291>0,(($D42:$D291)-$F40)^2,0),Parameter!$B$14:$B$263)/E40))) -> 502748.5114 | H40: 2268797.898 | I40: 2268797.898 | J40: 3581795.2 | K40: =IF($A41="","",IF($I$3="YES",VLOOKUP(OFFSET(A41,M40,0),Calendar!$A$2:$C$10000,3,FALSE),1)) -> 1 | L40: =IF(A41="","",IF(VLOOKUP(A40,Calendar!A:E,5,FALSE)=0,"",CEILING(K40*CEILING(MAX(OFFSET(J40,M40,0),OFFSET(I40,M40,0)),roundto),roundto)+add_margin)) -> 3640000 | M40: =IF(INDIRECT("Calendar!E"&MATCH($A40,Calendar!A:A,0)-1),0,IF(INDIRECT("Calendar!E"&MATCH($A40,Calendar!A:A,0)-2),1,2)) -> 0
A41: 2025-08-21 | B41: 165393 | C41: 44105 | D41: 165393 | E41: 215 | F41: =IF($A41="","",IF(E41=0,0,SUMPRODUCT($D43:$D292,Parameter!$B$14:$B$263)/E41)) -> 361534.4809 | G41: =IF($A41="","",IF(E41=0,0,SQRT(SUMPRODUCT(IF($D43:$D292>0,(($D43:$D292)-$F41)^2,0),Parameter!$B$14:$B$263)/E41))) -> 503583.1772 | H41: 2275150.554 | I41: 2275150.554 | J41: 3581795.2 | K41: =IF($A42="","",IF($I$3="YES",VLOOKUP(OFFSET(A42,M41,0),Calendar!$A$2:$C$10000,3,FALSE),1)) -> 1 | L41: =IF(A42="","",IF(VLOOKUP(A41,Calendar!A:E,5,FALSE)=0,"",CEILING(K41*CEILING(MAX(OFFSET(J41,M41,0),OFFSET(I41,M41,0)),roundto),roundto)+add_margin)) -> 3640000 | M41: =IF(INDIRECT("Calendar!E"&MATCH($A41,Calendar!A:A,0)-1),0,IF(INDIRECT("Calendar!E"&MATCH($A41,Calendar!A:A,0)-2),1,2)) -> 0
A42: 2025-08-20 | B42: 123163 | C42: 106375 | D42: 123163 | E42: 215 | F42: =IF($A42="","",IF(E42=0,0,SUMPRODUCT($D44:$D293,Parameter!$B$14:$B$263)/E42)) -> 362416.6201 | G42: =IF($A42="","",IF(E42=0,0,SQRT(SUMPRODUCT(IF($D44:$D293>0,(($D44:$D293)-$F42)^2,0),Parameter!$B$14:$B$263)/E42))) -> 505594.3454 | H42: 2283675.132 | I42: 2283675.132 | J42: 3581795.2 | K42: =IF($A43="","",IF($I$3="YES",VLOOKUP(OFFSET(A43,M42,0),Calendar!$A$2:$C$10000,3,FALSE),1)) -> 1 | L42: =IF(A43="","",IF(VLOOKUP(A42,Calendar!A:E,5,FALSE)=0,"",CEILING(K42*CEILING(MAX(OFFSET(J42,M42,0),OFFSET(I42,M42,0)),roundto),roundto)+add_margin)) -> 3640000 | M42: =IF(INDIRECT("Calendar!E"&MATCH($A42,Calendar!A:A,0)-1),0,IF(INDIRECT("Calendar!E"&MATCH($A42,Calendar!A:A,0)-2),1,2)) -> 0
A43: 2025-08-19 | B43: 713075 | C43: 711429 | D43: 713075 | E43: 215 | F43: =IF($A43="","",IF(E43=0,0,SUMPRODUCT($D45:$D294,Parameter!$B$14:$B$263)/E43)) -> 362077.2003 | G43: =IF($A43="","",IF(E43=0,0,SQRT(SUMPRODUCT(IF($D45:$D294>0,(($D45:$D294)-$F43)^2,0),Parameter!$B$14:$B$263)/E43))) -> 506980.3343 | H43: 2288602.471 | I43: 2288602.471 | J43: 3581795.2 | K43: =IF($A44="","",IF($I$3="YES",VLOOKUP(OFFSET(A44,M43,0),Calendar!$A$2:$C$10000,3,FALSE),1)) -> 1 | L43: =IF(A44="","",IF(VLOOKUP(A43,Calendar!A:E,5,FALSE)=0,"",CEILING(K43*CEILING(MAX(OFFSET(J43,M43,0),OFFSET(I43,M43,0)),roundto),roundto)+add_margin)) -> 3640000 | M43: =IF(INDIRECT("Calendar!E"&MATCH($A43,Calendar!A:A,0)-1),0,IF(INDIRECT("Calendar!E"&MATCH($A43,Calendar!A:A,0)-2),1,2)) -> 0
A44: 2025-08-18 | B44: 972766 | C44: 357968 | D44: 972766 | E44: 215 | F44: =IF($A44="","",IF(E44=0,0,SUMPRODUCT($D46:$D295,Parameter!$B$14:$B$263)/E44)) -> 363915.5594 | G44: =IF($A44="","",IF(E44=0,0,SQRT(SUMPRODUCT(IF($D46:$D295>0,(($D46:$D295)-$F44)^2,0),Parameter!$B$14:$B$263)/E44))) -> 508684.8652 | H44: 2296918.047 | I44: 2296918.047 | J44: 3581795.2 | K44: =IF($A45="","",IF($I$3="YES",VLOOKUP(OFFSET(A45,M44,0),Calendar!$A$2:$C$10000,3,FALSE),1)) -> 1 | L44: =IF(A45="","",IF(VLOOKUP(A44,Calendar!A:E,5,FALSE)=0,"",CEILING(K44*CEILING(MAX(OFFSET(J44,M44,0),OFFSET(I44,M44,0)),roundto),roundto)+add_margin)) -> 3640000 | M44: =IF(INDIRECT("Calendar!E"&MATCH($A44,Calendar!A:A,0)-1),0,IF(INDIRECT("Calendar!E"&MATCH($A44,Calendar!A:A,0)-2),1,2)) -> 0
A45: 2025-08-15 | B45: 428502 | C45: 309315 | D45: 428502 | E45: 215 | F45: =IF($A45="","",IF(E45=0,0,SUMPRODUCT($D47:$D296,Parameter!$B$14:$B$263)/E45)) -> 364970.5277 | G45: =IF($A45="","",IF(E45=0,0,SQRT(SUMPRODUCT(IF($D47:$D296>0,(($D47:$D296)-$F45)^2,0),Parameter!$B$14:$B$263)/E45))) -> 510509.9976 | H45: 2304908.519 | I45: 2304908.519 | J45: 3581795.2 | K45: =IF($A46="","",IF($I$3="YES",VLOOKUP(OFFSET(A46,M45,0),Calendar!$A$2:$C$10000,3,FALSE),1)) -> 1 | L45: =IF(A46="","",IF(VLOOKUP(A45,Calendar!A:E,5,FALSE)=0,"",CEILING(K45*CEILING(MAX(OFFSET(J45,M45,0),OFFSET(I45,M45,0)),roundto),roundto)+add_margin)) -> 3640000 | M45: =IF(INDIRECT("Calendar!E"&MATCH($A45,Calendar!A:A,0)-1),0,IF(INDIRECT("Calendar!E"&MATCH($A45,Calendar!A:A,0)-2),1,2)) -> 0
A46: 2025-08-14 | B46: 615845 | C46: 391934 | D46: 615845 | E46: 215 | F46: =IF($A46="","",IF(E46=0,0,SUMPRODUCT($D48:$D297,Parameter!$B$14:$B$263)/E46)) -> 365559.6362 | G46: =IF($A46="","",IF(E46=0,0,SQRT(SUMPRODUCT(IF($D48:$D297>0,(($D48:$D297)-$F46)^2,0),Parameter!$B$14:$B$263)/E46))) -> 512321.0608 | H46: 2312379.667 | I46: 2312379.667 | J46: 3581795.2 | K46: =IF($A47="","",IF($I$3="YES",VLOOKUP(OFFSET(A47,M46,0),Calendar!$A$2:$C$10000,3,FALSE),1)) -> 1 | L46: =IF(A47="","",IF(VLOOKUP(A46,Calendar!A:E,5,FALSE)=0,"",CEILING(K46*CEILING(MAX(OFFSET(J46,M46,0),OFFSET(I46,M46,0)),roundto),roundto)+add_margin)) -> 3640000 | M46: =IF(INDIRECT("Calendar!E"&MATCH($A46,Calendar!A:A,0)-1),0,IF(INDIRECT("Calendar!E"&MATCH($A46,Calendar!A:A,0)-2),1,2)) -> 0
A47: 2025-08-13 | B47: 695085 | C47: 411384 | D47: 695085 | E47: 215 | F47: =IF($A47="","",IF(E47=0,0,SUMPRODUCT($D49:$D298,Parameter!$B$14:$B$263)/E47)) -> 363624.0061 | G47: =IF($A47="","",IF(E47=0,0,SQRT(SUMPRODUCT(IF($D49:$D298>0,(($D49:$D298)-$F47)^2,0),Parameter!$B$14:$B$263)/E47))) -> 512017.8948 | H47: 2309292.007 | I47: 2309292.007 | J47: 3581795.2 | K47: =IF($A48="","",IF($I$3="YES",VLOOKUP(OFFSET(A48,M47,0),Calendar!$A$2:$C$10000,3,FALSE),1)) -> 1 | L47: =IF(A48="","",IF(VLOOKUP(A47,Calendar!A:E,5,FALSE)=0,"",CEILING(K47*CEILING(MAX(OFFSET(J47,M47,0),OFFSET(I47,M47,0)),roundto),roundto)+add_margin)) -> 3640000 | M47: =IF(INDIRECT("Calendar!E"&MATCH($A47,Calendar!A:A,0)-1),0,IF(INDIRECT("Calendar!E"&MATCH($A47,Calendar!A:A,0)-2),1,2)) -> 0
A48: 2025-08-12 | B48: 1300802 | C48: 1041538 | D48: 1300802 | E48: 215 | F48: =IF($A48="","",IF(E48=0,0,SUMPRODUCT($D50:$D299,Parameter!$B$14:$B$263)/E48)) -> 359961.9681 | G48: =IF($A48="","",IF(E48=0,0,SQRT(SUMPRODUCT(IF($D50:$D299>0,(($D50:$D299)-$F48)^2,0),Parameter!$B$14:$B$263)/E48))) -> 508616.1536 | H48: 2292703.352 | I48: 2292703.352 | J48: 3581795.2 | K48: =IF($A49="","",IF($I$3="YES",VLOOKUP(OFFSET(A49,M48,0),Calendar!$A$2:$C$10000,3,FALSE),1)) -> 1 | L48: =IF(A49="","",IF(VLOOKUP(A48,Calendar!A:E,5,FALSE)=0,"",CEILING(K48*CEILING(MAX(OFFSET(J48,M48,0),OFFSET(I48,M48,0)),roundto),roundto)+add_margin)) -> 3640000 | M48: =IF(INDIRECT("Calendar!E"&MATCH($A48,Calendar!A:A,0)-1),0,IF(INDIRECT("Calendar!E"&MATCH($A48,Calendar!A:A,0)-2),1,2)) -> 0
A49: 2025-08-11 | B49: 1739385 | C49: 825822 | D49: 1739385 | E49: 215 | F49: =IF($A49="","",IF(E49=0,0,SUMPRODUCT($D51:$D300,Parameter!$B$14:$B$263)/E49)) -> 357002.4337 | G49: =IF($A49="","",IF(E49=0,0,SQRT(SUMPRODUCT(IF($D51:$D300>0,(($D51:$D300)-$F49)^2,0),Parameter!$B$14:$B$263)/E49))) -> 506734.1947 | H49: 2282592.374 | I49: 2282592.374 | J49: 3581795.2 | K49: =IF($A50="","",IF($I$3="YES",VLOOKUP(OFFSET(A50,M49,0),Calendar!$A$2:$C$10000,3,FALSE),1)) -> 1 | L49: =IF(A50="","",IF(VLOOKUP(A49,Calendar!A:E,5,FALSE)=0,"",CEILING(K49*CEILING(MAX(OFFSET(J49,M49,0),OFFSET(I49,M49,0)),roundto),roundto)+add_margin)) -> 3640000 | M49: =IF(INDIRECT("Calendar!E"&MATCH($A49,Calendar!A:A,0)-1),0,IF(INDIRECT("Calendar!E"&MATCH($A49,Calendar!A:A,0)-2),1,2)) -> 0
A50: 2025-08-08 | B50: 1495665 | C50: 996898 | D50: 1495665 | E50: 215 | F50: =IF($A50="","",IF(E50=0,0,SUMPRODUCT($D52:$D301,Parameter!$B$14:$B$263)/E50)) -> 356623.751 | G50: =IF($A50="","",IF(E50=0,0,SQRT(SUMPRODUCT(IF($D52:$D301>0,(($D52:$D301)-$F50)^2,0),Parameter!$B$14:$B$263)/E50))) -> 508072.83 | H50: 2287300.505 | I50: 2287300.505 | J50: 3581795.2 | K50: =IF($A51="","",IF($I$3="YES",VLOOKUP(OFFSET(A51,M50,0),Calendar!$A$2:$C$10000,3,FALSE),1)) -> 1 | L50: =IF(A51="","",IF(VLOOKUP(A50,Calendar!A:E,5,FALSE)=0,"",CEILING(K50*CEILING(MAX(OFFSET(J50,M50,0),OFFSET(I50,M50,0)),roundto),roundto)+add_margin)) -> 3640000 | M50: =IF(INDIRECT("Calendar!E"&MATCH($A50,Calendar!A:A,0)-1),0,IF(INDIRECT("Calendar!E"&MATCH($A50,Calendar!A:A,0)-2),1,2)) -> 0
A51: 2025-08-07 | B51: 920419 | C51: 299301 | D51: 920419 | E51: 215 | F51: =IF($A51="","",IF(E51=0,0,SUMPRODUCT($D53:$D302,Parameter!$B$14:$B$263)/E51)) -> 358106.7705 | G51: =IF($A51="","",IF(E51=0,0,SQRT(SUMPRODUCT(IF($D53:$D302>0,(($D53:$D302)-$F51)^2,0),Parameter!$B$14:$B$263)/E51))) -> 509893.0962 | H51: 2295700.536 | I51: 2295700.536 | J51: 3581795.2 | K51: =IF($A52="","",IF($I$3="YES",VLOOKUP(OFFSET(A52,M51,0),Calendar!$A$2:$C$10000,3,FALSE),1)) -> 1 | L51: =IF(A52="","",IF(VLOOKUP(A51,Calendar!A:E,5,FALSE)=0,"",CEILING(K51*CEILING(MAX(OFFSET(J51,M51,0),OFFSET(I51,M51,0)),roundto),roundto)+add_margin)) -> 3640000 | M51: =IF(INDIRECT("Calendar!E"&MATCH($A51,Calendar!A:A,0)-1),0,IF(INDIRECT("Calendar!E"&MATCH($A51,Calendar!A:A,0)-2),1,2)) -> 0
A52: 2025-08-06 | B52: 506366 | C52: 489028 | D52: 506366 | E52: 215 | F52: =IF($A52="","",IF(E52=0,0,SUMPRODUCT($D54:$D303,Parameter!$B$14:$B$263)/E52)) -> 355073.9041 | G52: =IF($A52="","",IF(E52=0,0,SQRT(SUMPRODUCT(IF($D54:$D303>0,(($D54:$D303)-$F52)^2,0),Parameter!$B$14:$B$263)/E52))) -> 507908.8272 | H52: 2285127.447 | I52: 2285127.447 | J52: 3581795.2 | K52: =IF($A53="","",IF($I$3="YES",VLOOKUP(OFFSET(A53,M52,0),Calendar!$A$2:$C$10000,3,FALSE),1)) -> 1 | L52: =IF(A53="","",IF(VLOOKUP(A52,Calendar!A:E,5,FALSE)=0,"",CEILING(K52*CEILING(MAX(OFFSET(J52,M52,0),OFFSET(I52,M52,0)),roundto),roundto)+add_margin)) -> 3640000 | M52: =IF(INDIRECT("Calendar!E"&MATCH($A52,Calendar!A:A,0)-1),0,IF(INDIRECT("Calendar!E"&MATCH($A52,Calendar!A:A,0)-2),1,2)) -> 0
A53: 2025-08-05 | B53: 1508966 | C53: 1245077 | D53: 1508966 | E53: 215 | F53: =IF($A53="","",IF(E53=0,0,SUMPRODUCT($D55:$D304,Parameter!$B$14:$B$263)/E53)) -> 354026.2832 | G53: =IF($A53="","",IF(E53=0,0,SQRT(SUMPRODUCT(IF($D55:$D304>0,(($D55:$D304)-$F53)^2,0),Parameter!$B$14:$B$263)/E53))) -> 508703.9955 | H53: 2287101.466 | I53: 2287101.466 | J53: 3581795.2 | K53: =IF($A54="","",IF($I$3="YES",VLOOKUP(OFFSET(A54,M53,0),Calendar!$A$2:$C$10000,3,FALSE),1)) -> 1 | L53: =IF(A54="","",IF(VLOOKUP(A53,Calendar!A:E,5,FALSE)=0,"",CEILING(K53*CEILING(MAX(OFFSET(J53,M53,0),OFFSET(I53,M53,0)),roundto),roundto)+add_margin)) -> 3640000 | M53: =IF(INDIRECT("Calendar!E"&MATCH($A53,Calendar!A:A,0)-1),0,IF(INDIRECT("Calendar!E"&MATCH($A53,Calendar!A:A,0)-2),1,2)) -> 0
A54: 2025-08-04 | B54: 1090451 | C54: 314357 | D54: 1090451 | E54: 215 | F54: =IF($A54="","",IF(E54=0,0,SUMPRODUCT($D56:$D305,Parameter!$B$14:$B$263)/E54)) -> 356354.2134 | G54: =IF($A54="","",IF(E54=0,0,SQRT(SUMPRODUCT(IF($D56:$D305>0,(($D56:$D305)-$F54)^2,0),Parameter!$B$14:$B$263)/E54))) -> 510212.9947 | H54: 2295163.593 | I54: 2295163.593 | J54: 3581795.2 | K54: =IF($A55="","",IF($I$3="YES",VLOOKUP(OFFSET(A55,M54,0),Calendar!$A$2:$C$10000,3,FALSE),1)) -> 1 | L54: =IF(A55="","",IF(VLOOKUP(A54,Calendar!A:E,5,FALSE)=0,"",CEILING(K54*CEILING(MAX(OFFSET(J54,M54,0),OFFSET(I54,M54,0)),roundto),roundto)+add_margin)) -> 3640000 | M54: =IF(INDIRECT("Calendar!E"&MATCH($A54,Calendar!A:A,0)-1),0,IF(INDIRECT("Calendar!E"&MATCH($A54,Calendar!A:A,0)-2),1,2)) -> 0
A55: 2025-08-01 | B55: 298362 | C55: 171660 | D55: 298362 | E55: 215 | F55: =IF($A55="","",IF(E55=0,0,SUMPRODUCT($D57:$D306,Parameter!$B$14:$B$263)/E55)) -> 357887.3479 | G55: =IF($A55="","",IF(E55=0,0,SQRT(SUMPRODUCT(IF($D57:$D306>0,(($D57:$D306)-$F55)^2,0),Parameter!$B$14:$B$263)/E55))) -> 512035.4689 | H55: 2303622.13 | I55: 2303622.13 | J55: 3581795.2 | K55: =IF($A56="","",IF($I$3="YES",VLOOKUP(OFFSET(A56,M55,0),Calendar!$A$2:$C$10000,3,FALSE),1)) -> 1 | L55: =IF(A56="","",IF(VLOOKUP(A55,Calendar!A:E,5,FALSE)=0,"",CEILING(K55*CEILING(MAX(OFFSET(J55,M55,0),OFFSET(I55,M55,0)),roundto),roundto)+add_margin)) -> 3640000 | M55: =IF(INDIRECT("Calendar!E"&MATCH($A55,Calendar!A:A,0)-1),0,IF(INDIRECT("Calendar!E"&MATCH($A55,Calendar!A:A,0)-2),1,2)) -> 0
A56: 2025-07-31 | B56: 493521 | C56: 412646 | D56: 493521 | E56: 215 | F56: =IF($A56="","",IF(E56=0,0,SUMPRODUCT($D58:$D307,Parameter!$B$14:$B$263)/E56)) -> 356937.3593 | G56: =IF($A56="","",IF(E56=0,0,SQRT(SUMPRODUCT(IF($D58:$D307>0,(($D58:$D307)-$F56)^2,0),Parameter!$B$14:$B$263)/E56))) -> 513031.2065 | H56: 2306455.944 | I56: 2306455.944 | J56: 3581795.2 | K56: =IF($A57="","",IF($I$3="YES",VLOOKUP(OFFSET(A57,M56,0),Calendar!$A$2:$C$10000,3,FALSE),1)) -> 1 | L56: =IF(A57="","",IF(VLOOKUP(A56,Calendar!A:E,5,FALSE)=0,"",CEILING(K56*CEILING(MAX(OFFSET(J56,M56,0),OFFSET(I56,M56,0)),roundto),roundto)+add_margin)) -> 3640000 | M56: =IF(INDIRECT("Calendar!E"&MATCH($A56,Calendar!A:A,0)-1),0,IF(INDIRECT("Calendar!E"&MATCH($A56,Calendar!A:A,0)-2),1,2)) -> 0
A57: 2025-07-30 | B57: 1025796 | C57: 760015 | D57: 1025796 | E57: 215 | F57: =IF($A57="","",IF(E57=0,0,SUMPRODUCT($D59:$D308,Parameter!$B$14:$B$263)/E57)) -> 355764.9437 | G57: =IF($A57="","",IF(E57=0,0,SQRT(SUMPRODUCT(IF($D59:$D308>0,(($D59:$D308)-$F57)^2,0),Parameter!$B$14:$B$263)/E57))) -> 513875.6697 | H57: 2308492.488 | I57: 2308492.488 | J57: 3581795.2 | K57: =IF($A58="","",IF($I$3="YES",VLOOKUP(OFFSET(A58,M57,0),Calendar!$A$2:$C$10000,3,FALSE),1)) -> 1 | L57: =IF(A58="","",IF(VLOOKUP(A57,Calendar!A:E,5,FALSE)=0,"",CEILING(K57*CEILING(MAX(OFFSET(J57,M57,0),OFFSET(I57,M57,0)),roundto),roundto)+add_margin)) -> 3640000 | M57: =IF(INDIRECT("Calendar!E"&MATCH($A57,Calendar!A:A,0)-1),0,IF(INDIRECT("Calendar!E"&MATCH($A57,Calendar!A:A,0)-2),1,2)) -> 0
A58: 2025-07-29 | B58: 1064666 | C58: 487404 | D58: 1064666 | E58: 215 | F58: =IF($A58="","",IF(E58=0,0,SUMPRODUCT($D60:$D309,Parameter!$B$14:$B$263)/E58)) -> 356330.3869 | G58: =IF($A58="","",IF(E58=0,0,SQRT(SUMPRODUCT(IF($D60:$D309>0,(($D60:$D309)-$F58)^2,0),Parameter!$B$14:$B$263)/E58))) -> 515938.6678 | H58: 2316897.324 | I58: 2316897.324 | J58: 3936224 | K58: =IF($A59="","",IF($I$3="YES",VLOOKUP(OFFSET(A59,M58,0),Calendar!$A$2:$C$10000,3,FALSE),1)) -> 1 | L58: =IF(A59="","",IF(VLOOKUP(A58,Calendar!A:E,5,FALSE)=0,"",CEILING(K58*CEILING(MAX(OFFSET(J58,M58,0),OFFSET(I58,M58,0)),roundto),roundto)+add_margin)) -> 3990000 | M58: =IF(INDIRECT("Calendar!E"&MATCH($A58,Calendar!A:A,0)-1),0,IF(INDIRECT("Calendar!E"&MATCH($A58,Calendar!A:A,0)-2),1,2)) -> 0
A59: 2025-07-28 | B59: 776991 | C59: 423471 | D59: 776991 | E59: 215 | F59: =IF($A59="","",IF(E59=0,0,SUMPRODUCT($D61:$D310,Parameter!$B$14:$B$263)/E59)) -> 356939.4227 | G59: =IF($A59="","",IF(E59=0,0,SQRT(SUMPRODUCT(IF($D61:$D310>0,(($D61:$D310)-$F59)^2,0),Parameter!$B$14:$B$263)/E59))) -> 517843.2118 | H59: 2324743.628 | I59: 2324743.628 | J59: 3953004.8 | K59: =IF($A60="","",IF($I$3="YES",VLOOKUP(OFFSET(A60,M59,0),Calendar!$A$2:$C$10000,3,FALSE),1)) -> 1 | L59: =IF(A60="","",IF(VLOOKUP(A59,Calendar!A:E,5,FALSE)=0,"",CEILING(K59*CEILING(MAX(OFFSET(J59,M59,0),OFFSET(I59,M59,0)),roundto),roundto)+add_margin)) -> 4010000 | M59: =IF(INDIRECT("Calendar!E"&MATCH($A59,Calendar!A:A,0)-1),0,IF(INDIRECT("Calendar!E"&MATCH($A59,Calendar!A:A,0)-2),1,2)) -> 0
A60: 2025-07-25 | B60: 734205 | C60: 654561 | D60: 734205 | E60: 215 | F60: =IF($A60="","",IF(E60=0,0,SUMPRODUCT($D62:$D311,Parameter!$B$14:$B$263)/E60)) -> 356744.7054 | G60: =IF($A60="","",IF(E60=0,0,SQRT(SUMPRODUCT(IF($D62:$D311>0,(($D62:$D311)-$F60)^2,0),Parameter!$B$14:$B$263)/E60))) -> 519382.4598 | H60: 2330398.053 | I60: 2330398.053 | J60: 3953004.8 | K60: =IF($A61="","",IF($I$3="YES",VLOOKUP(OFFSET(A61,M60,0),Calendar!$A$2:$C$10000,3,FALSE),1)) -> 1 | L60: =IF(A61="","",IF(VLOOKUP(A60,Calendar!A:E,5,FALSE)=0,"",CEILING(K60*CEILING(MAX(OFFSET(J60,M60,0),OFFSET(I60,M60,0)),roundto),roundto)+add_margin)) -> 4010000 | M60: =IF(INDIRECT("Calendar!E"&MATCH($A60,Calendar!A:A,0)-1),0,IF(INDIRECT("Calendar!E"&MATCH($A60,Calendar!A:A,0)-2),1,2)) -> 0
A61: 2025-07-24 | B61: 902164 | C61: 540256 | D61: 902164 | E61: 215 | F61: =IF($A61="","",IF(E61=0,0,SUMPRODUCT($D63:$D312,Parameter!$B$14:$B$263)/E61)) -> 354493.9921 | G61: =IF($A61="","",IF(E61=0,0,SQRT(SUMPRODUCT(IF($D63:$D312>0,(($D63:$D312)-$F61)^2,0),Parameter!$B$14:$B$263)/E61))) -> 518836.6676 | H61: 2326073.329 | I61: 2326073.329 | J61: 3953004.8 | K61: =IF($A62="","",IF($I$3="YES",VLOOKUP(OFFSET(A62,M61,0),Calendar!$A$2:$C$10000,3,FALSE),1)) -> 1 | L61: =IF(A62="","",IF(VLOOKUP(A61,Calendar!A:E,5,FALSE)=0,"",CEILING(K61*CEILING(MAX(OFFSET(J61,M61,0),OFFSET(I61,M61,0)),roundto),roundto)+add_margin)) -> 4010000 | M61: =IF(INDIRECT("Calendar!E"&MATCH($A61,Calendar!A:A,0)-1),0,IF(INDIRECT("Calendar!E"&MATCH($A61,Calendar!A:A,0)-2),1,2)) -> 0
A62: 2025-07-23 | B62: 1333530 | C62: 1202454 | D62: 1333530 | E62: 215 | F62: =IF($A62="","",IF(E62=0,0,SUMPRODUCT($D64:$D313,Parameter!$B$14:$B$263)/E62)) -> 348134.6659 | G62: =IF($A62="","",IF(E62=0,0,SQRT(SUMPRODUCT(IF($D64:$D313>0,(($D64:$D313)-$F62)^2,0),Parameter!$B$14:$B$263)/E62))) -> 508469.2224 | H62: 2280317.711 | I62: 2280317.711 | J62: 3953004.8 | K62: =IF($A63="","",IF($I$3="YES",VLOOKUP(OFFSET(A63,M62,0),Calendar!$A$2:$C$10000,3,FALSE),1)) -> 1 | L62: =IF(A63="","",IF(VLOOKUP(A62,Calendar!A:E,5,FALSE)=0,"",CEILING(K62*CEILING(MAX(OFFSET(J62,M62,0),OFFSET(I62,M62,0)),roundto),roundto)+add_margin)) -> 4010000 | M62: =IF(INDIRECT("Calendar!E"&MATCH($A62,Calendar!A:A,0)-1),0,IF(INDIRECT("Calendar!E"&MATCH($A62,Calendar!A:A,0)-2),1,2)) -> 0
A63: 2025-07-22 | B63: 2238622 | C63: 1611184 | D63: 2238622 | E63: 215 | F63: =IF($A63="","",IF(E63=0,0,SUMPRODUCT($D65:$D314,Parameter!$B$14:$B$263)/E63)) -> 344645.8424 | G63: =IF($A63="","",IF(E63=0,0,SQRT(SUMPRODUCT(IF($D65:$D314>0,(($D65:$D314)-$F63)^2,0),Parameter!$B$14:$B$263)/E63))) -> 505546.0344 | H63: 2265720.773 | I63: 2265720.773 | J63: 3953004.8 | K63: =IF($A64="","",IF($I$3="YES",VLOOKUP(OFFSET(A64,M63,0),Calendar!$A$2:$C$10000,3,FALSE),1)) -> 1 | L63: =IF(A64="","",IF(VLOOKUP(A63,Calendar!A:E,5,FALSE)=0,"",CEILING(K63*CEILING(MAX(OFFSET(J63,M63,0),OFFSET(I63,M63,0)),roundto),roundto)+add_margin)) -> 4010000 | M63: =IF(INDIRECT("Calendar!E"&MATCH($A63,Calendar!A:A,0)-1),0,IF(INDIRECT("Calendar!E"&MATCH($A63,Calendar!A:A,0)-2),1,2)) -> 0
A64: 2025-07-21 | B64: 1637678 | C64: 373375 | D64: 1637678 | E64: 215 | F64: =IF($A64="","",IF(E64=0,0,SUMPRODUCT($D66:$D315,Parameter!$B$14:$B$263)/E64)) -> 346290.8858 | G64: =IF($A64="","",IF(E64=0,0,SQRT(SUMPRODUCT(IF($D66:$D315>0,(($D66:$D315)-$F64)^2,0),Parameter!$B$14:$B$263)/E64))) -> 507525.879 | H64: 2274889.226 | I64: 2274889.226 | J64: 3953004.8 | K64: =IF($A65="","",IF($I$3="YES",VLOOKUP(OFFSET(A65,M64,0),Calendar!$A$2:$C$10000,3,FALSE),1)) -> 1 | L64: =IF(A65="","",IF(VLOOKUP(A64,Calendar!A:E,5,FALSE)=0,"",CEILING(K64*CEILING(MAX(OFFSET(J64,M64,0),OFFSET(I64,M64,0)),roundto),roundto)+add_margin)) -> 4010000 | M64: =IF(INDIRECT("Calendar!E"&MATCH($A64,Calendar!A:A,0)-1),0,IF(INDIRECT("Calendar!E"&MATCH($A64,Calendar!A:A,0)-2),1,2)) -> 0
A65: 2025-07-18 | B65: 489865 | C65: 286974 | D65: 489865 | E65: 215 | F65: =IF($A65="","",IF(E65=0,0,SUMPRODUCT($D67:$D316,Parameter!$B$14:$B$263)/E65)) -> 349157.2304 | G65: =IF($A65="","",IF(E65=0,0,SQRT(SUMPRODUCT(IF($D67:$D316>0,(($D67:$D316)-$F65)^2,0),Parameter!$B$14:$B$263)/E65))) -> 509137.1225 | H65: 2283878.296 | I65: 2283878.296 | J65: 3953004.8 | K65: =IF($A66="","",IF($I$3="YES",VLOOKUP(OFFSET(A66,M65,0),Calendar!$A$2:$C$10000,3,FALSE),1)) -> 1 | L65: =IF(A66="","",IF(VLOOKUP(A65,Calendar!A:E,5,FALSE)=0,"",CEILING(K65*CEILING(MAX(OFFSET(J65,M65,0),OFFSET(I65,M65,0)),roundto),roundto)+add_margin)) -> 4010000 | M65: =IF(INDIRECT("Calendar!E"&MATCH($A65,Calendar!A:A,0)-1),0,IF(INDIRECT("Calendar!E"&MATCH($A65,Calendar!A:A,0)-2),1,2)) -> 0
A66: 2025-07-17 | B66: 245244 | C66: 162842 | D66: 245244 | E66: 215 | F66: =IF($A66="","",IF(E66=0,0,SUMPRODUCT($D68:$D317,Parameter!$B$14:$B$263)/E66)) -> 350304.874 | G66: =IF($A66="","",IF(E66=0,0,SQRT(SUMPRODUCT(IF($D68:$D317>0,(($D68:$D317)-$F66)^2,0),Parameter!$B$14:$B$263)/E66))) -> 511033.4807 | H66: 2292232.101 | I66: 2292232.101 | J66: 3953004.8 | K66: =IF($A67="","",IF($I$3="YES",VLOOKUP(OFFSET(A67,M66,0),Calendar!$A$2:$C$10000,3,FALSE),1)) -> 1 | L66: =IF(A67="","",IF(VLOOKUP(A66,Calendar!A:E,5,FALSE)=0,"",CEILING(K66*CEILING(MAX(OFFSET(J66,M66,0),OFFSET(I66,M66,0)),roundto),roundto)+add_margin)) -> 4010000 | M66: =IF(INDIRECT("Calendar!E"&MATCH($A66,Calendar!A:A,0)-1),0,IF(INDIRECT("Calendar!E"&MATCH($A66,Calendar!A:A,0)-2),1,2)) -> 0
A67: 2025-07-16 | B67: 576536 | C67: 612163 | D67: 576536 | E67: 215 | F67: =IF($A67="","",IF(E67=0,0,SUMPRODUCT($D69:$D318,Parameter!$B$14:$B$263)/E67)) -> 349924.6805 | G67: =IF($A67="","",IF(E67=0,0,SQRT(SUMPRODUCT(IF($D69:$D318>0,(($D69:$D318)-$F67)^2,0),Parameter!$B$14:$B$263)/E67))) -> 512439.6662 | H67: 2297195.412 | I67: 2297195.412 | J67: 3953004.8 | K67: =IF($A68="","",IF($I$3="YES",VLOOKUP(OFFSET(A68,M67,0),Calendar!$A$2:$C$10000,3,FALSE),1)) -> 1 | L67: =IF(A68="","",IF(VLOOKUP(A67,Calendar!A:E,5,FALSE)=0,"",CEILING(K67*CEILING(MAX(OFFSET(J67,M67,0),OFFSET(I67,M67,0)),roundto),roundto)+add_margin)) -> 4010000 | M67: =IF(INDIRECT("Calendar!E"&MATCH($A67,Calendar!A:A,0)-1),0,IF(INDIRECT("Calendar!E"&MATCH($A67,Calendar!A:A,0)-2),1,2)) -> 0
A68: 2025-07-15 | B68: 920563 | C68: 976776 | D68: 920563 | E68: 215 | F68: =IF($A68="","",IF(E68=0,0,SUMPRODUCT($D70:$D319,Parameter!$B$14:$B$263)/E68)) -> 348518.6197 | G68: =IF($A68="","",IF(E68=0,0,SQRT(SUMPRODUCT(IF($D70:$D319>0,(($D70:$D319)-$F68)^2,0),Parameter!$B$14:$B$263)/E68))) -> 513065.2641 | H68: 2298166.623 | I68: 2298166.623 | J68: 3953004.8 | K68: =IF($A69="","",IF($I$3="YES",VLOOKUP(OFFSET(A69,M68,0),Calendar!$A$2:$C$10000,3,FALSE),1)) -> 1 | L68: =IF(A69="","",IF(VLOOKUP(A68,Calendar!A:E,5,FALSE)=0,"",CEILING(K68*CEILING(MAX(OFFSET(J68,M68,0),OFFSET(I68,M68,0)),roundto),roundto)+add_margin)) -> 4010000 | M68: =IF(INDIRECT("Calendar!E"&MATCH($A68,Calendar!A:A,0)-1),0,IF(INDIRECT("Calendar!E"&MATCH($A68,Calendar!A:A,0)-2),1,2)) -> 0
A69: 2025-07-14 | B69: 1106078 | C69: 430946 | D69: 1106078 | E69: 214 | F69: =IF($A69="","",IF(E69=0,0,SUMPRODUCT($D71:$D320,Parameter!$B$14:$B$263)/E69)) -> 351335.3744 | G69: =IF($A69="","",IF(E69=0,0,SQRT(SUMPRODUCT(IF($D71:$D320>0,(($D71:$D320)-$F69)^2,0),Parameter!$B$14:$B$263)/E69))) -> 515501.1982 | H69: 2310239.928 | I69: 2310239.928 | J69: 3953004.8 | K69: =IF($A70="","",IF($I$3="YES",VLOOKUP(OFFSET(A70,M69,0),Calendar!$A$2:$C$10000,3,FALSE),1)) -> 1 | L69: =IF(A70="","",IF(VLOOKUP(A69,Calendar!A:E,5,FALSE)=0,"",CEILING(K69*CEILING(MAX(OFFSET(J69,M69,0),OFFSET(I69,M69,0)),roundto),roundto)+add_margin)) -> 4010000 | M69: =IF(INDIRECT("Calendar!E"&MATCH($A69,Calendar!A:A,0)-1),0,IF(INDIRECT("Calendar!E"&MATCH($A69,Calendar!A:A,0)-2),1,2)) -> 0
A70: 2025-07-11 | B70: 502617 | C70: 504279 | D70: 502617 | E70: 214 | F70: =IF($A70="","",IF(E70=0,0,SUMPRODUCT($D72:$D321,Parameter!$B$14:$B$263)/E70)) -> 351476.2471 | G70: =IF($A70="","",IF(E70=0,0,SQRT(SUMPRODUCT(IF($D72:$D321>0,(($D72:$D321)-$F70)^2,0),Parameter!$B$14:$B$263)/E70))) -> 517323.2597 | H70: 2317304.634 | I70: 2317304.634 | J70: 3953004.8 | K70: =IF($A71="","",IF($I$3="YES",VLOOKUP(OFFSET(A71,M70,0),Calendar!$A$2:$C$10000,3,FALSE),1)) -> 1 | L70: =IF(A71="","",IF(VLOOKUP(A70,Calendar!A:E,5,FALSE)=0,"",CEILING(K70*CEILING(MAX(OFFSET(J70,M70,0),OFFSET(I70,M70,0)),roundto),roundto)+add_margin)) -> 4010000 | M70: =IF(INDIRECT("Calendar!E"&MATCH($A70,Calendar!A:A,0)-1),0,IF(INDIRECT("Calendar!E"&MATCH($A70,Calendar!A:A,0)-2),1,2)) -> 0
A71: 2025-07-10 | B71: 749778 | C71: 555003 | D71: 749778 | E71: 214 | F71: =IF($A71="","",IF(E71=0,0,SUMPRODUCT($D73:$D322,Parameter!$B$14:$B$263)/E71)) -> 352600.2525 | G71: =IF($A71="","",IF(E71=0,0,SQRT(SUMPRODUCT(IF($D73:$D322>0,(($D73:$D322)-$F71)^2,0),Parameter!$B$14:$B$263)/E71))) -> 519305.9583 | H71: 2325962.894 | I71: 2325962.894 | J71: 3953004.8 | K71: =IF($A72="","",IF($I$3="YES",VLOOKUP(OFFSET(A72,M71,0),Calendar!$A$2:$C$10000,3,FALSE),1)) -> 1 | L71: =IF(A72="","",IF(VLOOKUP(A71,Calendar!A:E,5,FALSE)=0,"",CEILING(K71*CEILING(MAX(OFFSET(J71,M71,0),OFFSET(I71,M71,0)),roundto),roundto)+add_margin)) -> 4010000 | M71: =IF(INDIRECT("Calendar!E"&MATCH($A71,Calendar!A:A,0)-1),0,IF(INDIRECT("Calendar!E"&MATCH($A71,Calendar!A:A,0)-2),1,2)) -> 0
A72: 2025-07-09 | B72: 530542 | C72: 379485 | D72: 530542 | E72: 214 | F72: =IF($A72="","",IF(E72=0,0,SUMPRODUCT($D74:$D323,Parameter!$B$14:$B$263)/E72)) -> 350172.5434 | G72: =IF($A72="","",IF(E72=0,0,SQRT(SUMPRODUCT(IF($D74:$D323>0,(($D74:$D323)-$F72)^2,0),Parameter!$B$14:$B$263)/E72))) -> 518920.6771 | H72: 2322071.117 | I72: 2322071.117 | J72: 3953004.8 | K72: =IF($A73="","",IF($I$3="YES",VLOOKUP(OFFSET(A73,M72,0),Calendar!$A$2:$C$10000,3,FALSE),1)) -> 1 | L72: =IF(A73="","",IF(VLOOKUP(A72,Calendar!A:E,5,FALSE)=0,"",CEILING(K72*CEILING(MAX(OFFSET(J72,M72,0),OFFSET(I72,M72,0)),roundto),roundto)+add_margin)) -> 4010000 | M72: =IF(INDIRECT("Calendar!E"&MATCH($A72,Calendar!A:A,0)-1),0,IF(INDIRECT("Calendar!E"&MATCH($A72,Calendar!A:A,0)-2),1,2)) -> 0
A73: 2025-07-08 | B73: 1303974 | C73: 1356436 | D73: 1303974 | E73: 214 | F73: =IF($A73="","",IF(E73=0,0,SUMPRODUCT($D75:$D324,Parameter!$B$14:$B$263)/E73)) -> 346109.745 | G73: =IF($A73="","",IF(E73=0,0,SQRT(SUMPRODUCT(IF($D75:$D324>0,(($D75:$D324)-$F73)^2,0),Parameter!$B$14:$B$263)/E73))) -> 515469.8675 | H73: 2304895.241 | I73: 2304895.241 | J73: 3953004.8 | K73: =IF($A74="","",IF($I$3="YES",VLOOKUP(OFFSET(A74,M73,0),Calendar!$A$2:$C$10000,3,FALSE),1)) -> 1 | L73: =IF(A74="","",IF(VLOOKUP(A73,Calendar!A:E,5,FALSE)=0,"",CEILING(K73*CEILING(MAX(OFFSET(J73,M73,0),OFFSET(I73,M73,0)),roundto),roundto)+add_margin)) -> 4010000 | M73: =IF(INDIRECT("Calendar!E"&MATCH($A73,Calendar!A:A,0)-1),0,IF(INDIRECT("Calendar!E"&MATCH($A73,Calendar!A:A,0)-2),1,2)) -> 0
A74: 2025-07-07 | B74: 1668819 | C74: 639812 | D74: 1668819 | E74: 214 | F74: =IF($A74="","",IF(E74=0,0,SUMPRODUCT($D76:$D325,Parameter!$B$14:$B$263)/E74)) -> 345637.6517 | G74: =IF($A74="","",IF(E74=0,0,SQRT(SUMPRODUCT(IF($D76:$D325>0,(($D76:$D325)-$F74)^2,0),Parameter!$B$14:$B$263)/E74))) -> 517098.9988 | H74: 2310613.847 | I74: 2310613.847 | J74: 3953004.8 | K74: =IF($A75="","",IF($I$3="YES",VLOOKUP(OFFSET(A75,M74,0),Calendar!$A$2:$C$10000,3,FALSE),1)) -> 1 | L74: =IF(A75="","",IF(VLOOKUP(A74,Calendar!A:E,5,FALSE)=0,"",CEILING(K74*CEILING(MAX(OFFSET(J74,M74,0),OFFSET(I74,M74,0)),roundto),roundto)+add_margin)) -> 4010000 | M74: =IF(INDIRECT("Calendar!E"&MATCH($A74,Calendar!A:A,0)-1),0,IF(INDIRECT("Calendar!E"&MATCH($A74,Calendar!A:A,0)-2),1,2)) -> 0
A75: 2025-07-04 | B75: 859618 | C75: 611591 | D75: 859618 | E75: 214 | F75: =IF($A75="","",IF(E75=0,0,SUMPRODUCT($D77:$D326,Parameter!$B$14:$B$263)/E75)) -> 344830.5795 | G75: =IF($A75="","",IF(E75=0,0,SQRT(SUMPRODUCT(IF($D77:$D326>0,(($D77:$D326)-$F75)^2,0),Parameter!$B$14:$B$263)/E75))) -> 518375.8871 | H75: =IF($A75="","",F75+alpha*G75) -> 2314658.95 | I75: 2314658.95 | J75: =IF($A75="","",beta*MAX(0,C76,INDIRECT("B" & ROW(A77) & ":B" & ROW(A77) + window_size_max-2))) -> 3953004.8 | K75: =IF($A76="","",IF($I$3="YES",VLOOKUP(OFFSET(A76,M75,0),Calendar!$A$2:$C$10000,3,FALSE),1)) -> 1 | L75: =IF(A76="","",IF(VLOOKUP(A75,Calendar!A:E,5,FALSE)=0,"",CEILING(K75*CEILING(MAX(OFFSET(J75,M75,0),OFFSET(I75,M75,0)),roundto),roundto)+add_margin)) -> 4010000 | M75: =IF(INDIRECT("Calendar!E"&MATCH($A75,Calendar!A:A,0)-1),0,IF(INDIRECT("Calendar!E"&MATCH($A75,Calendar!A:A,0)-2),1,2)) -> 0
A76: 2025-07-03 | B76: 956969 | C76: 740737 | D76: =IF(B76>minIMSM,B76,minIMSM) -> 956969 | E76: =COUNTIF($D78:$D327,">0") -> 214 | F76: =IF($A76="","",IF(E76=0,0,SUMPRODUCT($D78:$D327,Parameter!$B$14:$B$263)/E76)) -> 342919.8078 | G76: =IF($A76="","",IF(E76=0,0,SQRT(SUMPRODUCT(IF($D78:$D327>0,(($D78:$D327)-$F76)^2,0),Parameter!$B$14:$B$263)/E76))) -> 518538.5042 | H76: 2313366.124 | I76: =IF($A76="","",IF($D78>0,$H76,MIN($H76,I77))) -> 2313366.124 | J76: 3953004.8 | K76: =IF($A77="","",IF($I$3="YES",VLOOKUP(OFFSET(A77,M76,0),Calendar!$A$2:$C$10000,3,FALSE),1)) -> 1 | L76: =IF(A77="","",IF(VLOOKUP(A76,Calendar!A:E,5,FALSE)=0,"",CEILING(K76*CEILING(MAX(OFFSET(J76,M76,0),OFFSET(I76,M76,0)),roundto),roundto)+add_margin)) -> 4010000 | M76: =IF(INDIRECT("Calendar!E"&MATCH($A76,Calendar!A:A,0)-1),0,IF(INDIRECT("Calendar!E"&MATCH($A76,Calendar!A:A,0)-2),1,2)) -> 0
A77: 2025-07-02 | B77: 1200186 | C77: 768569 | D77: 1200186 | E77: 214 | F77: =IF($A77="","",IF(E77=0,0,SUMPRODUCT($D79:$D328,Parameter!$B$14:$B$263)/E77)) -> 339360.203 | G77: =IF($A77="","",IF(E77=0,0,SQRT(SUMPRODUCT(IF($D79:$D328>0,(($D79:$D328)-$F77)^2,0),Parameter!$B$14:$B$263)/E77))) -> 516101.2754 | H77: 2300545.05 | I77: 2300545.05 | J77: 3953004.8 | K77: =IF($A78="","",IF($I$3="YES",VLOOKUP(OFFSET(A78,M77,0),Calendar!$A$2:$C$10000,3,FALSE),1)) -> 1 | L77: =IF(A78="","",IF(VLOOKUP(A77,Calendar!A:E,5,FALSE)=0,"",CEILING(K77*CEILING(MAX(OFFSET(J77,M77,0),OFFSET(I77,M77,0)),roundto),roundto)+add_margin)) -> 4010000 | M77: =IF(INDIRECT("Calendar!E"&MATCH($A77,Calendar!A:A,0)-1),0,IF(INDIRECT("Calendar!E"&MATCH($A77,Calendar!A:A,0)-2),1,2)) -> 0
A78: 2025-07-01 | B78: 1552882 | C78: 1292183 | D78: 1552882 | E78: 214 | F78: =IF($A78="","",IF(E78=0,0,SUMPRODUCT($D80:$D329,Parameter!$B$14:$B$263)/E78)) -> 336749.4757 | G78: =IF($A78="","",IF(E78=0,0,SQRT(SUMPRODUCT(IF($D80:$D329>0,(($D80:$D329)-$F78)^2,0),Parameter!$B$14:$B$263)/E78))) -> 515408.0554 | H78: 2295300.086 | I78: 2295300.086 | J78: 3953004.8 | K78: =IF($A79="","",IF($I$3="YES",VLOOKUP(OFFSET(A79,M78,0),Calendar!$A$2:$C$10000,3,FALSE),1)) -> 1 | L78: =IF(A79="","",IF(VLOOKUP(A78,Calendar!A:E,5,FALSE)=0,"",CEILING(K78*CEILING(MAX(OFFSET(J78,M78,0),OFFSET(I78,M78,0)),roundto),roundto)+add_margin)) -> 4010000 | M78: =IF(INDIRECT("Calendar!E"&MATCH($A78,Calendar!A:A,0)-1),0,IF(INDIRECT("Calendar!E"&MATCH($A78,Calendar!A:A,0)-2),1,2)) -> 0
A79: 2025-06-30 | B79: 1326920 | C79: 347774 | D79: 1326920 | E79: 213 | F79: =IF($A79="","",IF(E79=0,0,SUMPRODUCT($D81:$D330,Parameter!$B$14:$B$263)/E79)) -> 338010.5536 | G79: =IF($A79="","",IF(E79=0,0,SQRT(SUMPRODUCT(IF($D81:$D330>0,(($D81:$D330)-$F79)^2,0),Parameter!$B$14:$B$263)/E79))) -> 517725.5194 | H79: 2305367.527 | I79: 2305367.527 | J79: 3953004.8 | K79: =IF($A80="","",IF($I$3="YES",VLOOKUP(OFFSET(A80,M79,0),Calendar!$A$2:$C$10000,3,FALSE),1)) -> 1 | L79: =IF(A80="","",IF(VLOOKUP(A79,Calendar!A:E,5,FALSE)=0,"",CEILING(K79*CEILING(MAX(OFFSET(J79,M79,0),OFFSET(I79,M79,0)),roundto),roundto)+add_margin)) -> 4010000 | M79: =IF(INDIRECT("Calendar!E"&MATCH($A79,Calendar!A:A,0)-1),0,IF(INDIRECT("Calendar!E"&MATCH($A79,Calendar!A:A,0)-2),1,2)) -> 0
A80: 2025-06-27 | B80: 796063 | C80: 703653 | D80: 796063 | E80: 213 | F80: =IF($A80="","",IF(E80=0,0,SUMPRODUCT($D82:$D331,Parameter!$B$14:$B$263)/E80)) -> 334938.61 | G80: =IF($A80="","",IF(E80=0,0,SQRT(SUMPRODUCT(IF($D82:$D331>0,(($D82:$D331)-$F80)^2,0),Parameter!$B$14:$B$263)/E80))) -> 516270.5557 | H80: 2296766.722 | I80: 2296766.722 | J80: 3953004.8 | K80: =IF($A81="","",IF($I$3="YES",VLOOKUP(OFFSET(A81,M80,0),Calendar!$A$2:$C$10000,3,FALSE),1)) -> 1 | L80: =IF(A81="","",IF(VLOOKUP(A80,Calendar!A:E,5,FALSE)=0,"",CEILING(K80*CEILING(MAX(OFFSET(J80,M80,0),OFFSET(I80,M80,0)),roundto),roundto)+add_margin)) -> 4010000 | M80: =IF(INDIRECT("Calendar!E"&MATCH($A80,Calendar!A:A,0)-1),0,IF(INDIRECT("Calendar!E"&MATCH($A80,Calendar!A:A,0)-2),1,2)) -> 0
A81: 2025-06-26 | B81: 1427988 | C81: 995701 | D81: 1427988 | E81: 213 | F81: =IF($A81="","",IF(E81=0,0,SUMPRODUCT($D83:$D332,Parameter!$B$14:$B$263)/E81)) -> 334192.1632 | G81: =IF($A81="","",IF(E81=0,0,SQRT(SUMPRODUCT(IF($D83:$D332>0,(($D83:$D332)-$F81)^2,0),Parameter!$B$14:$B$263)/E81))) -> 517618.5055 | H81: 2301142.484 | I81: 2301142.484 | J81: 3953004.8 | K81: =IF($A82="","",IF($I$3="YES",VLOOKUP(OFFSET(A82,M81,0),Calendar!$A$2:$C$10000,3,FALSE),1)) -> 1 | L81: =IF(A82="","",IF(VLOOKUP(A81,Calendar!A:E,5,FALSE)=0,"",CEILING(K81*CEILING(MAX(OFFSET(J81,M81,0),OFFSET(I81,M81,0)),roundto),roundto)+add_margin)) -> 4010000 | M81: =IF(INDIRECT("Calendar!E"&MATCH($A81,Calendar!A:A,0)-1),0,IF(INDIRECT("Calendar!E"&MATCH($A81,Calendar!A:A,0)-2),1,2)) -> 0
A82: 2025-06-25 | B82: 928174 | C82: 538325 | D82: 928174 | E82: 213 | F82: =IF($A82="","",IF(E82=0,0,SUMPRODUCT($D84:$D333,Parameter!$B$14:$B$263)/E82)) -> 329134.9807 | G82: =IF($A82="","",IF(E82=0,0,SQRT(SUMPRODUCT(IF($D84:$D333>0,(($D84:$D333)-$F82)^2,0),Parameter!$B$14:$B$263)/E82))) -> 511495.5352 | H82: 2272818.014 | I82: 2272818.014 | J82: 3953004.8 | K82: =IF($A83="","",IF($I$3="YES",VLOOKUP(OFFSET(A83,M82,0),Calendar!$A$2:$C$10000,3,FALSE),1)) -> 1 | L82: =IF(A83="","",IF(VLOOKUP(A82,Calendar!A:E,5,FALSE)=0,"",CEILING(K82*CEILING(MAX(OFFSET(J82,M82,0),OFFSET(I82,M82,0)),roundto),roundto)+add_margin)) -> 4010000 | M82: =IF(INDIRECT("Calendar!E"&MATCH($A82,Calendar!A:A,0)-1),0,IF(INDIRECT("Calendar!E"&MATCH($A82,Calendar!A:A,0)-2),1,2)) -> 0
A83: 2025-06-24 | B83: 1902723 | C83: 1724674 | D83: 1902723 | E83: 213 | F83: =IF($A83="","",IF(E83=0,0,SUMPRODUCT($D85:$D334,Parameter!$B$14:$B$263)/E83)) -> 323433.8653 | G83: =IF($A83="","",IF(E83=0,0,SQRT(SUMPRODUCT(IF($D85:$D334>0,(($D85:$D334)-$F83)^2,0),Parameter!$B$14:$B$263)/E83))) -> 504251.9472 | H83: 2239591.265 | I83: 2239591.265 | J83: 3953004.8 | K83: =IF($A84="","",IF($I$3="YES",VLOOKUP(OFFSET(A84,M83,0),Calendar!$A$2:$C$10000,3,FALSE),1)) -> 1 | L83: =IF(A84="","",IF(VLOOKUP(A83,Calendar!A:E,5,FALSE)=0,"",CEILING(K83*CEILING(MAX(OFFSET(J83,M83,0),OFFSET(I83,M83,0)),roundto),roundto)+add_margin)) -> 4010000 | M83: =IF(INDIRECT("Calendar!E"&MATCH($A83,Calendar!A:A,0)-1),0,IF(INDIRECT("Calendar!E"&MATCH($A83,Calendar!A:A,0)-2),1,2)) -> 0
A84: 2025-06-23 | B84: 1955406 | C84: 642623 | D84: 1955406 | E84: 213 | F84: =IF($A84="","",IF(E84=0,0,SUMPRODUCT($D86:$D335,Parameter!$B$14:$B$263)/E84)) -> 322993.7957 | G84: =IF($A84="","",IF(E84=0,0,SQRT(SUMPRODUCT(IF($D86:$D335>0,(($D86:$D335)-$F84)^2,0),Parameter!$B$14:$B$263)/E84))) -> 505909.1975 | H84: 2245448.746 | I84: 2245448.746 | J84: 3953004.8 | K84: =IF($A85="","",IF($I$3="YES",VLOOKUP(OFFSET(A85,M84,0),Calendar!$A$2:$C$10000,3,FALSE),1)) -> 1 | L84: =IF(A85="","",IF(VLOOKUP(A84,Calendar!A:E,5,FALSE)=0,"",CEILING(K84*CEILING(MAX(OFFSET(J84,M84,0),OFFSET(I84,M84,0)),roundto),roundto)+add_margin)) -> 4010000 | M84: =IF(INDIRECT("Calendar!E"&MATCH($A84,Calendar!A:A,0)-1),0,IF(INDIRECT("Calendar!E"&MATCH($A84,Calendar!A:A,0)-2),1,2)) -> 0
A85: 2025-06-20 | B85: 804904 | C85: 345668 | D85: 804904 | E85: 212 | F85: =IF($A85="","",IF(E85=0,0,SUMPRODUCT($D87:$D336,Parameter!$B$14:$B$263)/E85)) -> 324497.1299 | G85: =IF($A85="","",IF(E85=0,0,SQRT(SUMPRODUCT(IF($D87:$D336>0,(($D87:$D336)-$F85)^2,0),Parameter!$B$14:$B$263)/E85))) -> 508368.349 | H85: 2256296.856 | I85: 2256296.856 | J85: 3953004.8 | K85: =IF($A86="","",IF($I$3="YES",VLOOKUP(OFFSET(A86,M85,0),Calendar!$A$2:$C$10000,3,FALSE),1)) -> 1 | L85: =IF(A86="","",IF(VLOOKUP(A85,Calendar!A:E,5,FALSE)=0,"",CEILING(K85*CEILING(MAX(OFFSET(J85,M85,0),OFFSET(I85,M85,0)),roundto),roundto)+add_margin)) -> 4010000 | M85: =IF(INDIRECT("Calendar!E"&MATCH($A85,Calendar!A:A,0)-1),0,IF(INDIRECT("Calendar!E"&MATCH($A85,Calendar!A:A,0)-2),1,2)) -> 0
A86: 2025-06-19 | B86: 699213 | C86: 617360 | D86: 699213 | E86: 211 | F86: =IF($A86="","",IF(E86=0,0,SUMPRODUCT($D88:$D337,Parameter!$B$14:$B$263)/E86)) -> 324583.2288 | G86: =IF($A86="","",IF(E86=0,0,SQRT(SUMPRODUCT(IF($D88:$D337>0,(($D88:$D337)-$F86)^2,0),Parameter!$B$14:$B$263)/E86))) -> 509979.3587 | H86: 2262504.792 | I86: 2262504.792 | J86: 3953004.8 | K86: =IF($A87="","",IF($I$3="YES",VLOOKUP(OFFSET(A87,M86,0),Calendar!$A$2:$C$10000,3,FALSE),1)) -> 1 | L86: =IF(A87="","",IF(VLOOKUP(A86,Calendar!A:E,5,FALSE)=0,"",CEILING(K86*CEILING(MAX(OFFSET(J86,M86,0),OFFSET(I86,M86,0)),roundto),roundto)+add_margin)) -> 4010000 | M86: =IF(INDIRECT("Calendar!E"&MATCH($A86,Calendar!A:A,0)-1),0,IF(INDIRECT("Calendar!E"&MATCH($A86,Calendar!A:A,0)-2),1,2)) -> 0
A87: 2025-06-18 | B87: 1001213 | C87: 570360 | D87: 1001213 | E87: 211 | F87: =IF($A87="","",IF(E87=0,0,SUMPRODUCT($D89:$D338,Parameter!$B$14:$B$263)/E87)) -> 316286.5889 | G87: =IF($A87="","",IF(E87=0,0,SQRT(SUMPRODUCT(IF($D89:$D338>0,(($D89:$D338)-$F87)^2,0),Parameter!$B$14:$B$263)/E87))) -> 494499.0997 | H87: 2195383.168 | I87: 2195383.168 | J87: 3953004.8 | K87: =IF($A88="","",IF($I$3="YES",VLOOKUP(OFFSET(A88,M87,0),Calendar!$A$2:$C$10000,3,FALSE),1)) -> 1 | L87: =IF(A88="","",IF(VLOOKUP(A87,Calendar!A:E,5,FALSE)=0,"",CEILING(K87*CEILING(MAX(OFFSET(J87,M87,0),OFFSET(I87,M87,0)),roundto),roundto)+add_margin)) -> 4010000 | M87: =IF(INDIRECT("Calendar!E"&MATCH($A87,Calendar!A:A,0)-1),0,IF(INDIRECT("Calendar!E"&MATCH($A87,Calendar!A:A,0)-2),1,2)) -> 0
A88: 2025-06-17 | B88: 2460140 | C88: 2054479 | D88: 2460140 | E88: 211 | F88: =IF($A88="","",IF(E88=0,0,SUMPRODUCT($D90:$D339,Parameter!$B$14:$B$263)/E88)) -> 307862.4698 | G88: =IF($A88="","",IF(E88=0,0,SQRT(SUMPRODUCT(IF($D90:$D339>0,(($D90:$D339)-$F88)^2,0),Parameter!$B$14:$B$263)/E88))) -> 477914.9922 | H88: 2123939.44 | I88: 2123939.44 | J88: 3861900.8 | K88: =IF($A89="","",IF($I$3="YES",VLOOKUP(OFFSET(A89,M88,0),Calendar!$A$2:$C$10000,3,FALSE),1)) -> 1 | L88: =IF(A89="","",IF(VLOOKUP(A88,Calendar!A:E,5,FALSE)=0,"",CEILING(K88*CEILING(MAX(OFFSET(J88,M88,0),OFFSET(I88,M88,0)),roundto),roundto)+add_margin)) -> 3920000 | M88: =IF(INDIRECT("Calendar!E"&MATCH($A88,Calendar!A:A,0)-1),0,IF(INDIRECT("Calendar!E"&MATCH($A88,Calendar!A:A,0)-2),1,2)) -> 0
A89: 2025-06-16 | B89: 2470628 | C89: 761079 | D89: 2470628 | E89: 210 | F89: =IF($A89="","",IF(E89=0,0,SUMPRODUCT($D91:$D340,Parameter!$B$14:$B$263)/E89)) -> 306660.326 | G89: =IF($A89="","",IF(E89=0,0,SQRT(SUMPRODUCT(IF($D91:$D340>0,(($D91:$D340)-$F89)^2,0),Parameter!$B$14:$B$263)/E89))) -> 477873.2146 | H89: 2122578.542 | I89: 2122578.542 | J89: 3861900.8 | K89: =IF($A90="","",IF($I$3="YES",VLOOKUP(OFFSET(A90,M89,0),Calendar!$A$2:$C$10000,3,FALSE),1)) -> 1 | L89: =IF(A90="","",IF(VLOOKUP(A89,Calendar!A:E,5,FALSE)=0,"",CEILING(K89*CEILING(MAX(OFFSET(J89,M89,0),OFFSET(I89,M89,0)),roundto),roundto)+add_margin)) -> 3920000 | M89: =IF(INDIRECT("Calendar!E"&MATCH($A89,Calendar!A:A,0)-1),0,IF(INDIRECT("Calendar!E"&MATCH($A89,Calendar!A:A,0)-2),1,2)) -> 0
A90: 2025-06-13 | B90: 1216464 | C90: 546597 | D90: 1216464 | E90: 210 | F90: =IF($A90="","",IF(E90=0,0,SUMPRODUCT($D92:$D341,Parameter!$B$14:$B$263)/E90)) -> 303511.7113 | G90: =IF($A90="","",IF(E90=0,0,SQRT(SUMPRODUCT(IF($D92:$D341>0,(($D92:$D341)-$F90)^2,0),Parameter!$B$14:$B$263)/E90))) -> 476227.3621 | H90: 2113175.687 | I90: 2113175.687 | J90: 3861900.8 | K90: =IF($A91="","",IF($I$3="YES",VLOOKUP(OFFSET(A91,M90,0),Calendar!$A$2:$C$10000,3,FALSE),1)) -> 1 | L90: =IF(A91="","",IF(VLOOKUP(A90,Calendar!A:E,5,FALSE)=0,"",CEILING(K90*CEILING(MAX(OFFSET(J90,M90,0),OFFSET(I90,M90,0)),roundto),roundto)+add_margin)) -> 3920000 | M90: =IF(INDIRECT("Calendar!E"&MATCH($A90,Calendar!A:A,0)-1),0,IF(INDIRECT("Calendar!E"&MATCH($A90,Calendar!A:A,0)-2),1,2)) -> 0
A91: 2025-06-12 | B91: 1345630 | C91: 880627 | D91: 1345630 | E91: 209 | F91: =IF($A91="","",IF(E91=0,0,SUMPRODUCT($D93:$D342,Parameter!$B$14:$B$263)/E91)) -> 300371.8856 | G91: =IF($A91="","",IF(E91=0,0,SQRT(SUMPRODUCT(IF($D93:$D342>0,(($D93:$D342)-$F91)^2,0),Parameter!$B$14:$B$263)/E91))) -> 472582.4981 | H91: 2096185.378 | I91: 2096185.378 | J91: 3861900.8 | K91: =IF($A92="","",IF($I$3="YES",VLOOKUP(OFFSET(A92,M91,0),Calendar!$A$2:$C$10000,3,FALSE),1)) -> 1 | L91: =IF(A92="","",IF(VLOOKUP(A91,Calendar!A:E,5,FALSE)=0,"",CEILING(K91*CEILING(MAX(OFFSET(J91,M91,0),OFFSET(I91,M91,0)),roundto),roundto)+add_margin)) -> 3920000 | M91: =IF(INDIRECT("Calendar!E"&MATCH($A91,Calendar!A:A,0)-1),0,IF(INDIRECT("Calendar!E"&MATCH($A91,Calendar!A:A,0)-2),1,2)) -> 0
A92: 2025-06-11 | B92: 1603548 | C92: 834068 | D92: 1603548 | E92: 208 | F92: =IF($A92="","",IF(E92=0,0,SUMPRODUCT($D94:$D343,Parameter!$B$14:$B$263)/E92)) -> 293260.3582 | G92: =IF($A92="","",IF(E92=0,0,SQRT(SUMPRODUCT(IF($D94:$D343>0,(($D94:$D343)-$F92)^2,0),Parameter!$B$14:$B$263)/E92))) -> 456001.23 | H92: 2026065.032 | I92: 2026065.032 | J92: 3569328 | K92: =IF($A93="","",IF($I$3="YES",VLOOKUP(OFFSET(A93,M92,0),Calendar!$A$2:$C$10000,3,FALSE),1)) -> 1 | L92: =IF(A93="","",IF(VLOOKUP(A92,Calendar!A:E,5,FALSE)=0,"",CEILING(K92*CEILING(MAX(OFFSET(J92,M92,0),OFFSET(I92,M92,0)),roundto),roundto)+add_margin)) -> 3620000 | M92: =IF(INDIRECT("Calendar!E"&MATCH($A92,Calendar!A:A,0)-1),0,IF(INDIRECT("Calendar!E"&MATCH($A92,Calendar!A:A,0)-2),1,2)) -> 0
A93: 2025-06-10 | B93: 2413688 | C93: 1885322 | D93: 2413688 | E93: 207 | F93: =IF($A93="","",IF(E93=0,0,SUMPRODUCT($D95:$D344,Parameter!$B$14:$B$263)/E93)) -> 286907.9879 | G93: =IF($A93="","",IF(E93=0,0,SQRT(SUMPRODUCT(IF($D95:$D344>0,(($D95:$D344)-$F93)^2,0),Parameter!$B$14:$B$263)/E93))) -> 442071.1695 | H93: 1966778.432 | I93: 1966778.432 | J93: 3999868.8 | K93: =IF($A94="","",IF($I$3="YES",VLOOKUP(OFFSET(A94,M93,0),Calendar!$A$2:$C$10000,3,FALSE),1)) -> 1 | L93: =IF(A94="","",IF(VLOOKUP(A93,Calendar!A:E,5,FALSE)=0,"",CEILING(K93*CEILING(MAX(OFFSET(J93,M93,0),OFFSET(I93,M93,0)),roundto),roundto)+add_margin)) -> 4050000 | M93: =IF(INDIRECT("Calendar!E"&MATCH($A93,Calendar!A:A,0)-1),0,IF(INDIRECT("Calendar!E"&MATCH($A93,Calendar!A:A,0)-2),1,2)) -> 0
A94: 2025-06-09 | B94: 2224344 | C94: 304591 | D94: 2224344 | E94: 206 | F94: =IF($A94="","",IF(E94=0,0,SUMPRODUCT($D96:$D345,Parameter!$B$14:$B$263)/E94)) -> 286977.9758 | G94: =IF($A94="","",IF(E94=0,0,SQRT(SUMPRODUCT(IF($D96:$D345>0,(($D96:$D345)-$F94)^2,0),Parameter!$B$14:$B$263)/E94))) -> 443473.4357 | H94: 1972177.031 | I94: 1972177.031 | J94: 3999868.8 | K94: =IF($A95="","",IF($I$3="YES",VLOOKUP(OFFSET(A95,M94,0),Calendar!$A$2:$C$10000,3,FALSE),1)) -> 1 | L94: =IF(A95="","",IF(VLOOKUP(A94,Calendar!A:E,5,FALSE)=0,"",CEILING(K94*CEILING(MAX(OFFSET(J94,M94,0),OFFSET(I94,M94,0)),roundto),roundto)+add_margin)) -> 4050000 | M94: =IF(INDIRECT("Calendar!E"&MATCH($A94,Calendar!A:A,0)-1),0,IF(INDIRECT("Calendar!E"&MATCH($A94,Calendar!A:A,0)-2),1,2)) -> 0
A95: 2025-06-06 | B95: 872389 | C95: 624360 | D95: 872389 | E95: 205 | F95: =IF($A95="","",IF(E95=0,0,SUMPRODUCT($D97:$D346,Parameter!$B$14:$B$263)/E95)) -> 284748.9566 | G95: =IF($A95="","",IF(E95=0,0,SQRT(SUMPRODUCT(IF($D97:$D346>0,(($D97:$D346)-$F95)^2,0),Parameter!$B$14:$B$263)/E95))) -> 441632.0555 | H95: 1962950.767 | I95: 1962950.767 | J95: 3999868.8 | K95: =IF($A96="","",IF($I$3="YES",VLOOKUP(OFFSET(A96,M95,0),Calendar!$A$2:$C$10000,3,FALSE),1)) -> 1 | L95: =IF(A96="","",IF(VLOOKUP(A95,Calendar!A:E,5,FALSE)=0,"",CEILING(K95*CEILING(MAX(OFFSET(J95,M95,0),OFFSET(I95,M95,0)),roundto),roundto)+add_margin)) -> 4050000 | M95: =IF(INDIRECT("Calendar!E"&MATCH($A95,Calendar!A:A,0)-1),0,IF(INDIRECT("Calendar!E"&MATCH($A95,Calendar!A:A,0)-2),1,2)) -> 0
A96: 2025-06-05 | B96: 1341073 | C96: 837240 | D96: 1341073 | E96: 204 | F96: =IF($A96="","",IF(E96=0,0,SUMPRODUCT($D98:$D347,Parameter!$B$14:$B$263)/E96)) -> 284288.842 | G96: =IF($A96="","",IF(E96=0,0,SQRT(SUMPRODUCT(IF($D98:$D347>0,(($D98:$D347)-$F96)^2,0),Parameter!$B$14:$B$263)/E96))) -> 442557.2212 | H96: 1966006.283 | I96: 1966006.283 | J96: 3999868.8 | K96: =IF($A97="","",IF($I$3="YES",VLOOKUP(OFFSET(A97,M96,0),Calendar!$A$2:$C$10000,3,FALSE),1)) -> 1 | L96: =IF(A97="","",IF(VLOOKUP(A96,Calendar!A:E,5,FALSE)=0,"",CEILING(K96*CEILING(MAX(OFFSET(J96,M96,0),OFFSET(I96,M96,0)),roundto),roundto)+add_margin)) -> 4050000 | M96: =IF(INDIRECT("Calendar!E"&MATCH($A96,Calendar!A:A,0)-1),0,IF(INDIRECT("Calendar!E"&MATCH($A96,Calendar!A:A,0)-2),1,2)) -> 0
A97: 2025-06-04 | B97: 968244 | C97: 244658 | D97: 968244 | E97: 203 | F97: =IF($A97="","",IF(E97=0,0,SUMPRODUCT($D99:$D348,Parameter!$B$14:$B$263)/E97)) -> 278877.9265 | G97: =IF($A97="","",IF(E97=0,0,SQRT(SUMPRODUCT(IF($D99:$D348>0,(($D99:$D348)-$F97)^2,0),Parameter!$B$14:$B$263)/E97))) -> 432219.1346 | H97: 1921310.638 | I97: 1921310.638 | J97: 3999868.8 | K97: =IF($A98="","",IF($I$3="YES",VLOOKUP(OFFSET(A98,M97,0),Calendar!$A$2:$C$10000,3,FALSE),1)) -> 1 | L97: =IF(A98="","",IF(VLOOKUP(A97,Calendar!A:E,5,FALSE)=0,"",CEILING(K97*CEILING(MAX(OFFSET(J97,M97,0),OFFSET(I97,M97,0)),roundto),roundto)+add_margin)) -> 4050000 | M97: =IF(INDIRECT("Calendar!E"&MATCH($A97,Calendar!A:A,0)-1),0,IF(INDIRECT("Calendar!E"&MATCH($A97,Calendar!A:A,0)-2),1,2)) -> 0
A98: 2025-06-03 | B98: 1968512 | C98: 1942166 | D98: 1968512 | E98: 202 | F98: =IF($A98="","",IF(E98=0,0,SUMPRODUCT($D100:$D349,Parameter!$B$14:$B$263)/E98)) -> 272045.6915 | G98: =IF($A98="","",IF(E98=0,0,SQRT(SUMPRODUCT(IF($D100:$D349>0,(($D100:$D349)-$F98)^2,0),Parameter!$B$14:$B$263)/E98))) -> 416177.052 | H98: 1853518.489 | I98: 1853518.489 | J98: 3999868.8 | K98: =IF($A99="","",IF($I$3="YES",VLOOKUP(OFFSET(A99,M98,0),Calendar!$A$2:$C$10000,3,FALSE),1)) -> 1 | L98: =IF(A99="","",IF(VLOOKUP(A98,Calendar!A:E,5,FALSE)=0,"",CEILING(K98*CEILING(MAX(OFFSET(J98,M98,0),OFFSET(I98,M98,0)),roundto),roundto)+add_margin)) -> 4050000 | M98: =IF(INDIRECT("Calendar!E"&MATCH($A98,Calendar!A:A,0)-1),0,IF(INDIRECT("Calendar!E"&MATCH($A98,Calendar!A:A,0)-2),1,2)) -> 0
A99: 2025-06-02 | B99: 2230830 | C99: 433095 | D99: 2230830 | E99: 201 | F99: =IF($A99="","",IF(E99=0,0,SUMPRODUCT($D101:$D350,Parameter!$B$14:$B$263)/E99)) -> 271452.7802 | G99: =IF($A99="","",IF(E99=0,0,SQRT(SUMPRODUCT(IF($D101:$D350>0,(($D101:$D350)-$F99)^2,0),Parameter!$B$14:$B$263)/E99))) -> 416861.069 | H99: 1855524.842 | I99: 1855524.842 | J99: 3999868.8 | K99: =IF($A100="","",IF($I$3="YES",VLOOKUP(OFFSET(A100,M99,0),Calendar!$A$2:$C$10000,3,FALSE),1)) -> 1 | L99: =IF(A100="","",IF(VLOOKUP(A99,Calendar!A:E,5,FALSE)=0,"",CEILING(K99*CEILING(MAX(OFFSET(J99,M99,0),OFFSET(I99,M99,0)),roundto),roundto)+add_margin)) -> 4050000 | M99: =IF(INDIRECT("Calendar!E"&MATCH($A99,Calendar!A:A,0)-1),0,IF(INDIRECT("Calendar!E"&MATCH($A99,Calendar!A:A,0)-2),1,2)) -> 0
A100: 2025-05-30 | B100: 946304 | C100: 711805 | D100: 946304 | E100: 200 | F100: =IF($A100="","",IF(E100=0,0,SUMPRODUCT($D102:$D351,Parameter!$B$14:$B$263)/E100)) -> 268976.8511 | G100: =IF($A100="","",IF(E100=0,0,SQRT(SUMPRODUCT(IF($D102:$D351>0,(($D102:$D351)-$F100)^2,0),Parameter!$B$14:$B$263)/E100))) -> 414495.1625 | H100: 1844058.469 | I100: 1844058.469 | J100: 3999868.8 | K100: =IF($A101="","",IF($I$3="YES",VLOOKUP(OFFSET(A101,M100,0),Calendar!$A$2:$C$10000,3,FALSE),1)) -> 1 | L100: =IF(A101="","",IF(VLOOKUP(A100,Calendar!A:E,5,FALSE)=0,"",CEILING(K100*CEILING(MAX(OFFSET(J100,M100,0),OFFSET(I100,M100,0)),roundto),roundto)+add_margin)) -> 4050000 | M100: =IF(INDIRECT("Calendar!E"&MATCH($A100,Calendar!A:A,0)-1),0,IF(INDIRECT("Calendar!E"&MATCH($A100,Calendar!A:A,0)-2),1,2)) -> 0
A101: 2025-05-29 | B101: 1317770 | C101: 701250 | D101: 1317770 | E101: 199 | F101: =IF($A101="","",IF(E101=0,0,SUMPRODUCT($D103:$D352,Parameter!$B$14:$B$263)/E101)) -> 269022.1145 | G101: =IF($A101="","",IF(E101=0,0,SQRT(SUMPRODUCT(IF($D103:$D352>0,(($D103:$D352)-$F101)^2,0),Parameter!$B$14:$B$263)/E101))) -> 415887.8726 | H101: 1849396.031 | I101: 1849396.031 | J101: 3999868.8 | K101: =IF($A102="","",IF($I$3="YES",VLOOKUP(OFFSET(A102,M101,0),Calendar!$A$2:$C$10000,3,FALSE),1)) -> 1 | L101: =IF(A102="","",IF(VLOOKUP(A101,Calendar!A:E,5,FALSE)=0,"",CEILING(K101*CEILING(MAX(OFFSET(J101,M101,0),OFFSET(I101,M101,0)),roundto),roundto)+add_margin)) -> 4050000 | M101: =IF(INDIRECT("Calendar!E"&MATCH($A101,Calendar!A:A,0)-1),0,IF(INDIRECT("Calendar!E"&MATCH($A101,Calendar!A:A,0)-2),1,2)) -> 0
A102: 2025-05-28 | B102: 803357 | C102: 410002 | D102: 803357 | E102: 199 | F102: =IF($A102="","",IF(E102=0,0,SUMPRODUCT($D104:$D353,Parameter!$B$14:$B$263)/E102)) -> 265909.5019 | G102: =IF($A102="","",IF(E102=0,0,SQRT(SUMPRODUCT(IF($D104:$D353>0,(($D104:$D353)-$F102)^2,0),Parameter!$B$14:$B$263)/E102))) -> 414305.1486 | H102: 1840269.066 | I102: 1840269.066 | J102: 3999868.8 | K102: =IF($A103="","",IF($I$3="YES",VLOOKUP(OFFSET(A103,M102,0),Calendar!$A$2:$C$10000,3,FALSE),1)) -> 1 | L102: =IF(A103="","",IF(VLOOKUP(A102,Calendar!A:E,5,FALSE)=0,"",CEILING(K102*CEILING(MAX(OFFSET(J102,M102,0),OFFSET(I102,M102,0)),roundto),roundto)+add_margin)) -> 4050000 | M102: =IF(INDIRECT("Calendar!E"&MATCH($A102,Calendar!A:A,0)-1),0,IF(INDIRECT("Calendar!E"&MATCH($A102,Calendar!A:A,0)-2),1,2)) -> 0
A103: 2025-05-27 | B103: 1177722 | C103: 1027805 | D103: 1177722 | E103: 199 | F103: =IF($A103="","",IF(E103=0,0,SUMPRODUCT($D105:$D354,Parameter!$B$14:$B$263)/E103)) -> 265159.53 | G103: =IF($A103="","",IF(E103=0,0,SQRT(SUMPRODUCT(IF($D105:$D354>0,(($D105:$D354)-$F103)^2,0),Parameter!$B$14:$B$263)/E103))) -> 415452.7536 | H103: 1843879.994 | I103: 1843879.994 | J103: 3999868.8 | K103: =IF($A104="","",IF($I$3="YES",VLOOKUP(OFFSET(A104,M103,0),Calendar!$A$2:$C$10000,3,FALSE),1)) -> 1 | L103: =IF(A104="","",IF(VLOOKUP(A103,Calendar!A:E,5,FALSE)=0,"",CEILING(K103*CEILING(MAX(OFFSET(J103,M103,0),OFFSET(I103,M103,0)),roundto),roundto)+add_margin)) -> 4050000 | M103: =IF(INDIRECT("Calendar!E"&MATCH($A103,Calendar!A:A,0)-1),0,IF(INDIRECT("Calendar!E"&MATCH($A103,Calendar!A:A,0)-2),1,2)) -> 0
A104: 2025-05-26 | B104: 729622 | C104: -211009 | D104: 729622 | E104: 200 | F104: =IF($A104="","",IF(E104=0,0,SUMPRODUCT($D106:$D355,Parameter!$B$14:$B$263)/E104)) -> 266780.7566 | G104: =IF($A104="","",IF(E104=0,0,SQRT(SUMPRODUCT(IF($D106:$D355>0,(($D106:$D355)-$F104)^2,0),Parameter!$B$14:$B$263)/E104))) -> 415906.1792 | H104: 1847224.238 | I104: 1847224.238 | J104: 3999868.8 | K104: =IF($A105="","",IF($I$3="YES",VLOOKUP(OFFSET(A105,M104,0),Calendar!$A$2:$C$10000,3,FALSE),1)) -> 1 | L104: =IF(A105="","",IF(VLOOKUP(A104,Calendar!A:E,5,FALSE)=0,"",CEILING(K104*CEILING(MAX(OFFSET(J104,M104,0),OFFSET(I104,M104,0)),roundto),roundto)+add_margin)) -> 4050000 | M104: =IF(INDIRECT("Calendar!E"&MATCH($A104,Calendar!A:A,0)-1),0,IF(INDIRECT("Calendar!E"&MATCH($A104,Calendar!A:A,0)-2),1,2)) -> 0
A105: 2025-05-23 | B105: -37355 | C105: 166244 | D105: 0 | E105: 200 | F105: =IF($A105="","",IF(E105=0,0,SUMPRODUCT($D107:$D356,Parameter!$B$14:$B$263)/E105)) -> 267033.1008 | G105: =IF($A105="","",IF(E105=0,0,SQRT(SUMPRODUCT(IF($D107:$D356>0,(($D107:$D356)-$F105)^2,0),Parameter!$B$14:$B$263)/E105))) -> 417511.1573 | H105: 1853575.498 | I105: 1853575.498 | J105: 3999868.8 | K105: =IF($A106="","",IF($I$3="YES",VLOOKUP(OFFSET(A106,M105,0),Calendar!$A$2:$C$10000,3,FALSE),1)) -> 1 | L105: =IF(A106="","",IF(VLOOKUP(A105,Calendar!A:E,5,FALSE)=0,"",CEILING(K105*CEILING(MAX(OFFSET(J105,M105,0),OFFSET(I105,M105,0)),roundto),roundto)+add_margin)) -> 4050000 | M105: =IF(INDIRECT("Calendar!E"&MATCH($A105,Calendar!A:A,0)-1),0,IF(INDIRECT("Calendar!E"&MATCH($A105,Calendar!A:A,0)-2),1,2)) -> 0
A106: 2025-05-22 | B106: 526693 | C106: 406053 | D106: 526693 | E106: 200 | F106: =IF($A106="","",IF(E106=0,0,SUMPRODUCT($D108:$D357,Parameter!$B$14:$B$263)/E106)) -> 266112.6294 | G106: =IF($A106="","",IF(E106=0,0,SQRT(SUMPRODUCT(IF($D108:$D357>0,(($D108:$D357)-$F106)^2,0),Parameter!$B$14:$B$263)/E106))) -> 418652.6203 | H106: 1856992.587 | I106: 1856992.587 | J106: 3999868.8 | K106: =IF($A107="","",IF($I$3="YES",VLOOKUP(OFFSET(A107,M106,0),Calendar!$A$2:$C$10000,3,FALSE),1)) -> 1 | L106: =IF(A107="","",IF(VLOOKUP(A106,Calendar!A:E,5,FALSE)=0,"",CEILING(K106*CEILING(MAX(OFFSET(J106,M106,0),OFFSET(I106,M106,0)),roundto),roundto)+add_margin)) -> 4050000 | M106: =IF(INDIRECT("Calendar!E"&MATCH($A106,Calendar!A:A,0)-1),0,IF(INDIRECT("Calendar!E"&MATCH($A106,Calendar!A:A,0)-2),1,2)) -> 0
A107: 2025-05-21 | B107: 742408 | C107: 389214 | D107: 742408 | E107: 200 | F107: =IF($A107="","",IF(E107=0,0,SUMPRODUCT($D109:$D358,Parameter!$B$14:$B$263)/E107)) -> 262068.9945 | G107: =IF($A107="","",IF(E107=0,0,SQRT(SUMPRODUCT(IF($D109:$D358>0,(($D109:$D358)-$F107)^2,0),Parameter!$B$14:$B$263)/E107))) -> 414634.235 | H107: 1837679.088 | I107: 1837679.088 | J107: 3999868.8 | K107: =IF($A108="","",IF($I$3="YES",VLOOKUP(OFFSET(A108,M107,0),Calendar!$A$2:$C$10000,3,FALSE),1)) -> 1 | L107: =IF(A108="","",IF(VLOOKUP(A107,Calendar!A:E,5,FALSE)=0,"",CEILING(K107*CEILING(MAX(OFFSET(J107,M107,0),OFFSET(I107,M107,0)),roundto),roundto)+add_margin)) -> 4050000 | M107: =IF(INDIRECT("Calendar!E"&MATCH($A107,Calendar!A:A,0)-1),0,IF(INDIRECT("Calendar!E"&MATCH($A107,Calendar!A:A,0)-2),1,2)) -> 0
A108: 2025-05-20 | B108: 1504967 | C108: 1133773 | D108: 1504967 | E108: 200 | F108: =IF($A108="","",IF(E108=0,0,SUMPRODUCT($D110:$D359,Parameter!$B$14:$B$263)/E108)) -> 259174.0016 | G108: =IF($A108="","",IF(E108=0,0,SQRT(SUMPRODUCT(IF($D110:$D359>0,(($D110:$D359)-$F108)^2,0),Parameter!$B$14:$B$263)/E108))) -> 413328.7024 | H108: 1829823.071 | I108: 1829823.071 | J108: 3999868.8 | K108: =IF($A109="","",IF($I$3="YES",VLOOKUP(OFFSET(A109,M108,0),Calendar!$A$2:$C$10000,3,FALSE),1)) -> 1 | L108: =IF(A109="","",IF(VLOOKUP(A108,Calendar!A:E,5,FALSE)=0,"",CEILING(K108*CEILING(MAX(OFFSET(J108,M108,0),OFFSET(I108,M108,0)),roundto),roundto)+add_margin)) -> 4050000 | M108: =IF(INDIRECT("Calendar!E"&MATCH($A108,Calendar!A:A,0)-1),0,IF(INDIRECT("Calendar!E"&MATCH($A108,Calendar!A:A,0)-2),1,2)) -> 0
A109: 2025-05-19 | B109: 1277345 | C109: 207172 | D109: 1277345 | E109: 200 | F109: =IF($A109="","",IF(E109=0,0,SUMPRODUCT($D111:$D360,Parameter!$B$14:$B$263)/E109)) -> 257486.6252 | G109: =IF($A109="","",IF(E109=0,0,SQRT(SUMPRODUCT(IF($D111:$D360>0,(($D111:$D360)-$F109)^2,0),Parameter!$B$14:$B$263)/E109))) -> 413920.0253 | H109: 1830382.721 | I109: 1830382.721 | J109: 3999868.8 | K109: =IF($A110="","",IF($I$3="YES",VLOOKUP(OFFSET(A110,M109,0),Calendar!$A$2:$C$10000,3,FALSE),1)) -> 1 | L109: =IF(A110="","",IF(VLOOKUP(A109,Calendar!A:E,5,FALSE)=0,"",CEILING(K109*CEILING(MAX(OFFSET(J109,M109,0),OFFSET(I109,M109,0)),roundto),roundto)+add_margin)) -> 4050000 | M109: =IF(INDIRECT("Calendar!E"&MATCH($A109,Calendar!A:A,0)-1),0,IF(INDIRECT("Calendar!E"&MATCH($A109,Calendar!A:A,0)-2),1,2)) -> 0
A110: 2025-05-16 | B110: 864398 | C110: 716258 | D110: 864398 | E110: 200 | F110: =IF($A110="","",IF(E110=0,0,SUMPRODUCT($D112:$D361,Parameter!$B$14:$B$263)/E110)) -> 258280.1391 | G110: =IF($A110="","",IF(E110=0,0,SQRT(SUMPRODUCT(IF($D112:$D361>0,(($D112:$D361)-$F110)^2,0),Parameter!$B$14:$B$263)/E110))) -> 415660.7664 | H110: 1837791.051 | I110: 1837791.051 | J110: 3999868.8 | K110: =IF($A111="","",IF($I$3="YES",VLOOKUP(OFFSET(A111,M110,0),Calendar!$A$2:$C$10000,3,FALSE),1)) -> 1 | L110: =IF(A111="","",IF(VLOOKUP(A110,Calendar!A:E,5,FALSE)=0,"",CEILING(K110*CEILING(MAX(OFFSET(J110,M110,0),OFFSET(I110,M110,0)),roundto),roundto)+add_margin)) -> 4050000 | M110: =IF(INDIRECT("Calendar!E"&MATCH($A110,Calendar!A:A,0)-1),0,IF(INDIRECT("Calendar!E"&MATCH($A110,Calendar!A:A,0)-2),1,2)) -> 0
A111: 2025-05-15 | B111: 428758 | C111: -265008 | D111: 428758 | E111: 200 | F111: =IF($A111="","",IF(E111=0,0,SUMPRODUCT($D113:$D362,Parameter!$B$14:$B$263)/E111)) -> 258816.201 | G111: =IF($A111="","",IF(E111=0,0,SQRT(SUMPRODUCT(IF($D113:$D362>0,(($D113:$D362)-$F111)^2,0),Parameter!$B$14:$B$263)/E111))) -> 417333.7172 | H111: 1844684.326 | I111: 1844684.326 | J111: 3999868.8 | K111: =IF($A112="","",IF($I$3="YES",VLOOKUP(OFFSET(A112,M111,0),Calendar!$A$2:$C$10000,3,FALSE),1)) -> 1 | L111: =IF(A112="","",IF(VLOOKUP(A111,Calendar!A:E,5,FALSE)=0,"",CEILING(K111*CEILING(MAX(OFFSET(J111,M111,0),OFFSET(I111,M111,0)),roundto),roundto)+add_margin)) -> 4050000 | M111: =IF(INDIRECT("Calendar!E"&MATCH($A111,Calendar!A:A,0)-1),0,IF(INDIRECT("Calendar!E"&MATCH($A111,Calendar!A:A,0)-2),1,2)) -> 0
A112: 2025-05-14 | B112: 459716 | C112: 577096 | D112: 459716 | E112: 200 | F112: =IF($A112="","",IF(E112=0,0,SUMPRODUCT($D114:$D363,Parameter!$B$14:$B$263)/E112)) -> 253438.8895 | G112: =IF($A112="","",IF(E112=0,0,SQRT(SUMPRODUCT(IF($D114:$D363>0,(($D114:$D363)-$F112)^2,0),Parameter!$B$14:$B$263)/E112))) -> 409862.5104 | H112: 1810916.429 | I112: 1810916.429 | J112: 3999868.8 | K112: =IF($A113="","",IF($I$3="YES",VLOOKUP(OFFSET(A113,M112,0),Calendar!$A$2:$C$10000,3,FALSE),1)) -> 1 | L112: =IF(A113="","",IF(VLOOKUP(A112,Calendar!A:E,5,FALSE)=0,"",CEILING(K112*CEILING(MAX(OFFSET(J112,M112,0),OFFSET(I112,M112,0)),roundto),roundto)+add_margin)) -> 4050000 | M112: =IF(INDIRECT("Calendar!E"&MATCH($A112,Calendar!A:A,0)-1),0,IF(INDIRECT("Calendar!E"&MATCH($A112,Calendar!A:A,0)-2),1,2)) -> 0
A113: 2025-05-13 | B113: 1663896 | C113: 1131865 | D113: 1663896 | E113: 200 | F113: =IF($A113="","",IF(E113=0,0,SUMPRODUCT($D115:$D364,Parameter!$B$14:$B$263)/E113)) -> 248218.9815 | G113: =IF($A113="","",IF(E113=0,0,SQRT(SUMPRODUCT(IF($D115:$D364>0,(($D115:$D364)-$F113)^2,0),Parameter!$B$14:$B$263)/E113))) -> 402559.3342 | H113: 1777944.452 | I113: 1777944.452 | J113: 3999868.8 | K113: =IF($A114="","",IF($I$3="YES",VLOOKUP(OFFSET(A114,M113,0),Calendar!$A$2:$C$10000,3,FALSE),1)) -> 1 | L113: =IF(A114="","",IF(VLOOKUP(A113,Calendar!A:E,5,FALSE)=0,"",CEILING(K113*CEILING(MAX(OFFSET(J113,M113,0),OFFSET(I113,M113,0)),roundto),roundto)+add_margin)) -> 4050000 | M113: =IF(INDIRECT("Calendar!E"&MATCH($A113,Calendar!A:A,0)-1),0,IF(INDIRECT("Calendar!E"&MATCH($A113,Calendar!A:A,0)-2),1,2)) -> 0
A114: 2025-05-12 | B114: 1638245 | C114: 548429 | D114: 1638245 | E114: 200 | F114: =IF($A114="","",IF(E114=0,0,SUMPRODUCT($D116:$D365,Parameter!$B$14:$B$263)/E114)) -> 246027.8169 | G114: =IF($A114="","",IF(E114=0,0,SQRT(SUMPRODUCT(IF($D116:$D365>0,(($D116:$D365)-$F114)^2,0),Parameter!$B$14:$B$263)/E114))) -> 402408.7541 | H114: 1775181.082 | I114: 1775181.082 | J114: 3999868.8 | K114: =IF($A115="","",IF($I$3="YES",VLOOKUP(OFFSET(A115,M114,0),Calendar!$A$2:$C$10000,3,FALSE),1)) -> 1 | L114: =IF(A115="","",IF(VLOOKUP(A114,Calendar!A:E,5,FALSE)=0,"",CEILING(K114*CEILING(MAX(OFFSET(J114,M114,0),OFFSET(I114,M114,0)),roundto),roundto)+add_margin)) -> 4050000 | M114: =IF(INDIRECT("Calendar!E"&MATCH($A114,Calendar!A:A,0)-1),0,IF(INDIRECT("Calendar!E"&MATCH($A114,Calendar!A:A,0)-2),1,2)) -> 0
A115: 2025-05-09 | B115: 952739 | C115: 692556 | D115: 952739 | E115: 200 | F115: =IF($A115="","",IF(E115=0,0,SUMPRODUCT($D117:$D366,Parameter!$B$14:$B$263)/E115)) -> 242625.8939 | G115: =IF($A115="","",IF(E115=0,0,SQRT(SUMPRODUCT(IF($D117:$D366>0,(($D117:$D366)-$F115)^2,0),Parameter!$B$14:$B$263)/E115))) -> 400301.5731 | H115: 1763771.872 | I115: 1763771.872 | J115: 3999868.8 | K115: =IF($A116="","",IF($I$3="YES",VLOOKUP(OFFSET(A116,M115,0),Calendar!$A$2:$C$10000,3,FALSE),1)) -> 1 | L115: =IF(A116="","",IF(VLOOKUP(A115,Calendar!A:E,5,FALSE)=0,"",CEILING(K115*CEILING(MAX(OFFSET(J115,M115,0),OFFSET(I115,M115,0)),roundto),roundto)+add_margin)) -> 4050000 | M115: =IF(INDIRECT("Calendar!E"&MATCH($A115,Calendar!A:A,0)-1),0,IF(INDIRECT("Calendar!E"&MATCH($A115,Calendar!A:A,0)-2),1,2)) -> 0
A116: 2025-05-08 | B116: 1187990 | C116: 588159 | D116: 1187990 | E116: 200 | F116: =IF($A116="","",IF(E116=0,0,SUMPRODUCT($D118:$D367,Parameter!$B$14:$B$263)/E116)) -> 240080.4371 | G116: =IF($A116="","",IF(E116=0,0,SQRT(SUMPRODUCT(IF($D118:$D367>0,(($D118:$D367)-$F116)^2,0),Parameter!$B$14:$B$263)/E116))) -> 399730.7179 | H116: 1759057.165 | I116: 1759057.165 | J116: 3999868.8 | K116: =IF($A117="","",IF($I$3="YES",VLOOKUP(OFFSET(A117,M116,0),Calendar!$A$2:$C$10000,3,FALSE),1)) -> 1 | L116: =IF(A117="","",IF(VLOOKUP(A116,Calendar!A:E,5,FALSE)=0,"",CEILING(K116*CEILING(MAX(OFFSET(J116,M116,0),OFFSET(I116,M116,0)),roundto),roundto)+add_margin)) -> 4050000 | M116: =IF(INDIRECT("Calendar!E"&MATCH($A116,Calendar!A:A,0)-1),0,IF(INDIRECT("Calendar!E"&MATCH($A116,Calendar!A:A,0)-2),1,2)) -> 0
A117: 2025-05-07 | B117: 1005080 | C117: 511472 | D117: 1005080 | E117: 200 | F117: =IF($A117="","",IF(E117=0,0,SUMPRODUCT($D119:$D368,Parameter!$B$14:$B$263)/E117)) -> 233350.5444 | G117: =IF($A117="","",IF(E117=0,0,SQRT(SUMPRODUCT(IF($D119:$D368>0,(($D119:$D368)-$F117)^2,0),Parameter!$B$14:$B$263)/E117))) -> 387454.3046 | H117: 1705676.902 | I117: 1705676.902 | J117: 3999868.8 | K117: =IF($A118="","",IF($I$3="YES",VLOOKUP(OFFSET(A118,M117,0),Calendar!$A$2:$C$10000,3,FALSE),1)) -> 1 | L117: =IF(A118="","",IF(VLOOKUP(A117,Calendar!A:E,5,FALSE)=0,"",CEILING(K117*CEILING(MAX(OFFSET(J117,M117,0),OFFSET(I117,M117,0)),roundto),roundto)+add_margin)) -> 4050000 | M117: =IF(INDIRECT("Calendar!E"&MATCH($A117,Calendar!A:A,0)-1),0,IF(INDIRECT("Calendar!E"&MATCH($A117,Calendar!A:A,0)-2),1,2)) -> 0
A118: 2025-05-06 | B118: 1878893 | C118: 1455454 | D118: 1878893 | E118: 200 | F118: =IF($A118="","",IF(E118=0,0,SUMPRODUCT($D120:$D369,Parameter!$B$14:$B$263)/E118)) -> 228062.0122 | G118: =IF($A118="","",IF(E118=0,0,SQRT(SUMPRODUCT(IF($D120:$D369>0,(($D120:$D369)-$F118)^2,0),Parameter!$B$14:$B$263)/E118))) -> 380192.0297 | H118: 1672791.725 | I118: 1672791.725 | J118: 3999868.8 | K118: =IF($A119="","",IF($I$3="YES",VLOOKUP(OFFSET(A119,M118,0),Calendar!$A$2:$C$10000,3,FALSE),1)) -> 1 | L118: =IF(A119="","",IF(VLOOKUP(A118,Calendar!A:E,5,FALSE)=0,"",CEILING(K118*CEILING(MAX(OFFSET(J118,M118,0),OFFSET(I118,M118,0)),roundto),roundto)+add_margin)) -> 4050000 | M118: =IF(INDIRECT("Calendar!E"&MATCH($A118,Calendar!A:A,0)-1),0,IF(INDIRECT("Calendar!E"&MATCH($A118,Calendar!A:A,0)-2),1,2)) -> 0
A119: 2025-05-05 | B119: 1553338 | C119: 159177 | D119: 1553338 | E119: 199 | F119: =IF($A119="","",IF(E119=0,0,SUMPRODUCT($D121:$D370,Parameter!$B$14:$B$263)/E119)) -> 227756.8029 | G119: =IF($A119="","",IF(E119=0,0,SQRT(SUMPRODUCT(IF($D121:$D370>0,(($D121:$D370)-$F119)^2,0),Parameter!$B$14:$B$263)/E119))) -> 381401.4561 | H119: 1677082.336 | I119: 1677082.336 | J119: 3999868.8 | K119: =IF($A120="","",IF($I$3="YES",VLOOKUP(OFFSET(A120,M119,0),Calendar!$A$2:$C$10000,3,FALSE),1)) -> 1 | L119: =IF(A120="","",IF(VLOOKUP(A119,Calendar!A:E,5,FALSE)=0,"",CEILING(K119*CEILING(MAX(OFFSET(J119,M119,0),OFFSET(I119,M119,0)),roundto),roundto)+add_margin)) -> 4050000 | M119: =IF(INDIRECT("Calendar!E"&MATCH($A119,Calendar!A:A,0)-1),0,IF(INDIRECT("Calendar!E"&MATCH($A119,Calendar!A:A,0)-2),1,2)) -> 0
A120: 2025-05-02 | B120: 749530 | C120: 627048 | D120: 749530 | E120: 199 | F120: =IF($A120="","",IF(E120=0,0,SUMPRODUCT($D122:$D371,Parameter!$B$14:$B$263)/E120)) -> 223316.4108 | G120: =IF($A120="","",IF(E120=0,0,SQRT(SUMPRODUCT(IF($D122:$D371>0,(($D122:$D371)-$F120)^2,0),Parameter!$B$14:$B$263)/E120))) -> 376721.6433 | H120: 1654858.655 | I120: 1654858.655 | J120: 3999868.8 | K120: =IF($A121="","",IF($I$3="YES",VLOOKUP(OFFSET(A121,M120,0),Calendar!$A$2:$C$10000,3,FALSE),1)) -> 1.3 | L120: =IF(A121="","",IF(VLOOKUP(A120,Calendar!A:E,5,FALSE)=0,"",CEILING(K120*CEILING(MAX(OFFSET(J120,M120,0),OFFSET(I120,M120,0)),roundto),roundto)+add_margin)) -> 5250000 | M120: =IF(INDIRECT("Calendar!E"&MATCH($A120,Calendar!A:A,0)-1),0,IF(INDIRECT("Calendar!E"&MATCH($A120,Calendar!A:A,0)-2),1,2)) -> 1
A121: 2025-05-01 | B121: 1352378 | C121: 816264 | D121: 1352378 | E121: 199 | F121: =IF($A121="","",IF(E121=0,0,SUMPRODUCT($D123:$D372,Parameter!$B$14:$B$263)/E121)) -> 218453.2947 | G121: =IF($A121="","",IF(E121=0,0,SQRT(SUMPRODUCT(IF($D123:$D372>0,(($D123:$D372)-$F121)^2,0),Parameter!$B$14:$B$263)/E121))) -> 370632.6883 | H121: 1626857.51 | I121: 1626857.51 | J121: 3999868.8 | K121: =IF($A122="","",IF($I$3="YES",VLOOKUP(OFFSET(A122,M121,0),Calendar!$A$2:$C$10000,3,FALSE),1)) -> 1.3 | L121: =IF(A122="","",IF(VLOOKUP(A121,Calendar!A:E,5,FALSE)=0,"",CEILING(K121*CEILING(MAX(OFFSET(J121,M121,0),OFFSET(I121,M121,0)),roundto),roundto)+add_margin)) ->  | M121: =IF(INDIRECT("Calendar!E"&MATCH($A121,Calendar!A:A,0)-1),0,IF(INDIRECT("Calendar!E"&MATCH($A121,Calendar!A:A,0)-2),1,2)) -> 0
A122: 2025-04-30 | B122: 1438224 | C122: 737263 | D122: 1438224 | E122: 199 | F122: =IF($A122="","",IF(E122=0,0,SUMPRODUCT($D124:$D373,Parameter!$B$14:$B$263)/E122)) -> 208265.631 | G122: =IF($A122="","",IF(E122=0,0,SQRT(SUMPRODUCT(IF($D124:$D373>0,(($D124:$D373)-$F122)^2,0),Parameter!$B$14:$B$263)/E122))) -> 339799.0884 | H122: 1499502.167 | I122: 1499502.167 | J122: 3006888 | K122: =IF($A123="","",IF($I$3="YES",VLOOKUP(OFFSET(A123,M122,0),Calendar!$A$2:$C$10000,3,FALSE),1)) -> 1 | L122: =IF(A123="","",IF(VLOOKUP(A122,Calendar!A:E,5,FALSE)=0,"",CEILING(K122*CEILING(MAX(OFFSET(J122,M122,0),OFFSET(I122,M122,0)),roundto),roundto)+add_margin)) -> 3060000 | M122: =IF(INDIRECT("Calendar!E"&MATCH($A122,Calendar!A:A,0)-1),0,IF(INDIRECT("Calendar!E"&MATCH($A122,Calendar!A:A,0)-2),1,2)) -> 0
A123: 2025-04-29 | B123: 2499918 | C123: 1851718 | D123: 2499918 | E123: 199 | F123: =IF($A123="","",IF(E123=0,0,SUMPRODUCT($D125:$D374,Parameter!$B$14:$B$263)/E123)) -> 201068.7103 | G123: =IF($A123="","",IF(E123=0,0,SQRT(SUMPRODUCT(IF($D125:$D374>0,(($D125:$D374)-$F123)^2,0),Parameter!$B$14:$B$263)/E123))) -> 323355.2809 | H123: 1429818.778 | I123: 1429818.778 | J123: 1634692.8 | K123: =IF($A124="","",IF($I$3="YES",VLOOKUP(OFFSET(A124,M123,0),Calendar!$A$2:$C$10000,3,FALSE),1)) -> 1 | L123: =IF(A124="","",IF(VLOOKUP(A123,Calendar!A:E,5,FALSE)=0,"",CEILING(K123*CEILING(MAX(OFFSET(J123,M123,0),OFFSET(I123,M123,0)),roundto),roundto)+add_margin)) -> 1690000 | M123: =IF(INDIRECT("Calendar!E"&MATCH($A123,Calendar!A:A,0)-1),0,IF(INDIRECT("Calendar!E"&MATCH($A123,Calendar!A:A,0)-2),1,2)) -> 0
A124: 2025-04-28 | B124: 1879305 | C124: 140506 | D124: 1879305 | E124: 198 | F124: =IF($A124="","",IF(E124=0,0,SUMPRODUCT($D126:$D375,Parameter!$B$14:$B$263)/E124)) -> 201390.4938 | G124: =IF($A124="","",IF(E124=0,0,SQRT(SUMPRODUCT(IF($D126:$D375>0,(($D126:$D375)-$F124)^2,0),Parameter!$B$14:$B$263)/E124))) -> 324768.4534 | H124: 1435510.617 | I124: 1435510.617 | J124: 1634692.8 | K124: =IF($A125="","",IF($I$3="YES",VLOOKUP(OFFSET(A125,M124,0),Calendar!$A$2:$C$10000,3,FALSE),1)) -> 1 | L124: =IF(A125="","",IF(VLOOKUP(A124,Calendar!A:E,5,FALSE)=0,"",CEILING(K124*CEILING(MAX(OFFSET(J124,M124,0),OFFSET(I124,M124,0)),roundto),roundto)+add_margin)) -> 1690000 | M124: =IF(INDIRECT("Calendar!E"&MATCH($A124,Calendar!A:A,0)-1),0,IF(INDIRECT("Calendar!E"&MATCH($A124,Calendar!A:A,0)-2),1,2)) -> 0
A125: 2025-04-25 | B125: 541524 | C125: 437428 | D125: 541524 | E125: 197 | F125: =IF($A125="","",IF(E125=0,0,SUMPRODUCT($D127:$D376,Parameter!$B$14:$B$263)/E125)) -> 201059.6079 | G125: =IF($A125="","",IF(E125=0,0,SQRT(SUMPRODUCT(IF($D127:$D376>0,(($D127:$D376)-$F125)^2,0),Parameter!$B$14:$B$263)/E125))) -> 325668.0444 | H125: 1438598.177 | I125: 1438598.177 | J125: 1634692.8 | K125: =IF($A126="","",IF($I$3="YES",VLOOKUP(OFFSET(A126,M125,0),Calendar!$A$2:$C$10000,3,FALSE),1)) -> 1 | L125: =IF(A126="","",IF(VLOOKUP(A125,Calendar!A:E,5,FALSE)=0,"",CEILING(K125*CEILING(MAX(OFFSET(J125,M125,0),OFFSET(I125,M125,0)),roundto),roundto)+add_margin)) -> 1690000 | M125: =IF(INDIRECT("Calendar!E"&MATCH($A125,Calendar!A:A,0)-1),0,IF(INDIRECT("Calendar!E"&MATCH($A125,Calendar!A:A,0)-2),1,2)) -> 0
A126: 2025-04-24 | B126: 669356 | C126: 249022 | D126: 669356 | E126: 197 | F126: =IF($A126="","",IF(E126=0,0,SUMPRODUCT($D128:$D377,Parameter!$B$14:$B$263)/E126)) -> 198951.8256 | G126: =IF($A126="","",IF(E126=0,0,SQRT(SUMPRODUCT(IF($D128:$D377>0,(($D128:$D377)-$F126)^2,0),Parameter!$B$14:$B$263)/E126))) -> 325222.7239 | H126: 1434798.176 | I126: 1434798.176 | J126: 1634692.8 | K126: =IF($A127="","",IF($I$3="YES",VLOOKUP(OFFSET(A127,M126,0),Calendar!$A$2:$C$10000,3,FALSE),1)) -> 1 | L126: =IF(A127="","",IF(VLOOKUP(A126,Calendar!A:E,5,FALSE)=0,"",CEILING(K126*CEILING(MAX(OFFSET(J126,M126,0),OFFSET(I126,M126,0)),roundto),roundto)+add_margin)) -> 1690000 | M126: =IF(INDIRECT("Calendar!E"&MATCH($A126,Calendar!A:A,0)-1),0,IF(INDIRECT("Calendar!E"&MATCH($A126,Calendar!A:A,0)-2),1,2)) -> 0
A127: 2025-04-23 | B127: 819458 | C127: 613562 | D127: 819458 | E127: 197 | F127: =IF($A127="","",IF(E127=0,0,SUMPRODUCT($D129:$D378,Parameter!$B$14:$B$263)/E127)) -> 196025.8862 | G127: =IF($A127="","",IF(E127=0,0,SQRT(SUMPRODUCT(IF($D129:$D378>0,(($D129:$D378)-$F127)^2,0),Parameter!$B$14:$B$263)/E127))) -> 322882.391 | H127: 1422978.972 | I127: 1422978.972 | J127: 1239851.2 | K127: =IF($A128="","",IF($I$3="YES",VLOOKUP(OFFSET(A128,M127,0),Calendar!$A$2:$C$10000,3,FALSE),1)) -> 1 | L127: =IF(A128="","",IF(VLOOKUP(A127,Calendar!A:E,5,FALSE)=0,"",CEILING(K127*CEILING(MAX(OFFSET(J127,M127,0),OFFSET(I127,M127,0)),roundto),roundto)+add_margin)) -> 1480000 | M127: =IF(INDIRECT("Calendar!E"&MATCH($A127,Calendar!A:A,0)-1),0,IF(INDIRECT("Calendar!E"&MATCH($A127,Calendar!A:A,0)-2),1,2)) -> 0
A128: 2025-04-22 | B128: 1021683 | C128: 514230 | D128: 1021683 | E128: 197 | F128: =IF($A128="","",IF(E128=0,0,SUMPRODUCT($D130:$D379,Parameter!$B$14:$B$263)/E128)) -> 195748.5666 | G128: =IF($A128="","",IF(E128=0,0,SQRT(SUMPRODUCT(IF($D130:$D379>0,(($D130:$D379)-$F128)^2,0),Parameter!$B$14:$B$263)/E128))) -> 324029.7202 | H128: 1427061.504 | I128: 1427061.504 | J128: 1239851.2 | K128: =IF($A129="","",IF($I$3="YES",VLOOKUP(OFFSET(A129,M128,0),Calendar!$A$2:$C$10000,3,FALSE),1)) -> 1.6 | L128: =IF(A129="","",IF(VLOOKUP(A128,Calendar!A:E,5,FALSE)=0,"",CEILING(K128*CEILING(MAX(OFFSET(J128,M128,0),OFFSET(I128,M128,0)),roundto),roundto)+add_margin)) -> 2370000 | M128: =IF(INDIRECT("Calendar!E"&MATCH($A128,Calendar!A:A,0)-1),0,IF(INDIRECT("Calendar!E"&MATCH($A128,Calendar!A:A,0)-2),1,2)) -> 2
A129: 2025-04-21 | B129: 488945 | C129: 55084 | D129: 488945 | E129: 196 | F129: =IF($A129="","",IF(E129=0,0,SUMPRODUCT($D131:$D380,Parameter!$B$14:$B$263)/E129)) -> 198530.4618 | G129: =IF($A129="","",IF(E129=0,0,SQRT(SUMPRODUCT(IF($D131:$D380>0,(($D131:$D380)-$F129)^2,0),Parameter!$B$14:$B$263)/E129))) -> 325136.2841 | H129: 1434048.341 | I129: 1434048.341 | J129: 1239851.2 | K129: =IF($A130="","",IF($I$3="YES",VLOOKUP(OFFSET(A130,M129,0),Calendar!$A$2:$C$10000,3,FALSE),1)) -> 1.6 | L129: =IF(A130="","",IF(VLOOKUP(A129,Calendar!A:E,5,FALSE)=0,"",CEILING(K129*CEILING(MAX(OFFSET(J129,M129,0),OFFSET(I129,M129,0)),roundto),roundto)+add_margin)) ->  | M129: =IF(INDIRECT("Calendar!E"&MATCH($A129,Calendar!A:A,0)-1),0,IF(INDIRECT("Calendar!E"&MATCH($A129,Calendar!A:A,0)-2),1,2)) -> 1
A130: 2025-04-18 | B130: 40017 | C130: 141620 | D130: 40017 | E130: 195 | F130: =IF($A130="","",IF(E130=0,0,SUMPRODUCT($D132:$D381,Parameter!$B$14:$B$263)/E130)) -> 200483.8652 | G130: =IF($A130="","",IF(E130=0,0,SQRT(SUMPRODUCT(IF($D132:$D381>0,(($D132:$D381)-$F130)^2,0),Parameter!$B$14:$B$263)/E130))) -> 326787.2725 | H130: 1442275.501 | I130: 1442275.501 | J130: 1239851.2 | K130: =IF($A131="","",IF($I$3="YES",VLOOKUP(OFFSET(A131,M130,0),Calendar!$A$2:$C$10000,3,FALSE),1)) -> 1.6 | L130: =IF(A131="","",IF(VLOOKUP(A130,Calendar!A:E,5,FALSE)=0,"",CEILING(K130*CEILING(MAX(OFFSET(J130,M130,0),OFFSET(I130,M130,0)),roundto),roundto)+add_margin)) ->  | M130: =IF(INDIRECT("Calendar!E"&MATCH($A130,Calendar!A:A,0)-1),0,IF(INDIRECT("Calendar!E"&MATCH($A130,Calendar!A:A,0)-2),1,2)) -> 0
A131: 2025-04-17 | B131: 210667 | C131: 132976 | D131: 210667 | E131: 195 | F131: =IF($A131="","",IF(E131=0,0,SUMPRODUCT($D133:$D382,Parameter!$B$14:$B$263)/E131)) -> 198715.5779 | G131: =IF($A131="","",IF(E131=0,0,SQRT(SUMPRODUCT(IF($D133:$D382>0,(($D133:$D382)-$F131)^2,0),Parameter!$B$14:$B$263)/E131))) -> 326620.9717 | H131: 1439875.27 | I131: 1439875.27 | J131: 1224454.4 | K131: =IF($A132="","",IF($I$3="YES",VLOOKUP(OFFSET(A132,M131,0),Calendar!$A$2:$C$10000,3,FALSE),1)) -> 1.6 | L131: =IF(A132="","",IF(VLOOKUP(A131,Calendar!A:E,5,FALSE)=0,"",CEILING(K131*CEILING(MAX(OFFSET(J131,M131,0),OFFSET(I131,M131,0)),roundto),roundto)+add_margin)) -> 2360000 | M131: =IF(INDIRECT("Calendar!E"&MATCH($A131,Calendar!A:A,0)-1),0,IF(INDIRECT("Calendar!E"&MATCH($A131,Calendar!A:A,0)-2),1,2)) -> 0
A132: 2025-04-16 | B132: 774907 | C132: 765284 | D132: 774907 | E132: 195 | F132: =IF($A132="","",IF(E132=0,0,SUMPRODUCT($D134:$D383,Parameter!$B$14:$B$263)/E132)) -> 199195.2322 | G132: =IF($A132="","",IF(E132=0,0,SQRT(SUMPRODUCT(IF($D134:$D383>0,(($D134:$D383)-$F132)^2,0),Parameter!$B$14:$B$263)/E132))) -> 328314.3004 | H132: 1446789.574 | I132: 1446789.574 | J132: 556779.2 | K132: =IF($A133="","",IF($I$3="YES",VLOOKUP(OFFSET(A133,M132,0),Calendar!$A$2:$C$10000,3,FALSE),1)) -> 1 | L132: =IF(A133="","",IF(VLOOKUP(A132,Calendar!A:E,5,FALSE)=0,"",CEILING(K132*CEILING(MAX(OFFSET(J132,M132,0),OFFSET(I132,M132,0)),roundto),roundto)+add_margin)) -> 1500000 | M132: =IF(INDIRECT("Calendar!E"&MATCH($A132,Calendar!A:A,0)-1),0,IF(INDIRECT("Calendar!E"&MATCH($A132,Calendar!A:A,0)-2),1,2)) -> 0
A133: 2025-04-15 | B133: 388039 | C133: 21629 | D133: 388039 | E133: 195 | F133: =IF($A133="","",IF(E133=0,0,SUMPRODUCT($D135:$D384,Parameter!$B$14:$B$263)/E133)) -> 200466.0998 | G133: =IF($A133="","",IF(E133=0,0,SQRT(SUMPRODUCT(IF($D135:$D384>0,(($D135:$D384)-$F133)^2,0),Parameter!$B$14:$B$263)/E133))) -> 329948.9176 | H133: 1454271.987 | I133: 1454271.987 | J133: 556779.2 | K133: =IF($A134="","",IF($I$3="YES",VLOOKUP(OFFSET(A134,M133,0),Calendar!$A$2:$C$10000,3,FALSE),1)) -> 1 | L133: =IF(A134="","",IF(VLOOKUP(A133,Calendar!A:E,5,FALSE)=0,"",CEILING(K133*CEILING(MAX(OFFSET(J133,M133,0),OFFSET(I133,M133,0)),roundto),roundto)+add_margin)) -> 1510000 | M133: =IF(INDIRECT("Calendar!E"&MATCH($A133,Calendar!A:A,0)-1),0,IF(INDIRECT("Calendar!E"&MATCH($A133,Calendar!A:A,0)-2),1,2)) -> 0
A134: 2025-04-14 | B134: 234630 | C134: -156649 | D134: 234630 | E134: 196 | F134: =IF($A134="","",IF(E134=0,0,SUMPRODUCT($D136:$D385,Parameter!$B$14:$B$263)/E134)) -> 201630.2758 | G134: =IF($A134="","",IF(E134=0,0,SQRT(SUMPRODUCT(IF($D136:$D385>0,(($D136:$D385)-$F134)^2,0),Parameter!$B$14:$B$263)/E134))) -> 330303.811 | H134: 1456784.757 | I134: 1456784.757 | J134: 556779.2 | K134: =IF($A135="","",IF($I$3="YES",VLOOKUP(OFFSET(A135,M134,0),Calendar!$A$2:$C$10000,3,FALSE),1)) -> 1 | L134: =IF(A135="","",IF(VLOOKUP(A134,Calendar!A:E,5,FALSE)=0,"",CEILING(K134*CEILING(MAX(OFFSET(J134,M134,0),OFFSET(I134,M134,0)),roundto),roundto)+add_margin)) -> 1510000 | M134: =IF(INDIRECT("Calendar!E"&MATCH($A134,Calendar!A:A,0)-1),0,IF(INDIRECT("Calendar!E"&MATCH($A134,Calendar!A:A,0)-2),1,2)) -> 0
A135: 2025-04-11 | B135: -239525 | C135: 65098 | D135: 0 | E135: 197 | F135: =IF($A135="","",IF(E135=0,0,SUMPRODUCT($D137:$D386,Parameter!$B$14:$B$263)/E135)) -> 202740.6828 | G135: =IF($A135="","",IF(E135=0,0,SQRT(SUMPRODUCT(IF($D137:$D386>0,(($D137:$D386)-$F135)^2,0),Parameter!$B$14:$B$263)/E135))) -> 330658.741 | H135: 1459243.899 | I135: 1459243.899 | J135: 556779.2 | K135: =IF($A136="","",IF($I$3="YES",VLOOKUP(OFFSET(A136,M135,0),Calendar!$A$2:$C$10000,3,FALSE),1)) -> 1 | L135: =IF(A136="","",IF(VLOOKUP(A135,Calendar!A:E,5,FALSE)=0,"",CEILING(K135*CEILING(MAX(OFFSET(J135,M135,0),OFFSET(I135,M135,0)),roundto),roundto)+add_margin)) -> 1510000 | M135: =IF(INDIRECT("Calendar!E"&MATCH($A135,Calendar!A:A,0)-1),0,IF(INDIRECT("Calendar!E"&MATCH($A135,Calendar!A:A,0)-2),1,2)) -> 0
A136: 2025-04-10 | B136: -24234 | C136: 9461 | D136: 0 | E136: 198 | F136: =IF($A136="","",IF(E136=0,0,SUMPRODUCT($D138:$D387,Parameter!$B$14:$B$263)/E136)) -> 203875.882 | G136: =IF($A136="","",IF(E136=0,0,SQRT(SUMPRODUCT(IF($D138:$D387>0,(($D138:$D387)-$F136)^2,0),Parameter!$B$14:$B$263)/E136))) -> 331010.8567 | H136: 1461717.137 | I136: 1461717.137 | J136: 556779.2 | K136: =IF($A137="","",IF($I$3="YES",VLOOKUP(OFFSET(A137,M136,0),Calendar!$A$2:$C$10000,3,FALSE),1)) -> 1 | L136: =IF(A137="","",IF(VLOOKUP(A136,Calendar!A:E,5,FALSE)=0,"",CEILING(K136*CEILING(MAX(OFFSET(J136,M136,0),OFFSET(I136,M136,0)),roundto),roundto)+add_margin)) -> 1520000 | M136: =IF(INDIRECT("Calendar!E"&MATCH($A136,Calendar!A:A,0)-1),0,IF(INDIRECT("Calendar!E"&MATCH($A136,Calendar!A:A,0)-2),1,2)) -> 0
A137: 2025-04-09 | B137: -248581 | C137: -163220 | D137: 0 | E137: 199 | F137: =IF($A137="","",IF(E137=0,0,SUMPRODUCT($D139:$D388,Parameter!$B$14:$B$263)/E137)) -> 205308.496 | G137: =IF($A137="","",IF(E137=0,0,SQRT(SUMPRODUCT(IF($D139:$D388>0,(($D139:$D388)-$F137)^2,0),Parameter!$B$14:$B$263)/E137))) -> 331626.332 | H137: 1465488.557 | I137: 1465488.557 | J137: 556779.2 | K137: =IF($A138="","",IF($I$3="YES",VLOOKUP(OFFSET(A138,M137,0),Calendar!$A$2:$C$10000,3,FALSE),1)) -> 1 | L137: =IF(A138="","",IF(VLOOKUP(A137,Calendar!A:E,5,FALSE)=0,"",CEILING(K137*CEILING(MAX(OFFSET(J137,M137,0),OFFSET(I137,M137,0)),roundto),roundto)+add_margin)) -> 1520000 | M137: =IF(INDIRECT("Calendar!E"&MATCH($A137,Calendar!A:A,0)-1),0,IF(INDIRECT("Calendar!E"&MATCH($A137,Calendar!A:A,0)-2),1,2)) -> 0
A138: 2025-04-08 | B138: -813705 | C138: -494548 | D138: 0 | E138: 200 | F138: =IF($A138="","",IF(E138=0,0,SUMPRODUCT($D140:$D389,Parameter!$B$14:$B$263)/E138)) -> 206580.3975 | G138: =IF($A138="","",IF(E138=0,0,SQRT(SUMPRODUCT(IF($D140:$D389>0,(($D140:$D389)-$F138)^2,0),Parameter!$B$14:$B$263)/E138))) -> 332009.2598 | H138: 1468215.585 | I138: 1468215.585 | J138: 556779.2 | K138: =IF($A139="","",IF($I$3="YES",VLOOKUP(OFFSET(A139,M138,0),Calendar!$A$2:$C$10000,3,FALSE),1)) -> 1 | L138: =IF(A139="","",IF(VLOOKUP(A138,Calendar!A:E,5,FALSE)=0,"",CEILING(K138*CEILING(MAX(OFFSET(J138,M138,0),OFFSET(I138,M138,0)),roundto),roundto)+add_margin)) -> 1520000 | M138: =IF(INDIRECT("Calendar!E"&MATCH($A138,Calendar!A:A,0)-1),0,IF(INDIRECT("Calendar!E"&MATCH($A138,Calendar!A:A,0)-2),1,2)) -> 0
A139: 2025-04-07 | B139: -857441 | C139: -175671 | D139: 0 | E139: 200 | F139: =IF($A139="","",IF(E139=0,0,SUMPRODUCT($D141:$D390,Parameter!$B$14:$B$263)/E139)) -> 208667.0682 | G139: =IF($A139="","",IF(E139=0,0,SQRT(SUMPRODUCT(IF($D141:$D390>0,(($D141:$D390)-$F139)^2,0),Parameter!$B$14:$B$263)/E139))) -> 332794.7291 | H139: =IF($A139="","",F139+alpha*G139) -> 1473287.039 | I139: 1473287.039 | J139: =IF($A139="","",beta*MAX(0,C140,INDIRECT("B" & ROW(A141) & ":B" & ROW(A141) + window_size_max-2))) -> 556779.2 | K139: =IF($A140="","",IF($I$3="YES",VLOOKUP(OFFSET(A140,M139,0),Calendar!$A$2:$C$10000,3,FALSE),1)) -> 1 | L139: =IF(A140="","",IF(VLOOKUP(A139,Calendar!A:E,5,FALSE)=0,"",CEILING(K139*CEILING(MAX(OFFSET(J139,M139,0),OFFSET(I139,M139,0)),roundto),roundto)+add_margin)) -> 1530000 | M139: =IF(INDIRECT("Calendar!E"&MATCH($A139,Calendar!A:A,0)-1),0,IF(INDIRECT("Calendar!E"&MATCH($A139,Calendar!A:A,0)-2),1,2)) -> 0
A140: 2025-04-04 | B140: -215246 | C140: -50624 | D140: =IF(B140>minIMSM,B140,minIMSM) -> 0 | E140: =COUNTIF($D142:$D391,">0") -> 200 | F140: =IF($A140="","",IF(E140=0,0,SUMPRODUCT($D142:$D391,Parameter!$B$14:$B$263)/E140)) -> 210774.8163 | G140: =IF($A140="","",IF(E140=0,0,SQRT(SUMPRODUCT(IF($D142:$D391>0,(($D142:$D391)-$F140)^2,0),Parameter!$B$14:$B$263)/E140))) -> 333572.5798 | H140: 1478350.62 | I140: =IF($A140="","",IF($D142>0,$H140,MIN($H140,I141))) -> 1478350.62 | J140: 556779.2 | K140: =IF($A141="","",IF($I$3="YES",VLOOKUP(OFFSET(A141,M140,0),Calendar!$A$2:$C$10000,3,FALSE),1)) -> 1 | L140: =IF(A141="","",IF(VLOOKUP(A140,Calendar!A:E,5,FALSE)=0,"",CEILING(K140*CEILING(MAX(OFFSET(J140,M140,0),OFFSET(I140,M140,0)),roundto),roundto)+add_margin)) -> 1530000 | M140: =IF(INDIRECT("Calendar!E"&MATCH($A140,Calendar!A:A,0)-1),0,IF(INDIRECT("Calendar!E"&MATCH($A140,Calendar!A:A,0)-2),1,2)) -> 0
A141: 2025-04-03 | B141: -222707 | C141: -234024 | D141: 0 | E141: 201 | F141: =IF($A141="","",IF(E141=0,0,SUMPRODUCT($D143:$D392,Parameter!$B$14:$B$263)/E141)) -> 211864.4737 | G141: =IF($A141="","",IF(E141=0,0,SQRT(SUMPRODUCT(IF($D143:$D392>0,(($D143:$D392)-$F141)^2,0),Parameter!$B$14:$B$263)/E141))) -> 333968.9964 | H141: 1480946.66 | I141: 1480946.66 | J141: 556779.2 | K141: =IF($A142="","",IF($I$3="YES",VLOOKUP(OFFSET(A142,M141,0),Calendar!$A$2:$C$10000,3,FALSE),1)) -> 1 | L141: =IF(A142="","",IF(VLOOKUP(A141,Calendar!A:E,5,FALSE)=0,"",CEILING(K141*CEILING(MAX(OFFSET(J141,M141,0),OFFSET(I141,M141,0)),roundto),roundto)+add_margin)) -> 1540000 | M141: =IF(INDIRECT("Calendar!E"&MATCH($A141,Calendar!A:A,0)-1),0,IF(INDIRECT("Calendar!E"&MATCH($A141,Calendar!A:A,0)-2),1,2)) -> 0
A142: 2025-04-02 | B142: -841585 | C142: -616735 | D142: 0 | E142: 202 | F142: =IF($A142="","",IF(E142=0,0,SUMPRODUCT($D144:$D393,Parameter!$B$14:$B$263)/E142)) -> 213048.199 | G142: =IF($A142="","",IF(E142=0,0,SQRT(SUMPRODUCT(IF($D144:$D393>0,(($D144:$D393)-$F142)^2,0),Parameter!$B$14:$B$263)/E142))) -> 334315.1576 | H142: 1483445.798 | I142: 1483445.798 | J142: 781470.4 | K142: =IF($A143="","",IF($I$3="YES",VLOOKUP(OFFSET(A143,M142,0),Calendar!$A$2:$C$10000,3,FALSE),1)) -> 1 | L142: =IF(A143="","",IF(VLOOKUP(A142,Calendar!A:E,5,FALSE)=0,"",CEILING(K142*CEILING(MAX(OFFSET(J142,M142,0),OFFSET(I142,M142,0)),roundto),roundto)+add_margin)) -> 1540000 | M142: =IF(INDIRECT("Calendar!E"&MATCH($A142,Calendar!A:A,0)-1),0,IF(INDIRECT("Calendar!E"&MATCH($A142,Calendar!A:A,0)-2),1,2)) -> 0
A143: 2025-04-01 | B143: -800707 | C143: -580127 | D143: 0 | E143: 203 | F143: =IF($A143="","",IF(E143=0,0,SUMPRODUCT($D145:$D394,Parameter!$B$14:$B$263)/E143)) -> 214269.7249 | G143: =IF($A143="","",IF(E143=0,0,SQRT(SUMPRODUCT(IF($D145:$D394>0,(($D145:$D394)-$F143)^2,0),Parameter!$B$14:$B$263)/E143))) -> 334655.5223 | H143: 1485960.71 | I143: 1485960.71 | J143: 781470.4 | K143: =IF($A144="","",IF($I$3="YES",VLOOKUP(OFFSET(A144,M143,0),Calendar!$A$2:$C$10000,3,FALSE),1)) -> 1 | L143: =IF(A144="","",IF(VLOOKUP(A143,Calendar!A:E,5,FALSE)=0,"",CEILING(K143*CEILING(MAX(OFFSET(J143,M143,0),OFFSET(I143,M143,0)),roundto),roundto)+add_margin)) -> 1540000 | M143: =IF(INDIRECT("Calendar!E"&MATCH($A143,Calendar!A:A,0)-1),0,IF(INDIRECT("Calendar!E"&MATCH($A143,Calendar!A:A,0)-2),1,2)) -> 0
A144: 2025-03-31 | B144: -452793 | C144: -8225 | D144: 0 | E144: 204 | F144: =IF($A144="","",IF(E144=0,0,SUMPRODUCT($D146:$D395,Parameter!$B$14:$B$263)/E144)) -> 215492.821 | G144: =IF($A144="","",IF(E144=0,0,SQRT(SUMPRODUCT(IF($D146:$D395>0,(($D146:$D395)-$F144)^2,0),Parameter!$B$14:$B$263)/E144))) -> 334996.4279 | H144: 1488479.247 | I144: 1488479.247 | J144: 781470.4 | K144: =IF($A145="","",IF($I$3="YES",VLOOKUP(OFFSET(A145,M144,0),Calendar!$A$2:$C$10000,3,FALSE),1)) -> 1 | L144: =IF(A145="","",IF(VLOOKUP(A144,Calendar!A:E,5,FALSE)=0,"",CEILING(K144*CEILING(MAX(OFFSET(J144,M144,0),OFFSET(I144,M144,0)),roundto),roundto)+add_margin)) -> 1540000 | M144: =IF(INDIRECT("Calendar!E"&MATCH($A144,Calendar!A:A,0)-1),0,IF(INDIRECT("Calendar!E"&MATCH($A144,Calendar!A:A,0)-2),1,2)) -> 0
A145: 2025-03-28 | B145: -501367 | C145: -353042 | D145: 0 | E145: 205 | F145: =IF($A145="","",IF(E145=0,0,SUMPRODUCT($D147:$D396,Parameter!$B$14:$B$263)/E145)) -> 216730.2812 | G145: =IF($A145="","",IF(E145=0,0,SQRT(SUMPRODUCT(IF($D147:$D396>0,(($D147:$D396)-$F145)^2,0),Parameter!$B$14:$B$263)/E145))) -> 335336.0522 | H145: 1491007.28 | I145: 1491007.28 | J145: 781470.4 | K145: =IF($A146="","",IF($I$3="YES",VLOOKUP(OFFSET(A146,M145,0),Calendar!$A$2:$C$10000,3,FALSE),1)) -> 1 | L145: =IF(A146="","",IF(VLOOKUP(A145,Calendar!A:E,5,FALSE)=0,"",CEILING(K145*CEILING(MAX(OFFSET(J145,M145,0),OFFSET(I145,M145,0)),roundto),roundto)+add_margin)) -> 1550000 | M145: =IF(INDIRECT("Calendar!E"&MATCH($A145,Calendar!A:A,0)-1),0,IF(INDIRECT("Calendar!E"&MATCH($A145,Calendar!A:A,0)-2),1,2)) -> 0
A146: 2025-03-27 | B146: -747312 | C146: -323918 | D146: 0 | E146: 206 | F146: =IF($A146="","",IF(E146=0,0,SUMPRODUCT($D148:$D397,Parameter!$B$14:$B$263)/E146)) -> 218030.6412 | G146: =IF($A146="","",IF(E146=0,0,SQRT(SUMPRODUCT(IF($D148:$D397>0,(($D148:$D397)-$F146)^2,0),Parameter!$B$14:$B$263)/E146))) -> 335676.982 | H146: 1493603.173 | I146: 1493603.173 | J146: 781470.4 | K146: =IF($A147="","",IF($I$3="YES",VLOOKUP(OFFSET(A147,M146,0),Calendar!$A$2:$C$10000,3,FALSE),1)) -> 1 | L146: =IF(A147="","",IF(VLOOKUP(A146,Calendar!A:E,5,FALSE)=0,"",CEILING(K146*CEILING(MAX(OFFSET(J146,M146,0),OFFSET(I146,M146,0)),roundto),roundto)+add_margin)) -> 1550000 | M146: =IF(INDIRECT("Calendar!E"&MATCH($A146,Calendar!A:A,0)-1),0,IF(INDIRECT("Calendar!E"&MATCH($A146,Calendar!A:A,0)-2),1,2)) -> 0
A147: 2025-03-26 | B147: -470684 | C147: -8284 | D147: 0 | E147: 207 | F147: =IF($A147="","",IF(E147=0,0,SUMPRODUCT($D149:$D398,Parameter!$B$14:$B$263)/E147)) -> 219291.8444 | G147: =IF($A147="","",IF(E147=0,0,SQRT(SUMPRODUCT(IF($D149:$D398>0,(($D149:$D398)-$F147)^2,0),Parameter!$B$14:$B$263)/E147))) -> 336014.4406 | H147: 1496146.719 | I147: 1496146.719 | J147: 866272 | K147: =IF($A148="","",IF($I$3="YES",VLOOKUP(OFFSET(A148,M147,0),Calendar!$A$2:$C$10000,3,FALSE),1)) -> 1 | L147: =IF(A148="","",IF(VLOOKUP(A147,Calendar!A:E,5,FALSE)=0,"",CEILING(K147*CEILING(MAX(OFFSET(J147,M147,0),OFFSET(I147,M147,0)),roundto),roundto)+add_margin)) -> 1550000 | M147: =IF(INDIRECT("Calendar!E"&MATCH($A147,Calendar!A:A,0)-1),0,IF(INDIRECT("Calendar!E"&MATCH($A147,Calendar!A:A,0)-2),1,2)) -> 0
A148: 2025-03-25 | B148: -729594 | C148: -632351 | D148: 0 | E148: 208 | F148: =IF($A148="","",IF(E148=0,0,SUMPRODUCT($D150:$D399,Parameter!$B$14:$B$263)/E148)) -> 220446.3119 | G148: =IF($A148="","",IF(E148=0,0,SQRT(SUMPRODUCT(IF($D150:$D399>0,(($D150:$D399)-$F148)^2,0),Parameter!$B$14:$B$263)/E148))) -> 336422.0788 | H148: 1498850.211 | I148: 1498850.211 | J148: 866272 | K148: =IF($A149="","",IF($I$3="YES",VLOOKUP(OFFSET(A149,M148,0),Calendar!$A$2:$C$10000,3,FALSE),1)) -> 1 | L148: =IF(A149="","",IF(VLOOKUP(A148,Calendar!A:E,5,FALSE)=0,"",CEILING(K148*CEILING(MAX(OFFSET(J148,M148,0),OFFSET(I148,M148,0)),roundto),roundto)+add_margin)) -> 1550000 | M148: =IF(INDIRECT("Calendar!E"&MATCH($A148,Calendar!A:A,0)-1),0,IF(INDIRECT("Calendar!E"&MATCH($A148,Calendar!A:A,0)-2),1,2)) -> 0
A149: 2025-03-24 | B149: -844047 | C149: -119433 | D149: 0 | E149: 209 | F149: =IF($A149="","",IF(E149=0,0,SUMPRODUCT($D151:$D400,Parameter!$B$14:$B$263)/E149)) -> 221655.6772 | G149: =IF($A149="","",IF(E149=0,0,SQRT(SUMPRODUCT(IF($D151:$D400>0,(($D151:$D400)-$F149)^2,0),Parameter!$B$14:$B$263)/E149))) -> 336790.7683 | H149: 1501460.597 | I149: 1501460.597 | J149: 1643174.4 | K149: =IF($A150="","",IF($I$3="YES",VLOOKUP(OFFSET(A150,M149,0),Calendar!$A$2:$C$10000,3,FALSE),1)) -> 1 | L149: =IF(A150="","",IF(VLOOKUP(A149,Calendar!A:E,5,FALSE)=0,"",CEILING(K149*CEILING(MAX(OFFSET(J149,M149,0),OFFSET(I149,M149,0)),roundto),roundto)+add_margin)) -> 1700000 | M149: =IF(INDIRECT("Calendar!E"&MATCH($A149,Calendar!A:A,0)-1),0,IF(INDIRECT("Calendar!E"&MATCH($A149,Calendar!A:A,0)-2),1,2)) -> 0
A150: 2025-03-21 | B150: -494151 | C150: -244280 | D150: 0 | E150: 210 | F150: =IF($A150="","",IF(E150=0,0,SUMPRODUCT($D152:$D401,Parameter!$B$14:$B$263)/E150)) -> 222942.7086 | G150: =IF($A150="","",IF(E150=0,0,SQRT(SUMPRODUCT(IF($D152:$D401>0,(($D152:$D401)-$F150)^2,0),Parameter!$B$14:$B$263)/E150))) -> 337127.7848 | H150: 1504028.291 | I150: 1504028.291 | J150: 1643174.4 | K150: =IF($A151="","",IF($I$3="YES",VLOOKUP(OFFSET(A151,M150,0),Calendar!$A$2:$C$10000,3,FALSE),1)) -> 1 | L150: =IF(A151="","",IF(VLOOKUP(A150,Calendar!A:E,5,FALSE)=0,"",CEILING(K150*CEILING(MAX(OFFSET(J150,M150,0),OFFSET(I150,M150,0)),roundto),roundto)+add_margin)) -> 1700000 | M150: =IF(INDIRECT("Calendar!E"&MATCH($A150,Calendar!A:A,0)-1),0,IF(INDIRECT("Calendar!E"&MATCH($A150,Calendar!A:A,0)-2),1,2)) -> 0
A151: 2025-03-20 | B151: -777249 | C151: -478533 | D151: 0 | E151: 211 | F151: =IF($A151="","",IF(E151=0,0,SUMPRODUCT($D153:$D402,Parameter!$B$14:$B$263)/E151)) -> 224213.6919 | G151: =IF($A151="","",IF(E151=0,0,SQRT(SUMPRODUCT(IF($D153:$D402>0,(($D153:$D402)-$F151)^2,0),Parameter!$B$14:$B$263)/E151))) -> 337472.6197 | H151: 1506609.647 | I151: 1506609.647 | J151: 1643174.4 | K151: =IF($A152="","",IF($I$3="YES",VLOOKUP(OFFSET(A152,M151,0),Calendar!$A$2:$C$10000,3,FALSE),1)) -> 1 | L151: =IF(A152="","",IF(VLOOKUP(A151,Calendar!A:E,5,FALSE)=0,"",CEILING(K151*CEILING(MAX(OFFSET(J151,M151,0),OFFSET(I151,M151,0)),roundto),roundto)+add_margin)) -> 1700000 | M151: =IF(INDIRECT("Calendar!E"&MATCH($A151,Calendar!A:A,0)-1),0,IF(INDIRECT("Calendar!E"&MATCH($A151,Calendar!A:A,0)-2),1,2)) -> 0
A152: 2025-03-19 | B152: -667214 | C152: -109515 | D152: 0 | E152: 212 | F152: =IF($A152="","",IF(E152=0,0,SUMPRODUCT($D154:$D403,Parameter!$B$14:$B$263)/E152)) -> 225642.4961 | G152: =IF($A152="","",IF(E152=0,0,SQRT(SUMPRODUCT(IF($D154:$D403>0,(($D154:$D403)-$F152)^2,0),Parameter!$B$14:$B$263)/E152))) -> 337835.7618 | H152: 1509418.391 | I152: 1509418.391 | J152: 1643174.4 | K152: =IF($A153="","",IF($I$3="YES",VLOOKUP(OFFSET(A153,M152,0),Calendar!$A$2:$C$10000,3,FALSE),1)) -> 1 | L152: =IF(A153="","",IF(VLOOKUP(A152,Calendar!A:E,5,FALSE)=0,"",CEILING(K152*CEILING(MAX(OFFSET(J152,M152,0),OFFSET(I152,M152,0)),roundto),roundto)+add_margin)) -> 1700000 | M152: =IF(INDIRECT("Calendar!E"&MATCH($A152,Calendar!A:A,0)-1),0,IF(INDIRECT("Calendar!E"&MATCH($A152,Calendar!A:A,0)-2),1,2)) -> 0
A153: 2025-03-18 | B153: -988381 | C153: -810991 | D153: 0 | E153: 213 | F153: =IF($A153="","",IF(E153=0,0,SUMPRODUCT($D155:$D404,Parameter!$B$14:$B$263)/E153)) -> 227004.2746 | G153: =IF($A153="","",IF(E153=0,0,SQRT(SUMPRODUCT(IF($D155:$D404>0,(($D155:$D404)-$F153)^2,0),Parameter!$B$14:$B$263)/E153))) -> 338166.0417 | H153: 1512035.233 | I153: 1512035.233 | J153: 1643174.4 | K153: =IF($A154="","",IF($I$3="YES",VLOOKUP(OFFSET(A154,M153,0),Calendar!$A$2:$C$10000,3,FALSE),1)) -> 1 | L153: =IF(A154="","",IF(VLOOKUP(A153,Calendar!A:E,5,FALSE)=0,"",CEILING(K153*CEILING(MAX(OFFSET(J153,M153,0),OFFSET(I153,M153,0)),roundto),roundto)+add_margin)) -> 1700000 | M153: =IF(INDIRECT("Calendar!E"&MATCH($A153,Calendar!A:A,0)-1),0,IF(INDIRECT("Calendar!E"&MATCH($A153,Calendar!A:A,0)-2),1,2)) -> 0
A154: 2025-03-17 | B154: -1067812 | C154: -244914 | D154: 0 | E154: 214 | F154: =IF($A154="","",IF(E154=0,0,SUMPRODUCT($D156:$D405,Parameter!$B$14:$B$263)/E154)) -> 228244.5146 | G154: =IF($A154="","",IF(E154=0,0,SQRT(SUMPRODUCT(IF($D156:$D405>0,(($D156:$D405)-$F154)^2,0),Parameter!$B$14:$B$263)/E154))) -> 338553.6283 | H154: 1514748.302 | I154: 1514748.302 | J154: 1643174.4 | K154: =IF($A155="","",IF($I$3="YES",VLOOKUP(OFFSET(A155,M154,0),Calendar!$A$2:$C$10000,3,FALSE),1)) -> 1 | L154: =IF(A155="","",IF(VLOOKUP(A154,Calendar!A:E,5,FALSE)=0,"",CEILING(K154*CEILING(MAX(OFFSET(J154,M154,0),OFFSET(I154,M154,0)),roundto),roundto)+add_margin)) -> 1700000 | M154: =IF(INDIRECT("Calendar!E"&MATCH($A154,Calendar!A:A,0)-1),0,IF(INDIRECT("Calendar!E"&MATCH($A154,Calendar!A:A,0)-2),1,2)) -> 0
A155: 2025-03-14 | B155: -405047 | C155: 42484 | D155: 0 | E155: 215 | F155: =IF($A155="","",IF(E155=0,0,SUMPRODUCT($D157:$D406,Parameter!$B$14:$B$263)/E155)) -> 229659.7619 | G155: =IF($A155="","",IF(E155=0,0,SQRT(SUMPRODUCT(IF($D157:$D406>0,(($D157:$D406)-$F155)^2,0),Parameter!$B$14:$B$263)/E155))) -> 338887.3229 | H155: 1517431.589 | I155: 1517431.589 | J155: 1643174.4 | K155: =IF($A156="","",IF($I$3="YES",VLOOKUP(OFFSET(A156,M155,0),Calendar!$A$2:$C$10000,3,FALSE),1)) -> 1 | L155: =IF(A156="","",IF(VLOOKUP(A155,Calendar!A:E,5,FALSE)=0,"",CEILING(K155*CEILING(MAX(OFFSET(J155,M155,0),OFFSET(I155,M155,0)),roundto),roundto)+add_margin)) -> 1700000 | M155: =IF(INDIRECT("Calendar!E"&MATCH($A155,Calendar!A:A,0)-1),0,IF(INDIRECT("Calendar!E"&MATCH($A155,Calendar!A:A,0)-2),1,2)) -> 0
A156: 2025-03-13 | B156: -204723 | C156: -50316 | D156: 0 | E156: 215 | F156: =IF($A156="","",IF(E156=0,0,SUMPRODUCT($D158:$D407,Parameter!$B$14:$B$263)/E156)) -> 231990.8024 | G156: =IF($A156="","",IF(E156=0,0,SQRT(SUMPRODUCT(IF($D158:$D407>0,(($D158:$D407)-$F156)^2,0),Parameter!$B$14:$B$263)/E156))) -> 339287.9327 | H156: 1521284.947 | I156: 1521284.947 | J156: 1643174.4 | K156: =IF($A157="","",IF($I$3="YES",VLOOKUP(OFFSET(A157,M156,0),Calendar!$A$2:$C$10000,3,FALSE),1)) -> 1 | L156: =IF(A157="","",IF(VLOOKUP(A156,Calendar!A:E,5,FALSE)=0,"",CEILING(K156*CEILING(MAX(OFFSET(J156,M156,0),OFFSET(I156,M156,0)),roundto),roundto)+add_margin)) -> 1700000 | M156: =IF(INDIRECT("Calendar!E"&MATCH($A156,Calendar!A:A,0)-1),0,IF(INDIRECT("Calendar!E"&MATCH($A156,Calendar!A:A,0)-2),1,2)) -> 0
A157: 2025-03-12 | B157: 24438 | C157: 164435 | D157: 24438 | E157: 216 | F157: =IF($A157="","",IF(E157=0,0,SUMPRODUCT($D159:$D408,Parameter!$B$14:$B$263)/E157)) -> 233355.15 | G157: =IF($A157="","",IF(E157=0,0,SQRT(SUMPRODUCT(IF($D159:$D408>0,(($D159:$D408)-$F157)^2,0),Parameter!$B$14:$B$263)/E157))) -> 339608.1239 | H157: 1523866.021 | I157: 1523866.021 | J157: 1643174.4 | K157: =IF($A158="","",IF($I$3="YES",VLOOKUP(OFFSET(A158,M157,0),Calendar!$A$2:$C$10000,3,FALSE),1)) -> 1 | L157: =IF(A158="","",IF(VLOOKUP(A157,Calendar!A:E,5,FALSE)=0,"",CEILING(K157*CEILING(MAX(OFFSET(J157,M157,0),OFFSET(I157,M157,0)),roundto),roundto)+add_margin)) -> 1700000 | M157: =IF(INDIRECT("Calendar!E"&MATCH($A157,Calendar!A:A,0)-1),0,IF(INDIRECT("Calendar!E"&MATCH($A157,Calendar!A:A,0)-2),1,2)) -> 0
A158: 2025-03-11 | B158: -440352 | C158: -328512 | D158: 0 | E158: 217 | F158: =IF($A158="","",IF(E158=0,0,SUMPRODUCT($D160:$D409,Parameter!$B$14:$B$263)/E158)) -> 234742.6992 | G158: =IF($A158="","",IF(E158=0,0,SQRT(SUMPRODUCT(IF($D160:$D409>0,(($D160:$D409)-$F158)^2,0),Parameter!$B$14:$B$263)/E158))) -> 339923.8237 | H158: 1526453.229 | I158: 1526453.229 | J158: 1643174.4 | K158: =IF($A159="","",IF($I$3="YES",VLOOKUP(OFFSET(A159,M158,0),Calendar!$A$2:$C$10000,3,FALSE),1)) -> 1 | L158: =IF(A159="","",IF(VLOOKUP(A158,Calendar!A:E,5,FALSE)=0,"",CEILING(K158*CEILING(MAX(OFFSET(J158,M158,0),OFFSET(I158,M158,0)),roundto),roundto)+add_margin)) -> 1700000 | M158: =IF(INDIRECT("Calendar!E"&MATCH($A158,Calendar!A:A,0)-1),0,IF(INDIRECT("Calendar!E"&MATCH($A158,Calendar!A:A,0)-2),1,2)) -> 0
A159: 2025-03-10 | B159: -976454 | C159: -403449 | D159: 0 | E159: 218 | F159: =IF($A159="","",IF(E159=0,0,SUMPRODUCT($D161:$D410,Parameter!$B$14:$B$263)/E159)) -> 236070.6212 | G159: =IF($A159="","",IF(E159=0,0,SQRT(SUMPRODUCT(IF($D161:$D410>0,(($D161:$D410)-$F159)^2,0),Parameter!$B$14:$B$263)/E159))) -> 340273.5654 | H159: 1529110.17 | I159: 1529110.17 | J159: 1643174.4 | K159: =IF($A160="","",IF($I$3="YES",VLOOKUP(OFFSET(A160,M159,0),Calendar!$A$2:$C$10000,3,FALSE),1)) -> 1 | L159: =IF(A160="","",IF(VLOOKUP(A159,Calendar!A:E,5,FALSE)=0,"",CEILING(K159*CEILING(MAX(OFFSET(J159,M159,0),OFFSET(I159,M159,0)),roundto),roundto)+add_margin)) -> 1700000 | M159: =IF(INDIRECT("Calendar!E"&MATCH($A159,Calendar!A:A,0)-1),0,IF(INDIRECT("Calendar!E"&MATCH($A159,Calendar!A:A,0)-2),1,2)) -> 0
A160: 2025-03-07 | B160: -196979 | C160: 371152 | D160: 0 | E160: 218 | F160: =IF($A160="","",IF(E160=0,0,SUMPRODUCT($D162:$D411,Parameter!$B$14:$B$263)/E160)) -> 236965.6704 | G160: =IF($A160="","",IF(E160=0,0,SQRT(SUMPRODUCT(IF($D162:$D411>0,(($D162:$D411)-$F160)^2,0),Parameter!$B$14:$B$263)/E160))) -> 341510.278 | H160: 1534704.727 | I160: 1534704.727 | J160: 1643174.4 | K160: =IF($A161="","",IF($I$3="YES",VLOOKUP(OFFSET(A161,M160,0),Calendar!$A$2:$C$10000,3,FALSE),1)) -> 1 | L160: =IF(A161="","",IF(VLOOKUP(A160,Calendar!A:E,5,FALSE)=0,"",CEILING(K160*CEILING(MAX(OFFSET(J160,M160,0),OFFSET(I160,M160,0)),roundto),roundto)+add_margin)) -> 1700000 | M160: =IF(INDIRECT("Calendar!E"&MATCH($A160,Calendar!A:A,0)-1),0,IF(INDIRECT("Calendar!E"&MATCH($A160,Calendar!A:A,0)-2),1,2)) -> 0
A161: 2025-03-06 | B161: 347987 | C161: 215979 | D161: 347987 | E161: 218 | F161: =IF($A161="","",IF(E161=0,0,SUMPRODUCT($D163:$D412,Parameter!$B$14:$B$263)/E161)) -> 238912.6853 | G161: =IF($A161="","",IF(E161=0,0,SQRT(SUMPRODUCT(IF($D163:$D412>0,(($D163:$D412)-$F161)^2,0),Parameter!$B$14:$B$263)/E161))) -> 342286.2117 | H161: 1539600.29 | I161: 1539600.29 | J161: 1643174.4 | K161: =IF($A162="","",IF($I$3="YES",VLOOKUP(OFFSET(A162,M161,0),Calendar!$A$2:$C$10000,3,FALSE),1)) -> 1 | L161: =IF(A162="","",IF(VLOOKUP(A161,Calendar!A:E,5,FALSE)=0,"",CEILING(K161*CEILING(MAX(OFFSET(J161,M161,0),OFFSET(I161,M161,0)),roundto),roundto)+add_margin)) -> 1700000 | M161: =IF(INDIRECT("Calendar!E"&MATCH($A161,Calendar!A:A,0)-1),0,IF(INDIRECT("Calendar!E"&MATCH($A161,Calendar!A:A,0)-2),1,2)) -> 0
A162: 2025-03-05 | B162: 124573 | C162: 190731 | D162: 124573 | E162: 219 | F162: =IF($A162="","",IF(E162=0,0,SUMPRODUCT($D164:$D413,Parameter!$B$14:$B$263)/E162)) -> 240441.9406 | G162: =IF($A162="","",IF(E162=0,0,SQRT(SUMPRODUCT(IF($D164:$D413>0,(($D164:$D413)-$F162)^2,0),Parameter!$B$14:$B$263)/E162))) -> 342609.558 | H162: 1542358.261 | I162: 1542358.261 | J162: 1643174.4 | K162: =IF($A163="","",IF($I$3="YES",VLOOKUP(OFFSET(A163,M162,0),Calendar!$A$2:$C$10000,3,FALSE),1)) -> 1 | L162: =IF(A163="","",IF(VLOOKUP(A162,Calendar!A:E,5,FALSE)=0,"",CEILING(K162*CEILING(MAX(OFFSET(J162,M162,0),OFFSET(I162,M162,0)),roundto),roundto)+add_margin)) -> 1700000 | M162: =IF(INDIRECT("Calendar!E"&MATCH($A162,Calendar!A:A,0)-1),0,IF(INDIRECT("Calendar!E"&MATCH($A162,Calendar!A:A,0)-2),1,2)) -> 0
A163: 2025-03-04 | B163: -142360 | C163: -181130 | D163: 0 | E163: 220 | F163: =IF($A163="","",IF(E163=0,0,SUMPRODUCT($D165:$D414,Parameter!$B$14:$B$263)/E163)) -> 242028.1313 | G163: =IF($A163="","",IF(E163=0,0,SQRT(SUMPRODUCT(IF($D165:$D414>0,(($D165:$D414)-$F163)^2,0),Parameter!$B$14:$B$263)/E163))) -> 342962.7355 | H163: 1545286.526 | I163: 1545286.526 | J163: 1643174.4 | K163: =IF($A164="","",IF($I$3="YES",VLOOKUP(OFFSET(A164,M163,0),Calendar!$A$2:$C$10000,3,FALSE),1)) -> 1 | L163: =IF(A164="","",IF(VLOOKUP(A163,Calendar!A:E,5,FALSE)=0,"",CEILING(K163*CEILING(MAX(OFFSET(J163,M163,0),OFFSET(I163,M163,0)),roundto),roundto)+add_margin)) -> 1700000 | M163: =IF(INDIRECT("Calendar!E"&MATCH($A163,Calendar!A:A,0)-1),0,IF(INDIRECT("Calendar!E"&MATCH($A163,Calendar!A:A,0)-2),1,2)) -> 0
A164: 2025-03-03 | B164: -485112 | C164: -159767 | D164: 0 | E164: 221 | F164: =IF($A164="","",IF(E164=0,0,SUMPRODUCT($D166:$D415,Parameter!$B$14:$B$263)/E164)) -> 243542.2496 | G164: =IF($A164="","",IF(E164=0,0,SQRT(SUMPRODUCT(IF($D166:$D415>0,(($D166:$D415)-$F164)^2,0),Parameter!$B$14:$B$263)/E164))) -> 343263.4445 | H164: 1547943.339 | I164: 1547943.339 | J164: 1737654.4 | K164: =IF($A165="","",IF($I$3="YES",VLOOKUP(OFFSET(A165,M164,0),Calendar!$A$2:$C$10000,3,FALSE),1)) -> 1 | L164: =IF(A165="","",IF(VLOOKUP(A164,Calendar!A:E,5,FALSE)=0,"",CEILING(K164*CEILING(MAX(OFFSET(J164,M164,0),OFFSET(I164,M164,0)),roundto),roundto)+add_margin)) -> 1790000 | M164: =IF(INDIRECT("Calendar!E"&MATCH($A164,Calendar!A:A,0)-1),0,IF(INDIRECT("Calendar!E"&MATCH($A164,Calendar!A:A,0)-2),1,2)) -> 0
A165: 2025-02-28 | B165: -691785 | C165: -99808 | D165: 0 | E165: 222 | F165: =IF($A165="","",IF(E165=0,0,SUMPRODUCT($D167:$D416,Parameter!$B$14:$B$263)/E165)) -> 244959.7957 | G165: =IF($A165="","",IF(E165=0,0,SQRT(SUMPRODUCT(IF($D167:$D416>0,(($D167:$D416)-$F165)^2,0),Parameter!$B$14:$B$263)/E165))) -> 343583.3004 | H165: 1550576.337 | I165: 1550576.337 | J165: 1737654.4 | K165: =IF($A166="","",IF($I$3="YES",VLOOKUP(OFFSET(A166,M165,0),Calendar!$A$2:$C$10000,3,FALSE),1)) -> 1 | L165: =IF(A166="","",IF(VLOOKUP(A165,Calendar!A:E,5,FALSE)=0,"",CEILING(K165*CEILING(MAX(OFFSET(J165,M165,0),OFFSET(I165,M165,0)),roundto),roundto)+add_margin)) -> 1790000 | M165: =IF(INDIRECT("Calendar!E"&MATCH($A165,Calendar!A:A,0)-1),0,IF(INDIRECT("Calendar!E"&MATCH($A165,Calendar!A:A,0)-2),1,2)) -> 0
A166: 2025-02-27 | B166: -227154 | C166: 246891 | D166: 0 | E166: 223 | F166: =IF($A166="","",IF(E166=0,0,SUMPRODUCT($D168:$D417,Parameter!$B$14:$B$263)/E166)) -> 246486.4041 | G166: =IF($A166="","",IF(E166=0,0,SQRT(SUMPRODUCT(IF($D168:$D417>0,(($D168:$D417)-$F166)^2,0),Parameter!$B$14:$B$263)/E166))) -> 343876.7448 | H166: 1553218.034 | I166: 1553218.034 | J166: 1737654.4 | K166: =IF($A167="","",IF($I$3="YES",VLOOKUP(OFFSET(A167,M166,0),Calendar!$A$2:$C$10000,3,FALSE),1)) -> 1 | L166: =IF(A167="","",IF(VLOOKUP(A166,Calendar!A:E,5,FALSE)=0,"",CEILING(K166*CEILING(MAX(OFFSET(J166,M166,0),OFFSET(I166,M166,0)),roundto),roundto)+add_margin)) -> 1790000 | M166: =IF(INDIRECT("Calendar!E"&MATCH($A166,Calendar!A:A,0)-1),0,IF(INDIRECT("Calendar!E"&MATCH($A166,Calendar!A:A,0)-2),1,2)) -> 0
A167: 2025-02-26 | B167: -580427 | C167: -852064 | D167: 0 | E167: 224 | F167: =IF($A167="","",IF(E167=0,0,SUMPRODUCT($D169:$D418,Parameter!$B$14:$B$263)/E167)) -> 248117.8444 | G167: =IF($A167="","",IF(E167=0,0,SQRT(SUMPRODUCT(IF($D169:$D418>0,(($D169:$D418)-$F167)^2,0),Parameter!$B$14:$B$263)/E167))) -> 344212.8454 | H167: 1556126.657 | I167: 1556126.657 | J167: 1737654.4 | K167: =IF($A168="","",IF($I$3="YES",VLOOKUP(OFFSET(A168,M167,0),Calendar!$A$2:$C$10000,3,FALSE),1)) -> 1 | L167: =IF(A168="","",IF(VLOOKUP(A167,Calendar!A:E,5,FALSE)=0,"",CEILING(K167*CEILING(MAX(OFFSET(J167,M167,0),OFFSET(I167,M167,0)),roundto),roundto)+add_margin)) -> 1790000 | M167: =IF(INDIRECT("Calendar!E"&MATCH($A167,Calendar!A:A,0)-1),0,IF(INDIRECT("Calendar!E"&MATCH($A167,Calendar!A:A,0)-2),1,2)) -> 0
A168: 2025-02-25 | B168: -1257375 | C168: -400167 | D168: 0 | E168: 225 | F168: =IF($A168="","",IF(E168=0,0,SUMPRODUCT($D170:$D419,Parameter!$B$14:$B$263)/E168)) -> 249740.9967 | G168: =IF($A168="","",IF(E168=0,0,SQRT(SUMPRODUCT(IF($D170:$D419>0,(($D170:$D419)-$F168)^2,0),Parameter!$B$14:$B$263)/E168))) -> 344528.5353 | H168: 1558949.431 | I168: 1558949.431 | J168: 2149096 | K168: =IF($A169="","",IF($I$3="YES",VLOOKUP(OFFSET(A169,M168,0),Calendar!$A$2:$C$10000,3,FALSE),1)) -> 1 | L168: =IF(A169="","",IF(VLOOKUP(A168,Calendar!A:E,5,FALSE)=0,"",CEILING(K168*CEILING(MAX(OFFSET(J168,M168,0),OFFSET(I168,M168,0)),roundto),roundto)+add_margin)) -> 2200000 | M168: =IF(INDIRECT("Calendar!E"&MATCH($A168,Calendar!A:A,0)-1),0,IF(INDIRECT("Calendar!E"&MATCH($A168,Calendar!A:A,0)-2),1,2)) -> 0
A169: 2025-02-24 | B169: -11454 | C169: 357592 | D169: 0 | E169: 225 | F169: =IF($A169="","",IF(E169=0,0,SUMPRODUCT($D171:$D420,Parameter!$B$14:$B$263)/E169)) -> 252164.4859 | G169: =IF($A169="","",IF(E169=0,0,SQRT(SUMPRODUCT(IF($D171:$D420>0,(($D171:$D420)-$F169)^2,0),Parameter!$B$14:$B$263)/E169))) -> 344873.5874 | H169: 1562684.118 | I169: 1562684.118 | J169: 2149096 | K169: =IF($A170="","",IF($I$3="YES",VLOOKUP(OFFSET(A170,M169,0),Calendar!$A$2:$C$10000,3,FALSE),1)) -> 1 | L169: =IF(A170="","",IF(VLOOKUP(A169,Calendar!A:E,5,FALSE)=0,"",CEILING(K169*CEILING(MAX(OFFSET(J169,M169,0),OFFSET(I169,M169,0)),roundto),roundto)+add_margin)) -> 2200000 | M169: =IF(INDIRECT("Calendar!E"&MATCH($A169,Calendar!A:A,0)-1),0,IF(INDIRECT("Calendar!E"&MATCH($A169,Calendar!A:A,0)-2),1,2)) -> 0
A170: 2025-02-21 | B170: 34976 | C170: -327035 | D170: 34976 | E170: 226 | F170: =IF($A170="","",IF(E170=0,0,SUMPRODUCT($D172:$D421,Parameter!$B$14:$B$263)/E170)) -> 253691.9954 | G170: =IF($A170="","",IF(E170=0,0,SQRT(SUMPRODUCT(IF($D172:$D421>0,(($D172:$D421)-$F170)^2,0),Parameter!$B$14:$B$263)/E170))) -> 345151.2799 | H170: 1565266.859 | I170: 1565266.859 | J170: 2149096 | K170: =IF($A171="","",IF($I$3="YES",VLOOKUP(OFFSET(A171,M170,0),Calendar!$A$2:$C$10000,3,FALSE),1)) -> 1 | L170: =IF(A171="","",IF(VLOOKUP(A170,Calendar!A:E,5,FALSE)=0,"",CEILING(K170*CEILING(MAX(OFFSET(J170,M170,0),OFFSET(I170,M170,0)),roundto),roundto)+add_margin)) -> 2200000 | M170: =IF(INDIRECT("Calendar!E"&MATCH($A170,Calendar!A:A,0)-1),0,IF(INDIRECT("Calendar!E"&MATCH($A170,Calendar!A:A,0)-2),1,2)) -> 0
A171: 2025-02-20 | B171: -223907 | C171: 63737 | D171: 0 | E171: 226 | F171: =IF($A171="","",IF(E171=0,0,SUMPRODUCT($D173:$D422,Parameter!$B$14:$B$263)/E171)) -> 254132.8878 | G171: =IF($A171="","",IF(E171=0,0,SQRT(SUMPRODUCT(IF($D173:$D422>0,(($D173:$D422)-$F171)^2,0),Parameter!$B$14:$B$263)/E171))) -> 346349.5086 | H171: 1570261.021 | I171: 1570261.021 | J171: 2149096 | K171: =IF($A172="","",IF($I$3="YES",VLOOKUP(OFFSET(A172,M171,0),Calendar!$A$2:$C$10000,3,FALSE),1)) -> 1 | L171: =IF(A172="","",IF(VLOOKUP(A171,Calendar!A:E,5,FALSE)=0,"",CEILING(K171*CEILING(MAX(OFFSET(J171,M171,0),OFFSET(I171,M171,0)),roundto),roundto)+add_margin)) -> 2200000 | M171: =IF(INDIRECT("Calendar!E"&MATCH($A171,Calendar!A:A,0)-1),0,IF(INDIRECT("Calendar!E"&MATCH($A171,Calendar!A:A,0)-2),1,2)) -> 0
A172: 2025-02-19 | B172: 488419 | C172: 442895 | D172: 488419 | E172: 226 | F172: =IF($A172="","",IF(E172=0,0,SUMPRODUCT($D174:$D423,Parameter!$B$14:$B$263)/E172)) -> 254755.1831 | G172: =IF($A172="","",IF(E172=0,0,SQRT(SUMPRODUCT(IF($D174:$D423>0,(($D174:$D423)-$F172)^2,0),Parameter!$B$14:$B$263)/E172))) -> 347522.6089 | H172: 1575341.097 | I172: 1575341.097 | J172: 2149096 | K172: =IF($A173="","",IF($I$3="YES",VLOOKUP(OFFSET(A173,M172,0),Calendar!$A$2:$C$10000,3,FALSE),1)) -> 1 | L172: =IF(A173="","",IF(VLOOKUP(A172,Calendar!A:E,5,FALSE)=0,"",CEILING(K172*CEILING(MAX(OFFSET(J172,M172,0),OFFSET(I172,M172,0)),roundto),roundto)+add_margin)) -> 2200000 | M172: =IF(INDIRECT("Calendar!E"&MATCH($A172,Calendar!A:A,0)-1),0,IF(INDIRECT("Calendar!E"&MATCH($A172,Calendar!A:A,0)-2),1,2)) -> 0
A173: 2025-02-18 | B173: 471324 | C173: 9046 | D173: 471324 | E173: 226 | F173: =IF($A173="","",IF(E173=0,0,SUMPRODUCT($D175:$D424,Parameter!$B$14:$B$263)/E173)) -> 256515.4439 | G173: =IF($A173="","",IF(E173=0,0,SQRT(SUMPRODUCT(IF($D175:$D424>0,(($D175:$D424)-$F173)^2,0),Parameter!$B$14:$B$263)/E173))) -> 348521.8839 | H173: 1580898.603 | I173: 1580898.603 | J173: 2149096 | K173: =IF($A174="","",IF($I$3="YES",VLOOKUP(OFFSET(A174,M173,0),Calendar!$A$2:$C$10000,3,FALSE),1)) -> 1 | L173: =IF(A174="","",IF(VLOOKUP(A173,Calendar!A:E,5,FALSE)=0,"",CEILING(K173*CEILING(MAX(OFFSET(J173,M173,0),OFFSET(I173,M173,0)),roundto),roundto)+add_margin)) -> 2200000 | M173: =IF(INDIRECT("Calendar!E"&MATCH($A173,Calendar!A:A,0)-1),0,IF(INDIRECT("Calendar!E"&MATCH($A173,Calendar!A:A,0)-2),1,2)) -> 0
A174: 2025-02-17 | B174: 230442 | C174: 181029 | D174: 230442 | E174: 226 | F174: =IF($A174="","",IF(E174=0,0,SUMPRODUCT($D176:$D425,Parameter!$B$14:$B$263)/E174)) -> 258097.7148 | G174: =IF($A174="","",IF(E174=0,0,SQRT(SUMPRODUCT(IF($D176:$D425>0,(($D176:$D425)-$F174)^2,0),Parameter!$B$14:$B$263)/E174))) -> 349557.2295 | H174: 1586415.187 | I174: 1586415.187 | J174: 2149096 | K174: =IF($A175="","",IF($I$3="YES",VLOOKUP(OFFSET(A175,M174,0),Calendar!$A$2:$C$10000,3,FALSE),1)) -> 1 | L174: =IF(A175="","",IF(VLOOKUP(A174,Calendar!A:E,5,FALSE)=0,"",CEILING(K174*CEILING(MAX(OFFSET(J174,M174,0),OFFSET(I174,M174,0)),roundto),roundto)+add_margin)) -> 2200000 | M174: =IF(INDIRECT("Calendar!E"&MATCH($A174,Calendar!A:A,0)-1),0,IF(INDIRECT("Calendar!E"&MATCH($A174,Calendar!A:A,0)-2),1,2)) -> 0
A175: 2025-02-14 | B175: 253646 | C175: 53828 | D175: 253646 | E175: 226 | F175: =IF($A175="","",IF(E175=0,0,SUMPRODUCT($D177:$D426,Parameter!$B$14:$B$263)/E175)) -> 259348.2558 | G175: =IF($A175="","",IF(E175=0,0,SQRT(SUMPRODUCT(IF($D177:$D426>0,(($D177:$D426)-$F175)^2,0),Parameter!$B$14:$B$263)/E175))) -> 350720.5954 | H175: 1592086.518 | I175: 1592086.518 | J175: 2149096 | K175: =IF($A176="","",IF($I$3="YES",VLOOKUP(OFFSET(A176,M175,0),Calendar!$A$2:$C$10000,3,FALSE),1)) -> 1 | L175: =IF(A176="","",IF(VLOOKUP(A175,Calendar!A:E,5,FALSE)=0,"",CEILING(K175*CEILING(MAX(OFFSET(J175,M175,0),OFFSET(I175,M175,0)),roundto),roundto)+add_margin)) -> 2200000 | M175: =IF(INDIRECT("Calendar!E"&MATCH($A175,Calendar!A:A,0)-1),0,IF(INDIRECT("Calendar!E"&MATCH($A175,Calendar!A:A,0)-2),1,2)) -> 0
A176: 2025-02-13 | B176: 323624 | C176: 159708 | D176: 323624 | E176: 226 | F176: =IF($A176="","",IF(E176=0,0,SUMPRODUCT($D178:$D427,Parameter!$B$14:$B$263)/E176)) -> 259686.0438 | G176: =IF($A176="","",IF(E176=0,0,SQRT(SUMPRODUCT(IF($D178:$D427>0,(($D178:$D427)-$F176)^2,0),Parameter!$B$14:$B$263)/E176))) -> 351835.2985 | H176: 1596660.178 | I176: 1596660.178 | J176: 2149096 | K176: =IF($A177="","",IF($I$3="YES",VLOOKUP(OFFSET(A177,M176,0),Calendar!$A$2:$C$10000,3,FALSE),1)) -> 1 | L176: =IF(A177="","",IF(VLOOKUP(A176,Calendar!A:E,5,FALSE)=0,"",CEILING(K176*CEILING(MAX(OFFSET(J176,M176,0),OFFSET(I176,M176,0)),roundto),roundto)+add_margin)) -> 2200000 | M176: =IF(INDIRECT("Calendar!E"&MATCH($A176,Calendar!A:A,0)-1),0,IF(INDIRECT("Calendar!E"&MATCH($A176,Calendar!A:A,0)-2),1,2)) -> 0
A177: 2025-02-12 | B177: 541420 | C177: 337875 | D177: 541420 | E177: 226 | F177: =IF($A177="","",IF(E177=0,0,SUMPRODUCT($D179:$D428,Parameter!$B$14:$B$263)/E177)) -> 260196.6239 | G177: =IF($A177="","",IF(E177=0,0,SQRT(SUMPRODUCT(IF($D179:$D428>0,(($D179:$D428)-$F177)^2,0),Parameter!$B$14:$B$263)/E177))) -> 352986.6231 | H177: 1601545.792 | I177: 1601545.792 | J177: 2149096 | K177: =IF($A178="","",IF($I$3="YES",VLOOKUP(OFFSET(A178,M177,0),Calendar!$A$2:$C$10000,3,FALSE),1)) -> 1 | L177: =IF(A178="","",IF(VLOOKUP(A177,Calendar!A:E,5,FALSE)=0,"",CEILING(K177*CEILING(MAX(OFFSET(J177,M177,0),OFFSET(I177,M177,0)),roundto),roundto)+add_margin)) -> 2200000 | M177: =IF(INDIRECT("Calendar!E"&MATCH($A177,Calendar!A:A,0)-1),0,IF(INDIRECT("Calendar!E"&MATCH($A177,Calendar!A:A,0)-2),1,2)) -> 0
A178: 2025-02-11 | B178: 518681 | C178: 518938 | D178: 518681 | E178: 226 | F178: =IF($A178="","",IF(E178=0,0,SUMPRODUCT($D180:$D429,Parameter!$B$14:$B$263)/E178)) -> 258513.2528 | G178: =IF($A178="","",IF(E178=0,0,SQRT(SUMPRODUCT(IF($D180:$D429>0,(($D180:$D429)-$F178)^2,0),Parameter!$B$14:$B$263)/E178))) -> 351920.178 | H178: 1595809.929 | I178: 1595809.929 | J178: 2149096 | K178: =IF($A179="","",IF($I$3="YES",VLOOKUP(OFFSET(A179,M178,0),Calendar!$A$2:$C$10000,3,FALSE),1)) -> 1 | L178: =IF(A179="","",IF(VLOOKUP(A178,Calendar!A:E,5,FALSE)=0,"",CEILING(K178*CEILING(MAX(OFFSET(J178,M178,0),OFFSET(I178,M178,0)),roundto),roundto)+add_margin)) -> 2200000 | M178: =IF(INDIRECT("Calendar!E"&MATCH($A178,Calendar!A:A,0)-1),0,IF(INDIRECT("Calendar!E"&MATCH($A178,Calendar!A:A,0)-2),1,2)) -> 0
A179: 2025-02-10 | B179: 1026984 | C179: 461645 | D179: 1026984 | E179: 226 | F179: =IF($A179="","",IF(E179=0,0,SUMPRODUCT($D181:$D430,Parameter!$B$14:$B$263)/E179)) -> 257843.3986 | G179: =IF($A179="","",IF(E179=0,0,SQRT(SUMPRODUCT(IF($D181:$D430>0,(($D181:$D430)-$F179)^2,0),Parameter!$B$14:$B$263)/E179))) -> 352331.8922 | H179: 1596704.589 | I179: 1596704.589 | J179: 2149096 | K179: =IF($A180="","",IF($I$3="YES",VLOOKUP(OFFSET(A180,M179,0),Calendar!$A$2:$C$10000,3,FALSE),1)) -> 1 | L179: =IF(A180="","",IF(VLOOKUP(A179,Calendar!A:E,5,FALSE)=0,"",CEILING(K179*CEILING(MAX(OFFSET(J179,M179,0),OFFSET(I179,M179,0)),roundto),roundto)+add_margin)) -> 2200000 | M179: =IF(INDIRECT("Calendar!E"&MATCH($A179,Calendar!A:A,0)-1),0,IF(INDIRECT("Calendar!E"&MATCH($A179,Calendar!A:A,0)-2),1,2)) -> 0
A180: 2025-02-07 | B180: 775885 | C180: 464850 | D180: 775885 | E180: 226 | F180: =IF($A180="","",IF(E180=0,0,SUMPRODUCT($D182:$D431,Parameter!$B$14:$B$263)/E180)) -> 256905.3272 | G180: =IF($A180="","",IF(E180=0,0,SQRT(SUMPRODUCT(IF($D182:$D431>0,(($D182:$D431)-$F180)^2,0),Parameter!$B$14:$B$263)/E180))) -> 352500.2261 | H180: 1596406.186 | I180: 1596406.186 | J180: 2149096 | K180: =IF($A181="","",IF($I$3="YES",VLOOKUP(OFFSET(A181,M180,0),Calendar!$A$2:$C$10000,3,FALSE),1)) -> 1 | L180: =IF(A181="","",IF(VLOOKUP(A180,Calendar!A:E,5,FALSE)=0,"",CEILING(K180*CEILING(MAX(OFFSET(J180,M180,0),OFFSET(I180,M180,0)),roundto),roundto)+add_margin)) -> 2200000 | M180: =IF(INDIRECT("Calendar!E"&MATCH($A180,Calendar!A:A,0)-1),0,IF(INDIRECT("Calendar!E"&MATCH($A180,Calendar!A:A,0)-2),1,2)) -> 0
A181: 2025-02-06 | B181: 827347 | C181: 307247 | D181: 827347 | E181: 226 | F181: =IF($A181="","",IF(E181=0,0,SUMPRODUCT($D183:$D432,Parameter!$B$14:$B$263)/E181)) -> 257173.1861 | G181: =IF($A181="","",IF(E181=0,0,SQRT(SUMPRODUCT(IF($D183:$D432>0,(($D183:$D432)-$F181)^2,0),Parameter!$B$14:$B$263)/E181))) -> 353631.8967 | H181: 1600974.394 | I181: 1600974.394 | J181: 2149096 | K181: =IF($A182="","",IF($I$3="YES",VLOOKUP(OFFSET(A182,M181,0),Calendar!$A$2:$C$10000,3,FALSE),1)) -> 1 | L181: =IF(A182="","",IF(VLOOKUP(A181,Calendar!A:E,5,FALSE)=0,"",CEILING(K181*CEILING(MAX(OFFSET(J181,M181,0),OFFSET(I181,M181,0)),roundto),roundto)+add_margin)) -> 2200000 | M181: =IF(INDIRECT("Calendar!E"&MATCH($A181,Calendar!A:A,0)-1),0,IF(INDIRECT("Calendar!E"&MATCH($A181,Calendar!A:A,0)-2),1,2)) -> 0
A182: 2025-02-05 | B182: 546345 | C182: 173714 | D182: 546345 | E182: 226 | F182: =IF($A182="","",IF(E182=0,0,SUMPRODUCT($D184:$D433,Parameter!$B$14:$B$263)/E182)) -> 255888.3311 | G182: =IF($A182="","",IF(E182=0,0,SQRT(SUMPRODUCT(IF($D184:$D433>0,(($D184:$D433)-$F182)^2,0),Parameter!$B$14:$B$263)/E182))) -> 353277.2603 | H182: 1598341.92 | I182: 1598341.92 | J182: 2149096 | K182: =IF($A183="","",IF($I$3="YES",VLOOKUP(OFFSET(A183,M182,0),Calendar!$A$2:$C$10000,3,FALSE),1)) -> 1 | L182: =IF(A183="","",IF(VLOOKUP(A182,Calendar!A:E,5,FALSE)=0,"",CEILING(K182*CEILING(MAX(OFFSET(J182,M182,0),OFFSET(I182,M182,0)),roundto),roundto)+add_margin)) -> 2200000 | M182: =IF(INDIRECT("Calendar!E"&MATCH($A182,Calendar!A:A,0)-1),0,IF(INDIRECT("Calendar!E"&MATCH($A182,Calendar!A:A,0)-2),1,2)) -> 0
A183: 2025-02-04 | B183: 920645 | C183: 591439 | D183: 920645 | E183: 226 | F183: =IF($A183="","",IF(E183=0,0,SUMPRODUCT($D185:$D434,Parameter!$B$14:$B$263)/E183)) -> 255653.0546 | G183: =IF($A183="","",IF(E183=0,0,SQRT(SUMPRODUCT(IF($D185:$D434>0,(($D185:$D434)-$F183)^2,0),Parameter!$B$14:$B$263)/E183))) -> 354095.0556 | H183: 1601214.266 | I183: 1601214.266 | J183: 2149096 | K183: =IF($A184="","",IF($I$3="YES",VLOOKUP(OFFSET(A184,M183,0),Calendar!$A$2:$C$10000,3,FALSE),1)) -> 1 | L183: =IF(A184="","",IF(VLOOKUP(A183,Calendar!A:E,5,FALSE)=0,"",CEILING(K183*CEILING(MAX(OFFSET(J183,M183,0),OFFSET(I183,M183,0)),roundto),roundto)+add_margin)) -> 2200000 | M183: =IF(INDIRECT("Calendar!E"&MATCH($A183,Calendar!A:A,0)-1),0,IF(INDIRECT("Calendar!E"&MATCH($A183,Calendar!A:A,0)-2),1,2)) -> 0
A184: 2025-02-03 | B184: 672534 | C184: 70044 | D184: 672534 | E184: 226 | F184: =IF($A184="","",IF(E184=0,0,SUMPRODUCT($D186:$D435,Parameter!$B$14:$B$263)/E184)) -> 256116.7368 | G184: =IF($A184="","",IF(E184=0,0,SQRT(SUMPRODUCT(IF($D186:$D435>0,(($D186:$D435)-$F184)^2,0),Parameter!$B$14:$B$263)/E184))) -> 355330.2857 | H184: 1606371.822 | I184: 1606371.822 | J184: 2149096 | K184: =IF($A185="","",IF($I$3="YES",VLOOKUP(OFFSET(A185,M184,0),Calendar!$A$2:$C$10000,3,FALSE),1)) -> 1 | L184: =IF(A185="","",IF(VLOOKUP(A184,Calendar!A:E,5,FALSE)=0,"",CEILING(K184*CEILING(MAX(OFFSET(J184,M184,0),OFFSET(I184,M184,0)),roundto),roundto)+add_margin)) -> 2200000 | M184: =IF(INDIRECT("Calendar!E"&MATCH($A184,Calendar!A:A,0)-1),0,IF(INDIRECT("Calendar!E"&MATCH($A184,Calendar!A:A,0)-2),1,2)) -> 0
A185: 2025-01-31 | B185: 491604 | C185: 421560 | D185: 491604 | E185: 226 | F185: =IF($A185="","",IF(E185=0,0,SUMPRODUCT($D187:$D436,Parameter!$B$14:$B$263)/E185)) -> 257590.5649 | G185: =IF($A185="","",IF(E185=0,0,SQRT(SUMPRODUCT(IF($D187:$D436>0,(($D187:$D436)-$F185)^2,0),Parameter!$B$14:$B$263)/E185))) -> 356462.2437 | H185: 1612147.091 | I185: 1612147.091 | J185: 2149096 | K185: =IF($A186="","",IF($I$3="YES",VLOOKUP(OFFSET(A186,M185,0),Calendar!$A$2:$C$10000,3,FALSE),1)) -> 1 | L185: =IF(A186="","",IF(VLOOKUP(A185,Calendar!A:E,5,FALSE)=0,"",CEILING(K185*CEILING(MAX(OFFSET(J185,M185,0),OFFSET(I185,M185,0)),roundto),roundto)+add_margin)) -> 2200000 | M185: =IF(INDIRECT("Calendar!E"&MATCH($A185,Calendar!A:A,0)-1),0,IF(INDIRECT("Calendar!E"&MATCH($A185,Calendar!A:A,0)-2),1,2)) -> 0
A186: 2025-01-30 | B186: 265730 | C186: 55893 | D186: 265730 | E186: 226 | F186: =IF($A186="","",IF(E186=0,0,SUMPRODUCT($D188:$D437,Parameter!$B$14:$B$263)/E186)) -> 259266.4246 | G186: =IF($A186="","",IF(E186=0,0,SQRT(SUMPRODUCT(IF($D188:$D437>0,(($D188:$D437)-$F186)^2,0),Parameter!$B$14:$B$263)/E186))) -> 357519.644 | H186: 1617841.072 | I186: 1617841.072 | J186: 2149096 | K186: =IF($A187="","",IF($I$3="YES",VLOOKUP(OFFSET(A187,M186,0),Calendar!$A$2:$C$10000,3,FALSE),1)) -> 1 | L186: =IF(A187="","",IF(VLOOKUP(A186,Calendar!A:E,5,FALSE)=0,"",CEILING(K186*CEILING(MAX(OFFSET(J186,M186,0),OFFSET(I186,M186,0)),roundto),roundto)+add_margin)) -> 2200000 | M186: =IF(INDIRECT("Calendar!E"&MATCH($A186,Calendar!A:A,0)-1),0,IF(INDIRECT("Calendar!E"&MATCH($A186,Calendar!A:A,0)-2),1,2)) -> 0
A187: 2025-01-29 | B187: 210365 | C187: 45093 | D187: 210365 | E187: 226 | F187: =IF($A187="","",IF(E187=0,0,SUMPRODUCT($D189:$D438,Parameter!$B$14:$B$263)/E187)) -> 260278.2605 | G187: =IF($A187="","",IF(E187=0,0,SQRT(SUMPRODUCT(IF($D189:$D438>0,(($D189:$D438)-$F187)^2,0),Parameter!$B$14:$B$263)/E187))) -> 358797.501 | H187: 1623708.764 | I187: 1623708.764 | J187: 2149096 | K187: =IF($A188="","",IF($I$3="YES",VLOOKUP(OFFSET(A188,M187,0),Calendar!$A$2:$C$10000,3,FALSE),1)) -> 1 | L187: =IF(A188="","",IF(VLOOKUP(A187,Calendar!A:E,5,FALSE)=0,"",CEILING(K187*CEILING(MAX(OFFSET(J187,M187,0),OFFSET(I187,M187,0)),roundto),roundto)+add_margin)) -> 2200000 | M187: =IF(INDIRECT("Calendar!E"&MATCH($A187,Calendar!A:A,0)-1),0,IF(INDIRECT("Calendar!E"&MATCH($A187,Calendar!A:A,0)-2),1,2)) -> 0
A188: 2025-01-28 | B188: 418253 | C188: 164411 | D188: 418253 | E188: 226 | F188: =IF($A188="","",IF(E188=0,0,SUMPRODUCT($D190:$D439,Parameter!$B$14:$B$263)/E188)) -> 260147.7457 | G188: =IF($A188="","",IF(E188=0,0,SQRT(SUMPRODUCT(IF($D190:$D439>0,(($D190:$D439)-$F188)^2,0),Parameter!$B$14:$B$263)/E188))) -> 359692.5796 | H188: 1626979.548 | I188: 1626979.548 | J188: 2197801.6 | K188: =IF($A189="","",IF($I$3="YES",VLOOKUP(OFFSET(A189,M188,0),Calendar!$A$2:$C$10000,3,FALSE),1)) -> 1 | L188: =IF(A189="","",IF(VLOOKUP(A188,Calendar!A:E,5,FALSE)=0,"",CEILING(K188*CEILING(MAX(OFFSET(J188,M188,0),OFFSET(I188,M188,0)),roundto),roundto)+add_margin)) -> 2250000 | M188: =IF(INDIRECT("Calendar!E"&MATCH($A188,Calendar!A:A,0)-1),0,IF(INDIRECT("Calendar!E"&MATCH($A188,Calendar!A:A,0)-2),1,2)) -> 0
A189: 2025-01-27 | B189: 662949 | C189: 343262 | D189: 662949 | E189: 226 | F189: =IF($A189="","",IF(E189=0,0,SUMPRODUCT($D191:$D440,Parameter!$B$14:$B$263)/E189)) -> 259578.4577 | G189: =IF($A189="","",IF(E189=0,0,SQRT(SUMPRODUCT(IF($D191:$D440>0,(($D191:$D440)-$F189)^2,0),Parameter!$B$14:$B$263)/E189))) -> 360269.3126 | H189: 1628601.845 | I189: 1628601.845 | J189: 2572342.4 | K189: =IF($A190="","",IF($I$3="YES",VLOOKUP(OFFSET(A190,M189,0),Calendar!$A$2:$C$10000,3,FALSE),1)) -> 1 | L189: =IF(A190="","",IF(VLOOKUP(A189,Calendar!A:E,5,FALSE)=0,"",CEILING(K189*CEILING(MAX(OFFSET(J189,M189,0),OFFSET(I189,M189,0)),roundto),roundto)+add_margin)) -> 2630000 | M189: =IF(INDIRECT("Calendar!E"&MATCH($A189,Calendar!A:A,0)-1),0,IF(INDIRECT("Calendar!E"&MATCH($A189,Calendar!A:A,0)-2),1,2)) -> 0
A190: 2025-01-24 | B190: 754547 | C190: 384051 | D190: 754547 | E190: 226 | F190: =IF($A190="","",IF(E190=0,0,SUMPRODUCT($D192:$D441,Parameter!$B$14:$B$263)/E190)) -> 260064.6477 | G190: =IF($A190="","",IF(E190=0,0,SQRT(SUMPRODUCT(IF($D192:$D441>0,(($D192:$D441)-$F190)^2,0),Parameter!$B$14:$B$263)/E190))) -> 361480.1447 | H190: 1633689.198 | I190: 1633689.198 | J190: 2572342.4 | K190: =IF($A191="","",IF($I$3="YES",VLOOKUP(OFFSET(A191,M190,0),Calendar!$A$2:$C$10000,3,FALSE),1)) -> 1 | L190: =IF(A191="","",IF(VLOOKUP(A190,Calendar!A:E,5,FALSE)=0,"",CEILING(K190*CEILING(MAX(OFFSET(J190,M190,0),OFFSET(I190,M190,0)),roundto),roundto)+add_margin)) -> 2630000 | M190: =IF(INDIRECT("Calendar!E"&MATCH($A190,Calendar!A:A,0)-1),0,IF(INDIRECT("Calendar!E"&MATCH($A190,Calendar!A:A,0)-2),1,2)) -> 0
A191: 2025-01-23 | B191: 513387 | C191: 320346 | D191: 513387 | E191: 226 | F191: =IF($A191="","",IF(E191=0,0,SUMPRODUCT($D193:$D442,Parameter!$B$14:$B$263)/E191)) -> 259833.7823 | G191: =IF($A191="","",IF(E191=0,0,SQRT(SUMPRODUCT(IF($D193:$D442>0,(($D193:$D442)-$F191)^2,0),Parameter!$B$14:$B$263)/E191))) -> 362363.6816 | H191: 1636815.772 | I191: 1636815.772 | J191: 2572342.4 | K191: =IF($A192="","",IF($I$3="YES",VLOOKUP(OFFSET(A192,M191,0),Calendar!$A$2:$C$10000,3,FALSE),1)) -> 1 | L191: =IF(A192="","",IF(VLOOKUP(A191,Calendar!A:E,5,FALSE)=0,"",CEILING(K191*CEILING(MAX(OFFSET(J191,M191,0),OFFSET(I191,M191,0)),roundto),roundto)+add_margin)) -> 2630000 | M191: =IF(INDIRECT("Calendar!E"&MATCH($A191,Calendar!A:A,0)-1),0,IF(INDIRECT("Calendar!E"&MATCH($A191,Calendar!A:A,0)-2),1,2)) -> 0
A192: 2025-01-22 | B192: 673807 | C192: 428044 | D192: 673807 | E192: 226 | F192: =IF($A192="","",IF(E192=0,0,SUMPRODUCT($D194:$D443,Parameter!$B$14:$B$263)/E192)) -> 258226.882 | G192: =IF($A192="","",IF(E192=0,0,SQRT(SUMPRODUCT(IF($D194:$D443>0,(($D194:$D443)-$F192)^2,0),Parameter!$B$14:$B$263)/E192))) -> 361501.0874 | H192: 1631931.014 | I192: 1631931.014 | J192: 2572342.4 | K192: =IF($A193="","",IF($I$3="YES",VLOOKUP(OFFSET(A193,M192,0),Calendar!$A$2:$C$10000,3,FALSE),1)) -> 1 | L192: =IF(A193="","",IF(VLOOKUP(A192,Calendar!A:E,5,FALSE)=0,"",CEILING(K192*CEILING(MAX(OFFSET(J192,M192,0),OFFSET(I192,M192,0)),roundto),roundto)+add_margin)) -> 2630000 | M192: =IF(INDIRECT("Calendar!E"&MATCH($A192,Calendar!A:A,0)-1),0,IF(INDIRECT("Calendar!E"&MATCH($A192,Calendar!A:A,0)-2),1,2)) -> 0
A193: 2025-01-21 | B193: 1024299 | C193: 935816 | D193: 1024299 | E193: 226 | F193: =IF($A193="","",IF(E193=0,0,SUMPRODUCT($D195:$D444,Parameter!$B$14:$B$263)/E193)) -> 256228.0458 | G193: =IF($A193="","",IF(E193=0,0,SQRT(SUMPRODUCT(IF($D195:$D444>0,(($D195:$D444)-$F193)^2,0),Parameter!$B$14:$B$263)/E193))) -> 360052.1952 | H193: 1624426.388 | I193: 1624426.388 | J193: 2572342.4 | K193: =IF($A194="","",IF($I$3="YES",VLOOKUP(OFFSET(A194,M193,0),Calendar!$A$2:$C$10000,3,FALSE),1)) -> 1 | L193: =IF(A194="","",IF(VLOOKUP(A193,Calendar!A:E,5,FALSE)=0,"",CEILING(K193*CEILING(MAX(OFFSET(J193,M193,0),OFFSET(I193,M193,0)),roundto),roundto)+add_margin)) -> 2630000 | M193: =IF(INDIRECT("Calendar!E"&MATCH($A193,Calendar!A:A,0)-1),0,IF(INDIRECT("Calendar!E"&MATCH($A193,Calendar!A:A,0)-2),1,2)) -> 0
A194: 2025-01-20 | B194: 1086034 | C194: 364152 | D194: 1086034 | E194: 226 | F194: =IF($A194="","",IF(E194=0,0,SUMPRODUCT($D196:$D445,Parameter!$B$14:$B$263)/E194)) -> 256743.3164 | G194: =IF($A194="","",IF(E194=0,0,SQRT(SUMPRODUCT(IF($D196:$D445>0,(($D196:$D445)-$F194)^2,0),Parameter!$B$14:$B$263)/E194))) -> 361304.1043 | H194: 1629698.913 | I194: 1629698.913 | J194: 2572342.4 | K194: =IF($A195="","",IF($I$3="YES",VLOOKUP(OFFSET(A195,M194,0),Calendar!$A$2:$C$10000,3,FALSE),1)) -> 1 | L194: =IF(A195="","",IF(VLOOKUP(A194,Calendar!A:E,5,FALSE)=0,"",CEILING(K194*CEILING(MAX(OFFSET(J194,M194,0),OFFSET(I194,M194,0)),roundto),roundto)+add_margin)) -> 2630000 | M194: =IF(INDIRECT("Calendar!E"&MATCH($A194,Calendar!A:A,0)-1),0,IF(INDIRECT("Calendar!E"&MATCH($A194,Calendar!A:A,0)-2),1,2)) -> 0
A195: 2025-01-17 | B195: 489950 | C195: 157980 | D195: 489950 | E195: 226 | F195: =IF($A195="","",IF(E195=0,0,SUMPRODUCT($D197:$D446,Parameter!$B$14:$B$263)/E195)) -> 258407.6581 | G195: =IF($A195="","",IF(E195=0,0,SQRT(SUMPRODUCT(IF($D197:$D446>0,(($D197:$D446)-$F195)^2,0),Parameter!$B$14:$B$263)/E195))) -> 362381.6475 | H195: 1635457.919 | I195: 1635457.919 | J195: 2572342.4 | K195: =IF($A196="","",IF($I$3="YES",VLOOKUP(OFFSET(A196,M195,0),Calendar!$A$2:$C$10000,3,FALSE),1)) -> 1 | L195: =IF(A196="","",IF(VLOOKUP(A195,Calendar!A:E,5,FALSE)=0,"",CEILING(K195*CEILING(MAX(OFFSET(J195,M195,0),OFFSET(I195,M195,0)),roundto),roundto)+add_margin)) -> 2630000 | M195: =IF(INDIRECT("Calendar!E"&MATCH($A195,Calendar!A:A,0)-1),0,IF(INDIRECT("Calendar!E"&MATCH($A195,Calendar!A:A,0)-2),1,2)) -> 0
A196: 2025-01-16 | B196: 224279 | C196: 101051 | D196: 224279 | E196: 226 | F196: =IF($A196="","",IF(E196=0,0,SUMPRODUCT($D198:$D447,Parameter!$B$14:$B$263)/E196)) -> 256885.0946 | G196: =IF($A196="","",IF(E196=0,0,SQRT(SUMPRODUCT(IF($D198:$D447>0,(($D198:$D447)-$F196)^2,0),Parameter!$B$14:$B$263)/E196))) -> 361852.9163 | H196: 1631926.176 | I196: 1631926.176 | J196: 2572342.4 | K196: =IF($A197="","",IF($I$3="YES",VLOOKUP(OFFSET(A197,M196,0),Calendar!$A$2:$C$10000,3,FALSE),1)) -> 1 | L196: =IF(A197="","",IF(VLOOKUP(A196,Calendar!A:E,5,FALSE)=0,"",CEILING(K196*CEILING(MAX(OFFSET(J196,M196,0),OFFSET(I196,M196,0)),roundto),roundto)+add_margin)) -> 2630000 | M196: =IF(INDIRECT("Calendar!E"&MATCH($A196,Calendar!A:A,0)-1),0,IF(INDIRECT("Calendar!E"&MATCH($A196,Calendar!A:A,0)-2),1,2)) -> 0
A197: 2025-01-15 | B197: 963462 | C197: 609343 | D197: 963462 | E197: 226 | F197: =IF($A197="","",IF(E197=0,0,SUMPRODUCT($D199:$D448,Parameter!$B$14:$B$263)/E197)) -> 253677.2214 | G197: =IF($A197="","",IF(E197=0,0,SQRT(SUMPRODUCT(IF($D199:$D448>0,(($D199:$D448)-$F197)^2,0),Parameter!$B$14:$B$263)/E197))) -> 357848.0061 | H197: 1613499.644 | I197: 1613499.644 | J197: 2572342.4 | K197: =IF($A198="","",IF($I$3="YES",VLOOKUP(OFFSET(A198,M197,0),Calendar!$A$2:$C$10000,3,FALSE),1)) -> 1 | L197: =IF(A198="","",IF(VLOOKUP(A197,Calendar!A:E,5,FALSE)=0,"",CEILING(K197*CEILING(MAX(OFFSET(J197,M197,0),OFFSET(I197,M197,0)),roundto),roundto)+add_margin)) -> 2630000 | M197: =IF(INDIRECT("Calendar!E"&MATCH($A197,Calendar!A:A,0)-1),0,IF(INDIRECT("Calendar!E"&MATCH($A197,Calendar!A:A,0)-2),1,2)) -> 0
A198: 2025-01-14 | B198: 1343185 | C198: 870921 | D198: 1343185 | E198: 226 | F198: =IF($A198="","",IF(E198=0,0,SUMPRODUCT($D200:$D449,Parameter!$B$14:$B$263)/E198)) -> 251039.0236 | G198: =IF($A198="","",IF(E198=0,0,SQRT(SUMPRODUCT(IF($D200:$D449>0,(($D200:$D449)-$F198)^2,0),Parameter!$B$14:$B$263)/E198))) -> 355468.5512 | H198: 1601819.518 | I198: 1601819.518 | J198: 2572342.4 | K198: =IF($A199="","",IF($I$3="YES",VLOOKUP(OFFSET(A199,M198,0),Calendar!$A$2:$C$10000,3,FALSE),1)) -> 1 | L198: =IF(A199="","",IF(VLOOKUP(A198,Calendar!A:E,5,FALSE)=0,"",CEILING(K198*CEILING(MAX(OFFSET(J198,M198,0),OFFSET(I198,M198,0)),roundto),roundto)+add_margin)) -> 2630000 | M198: =IF(INDIRECT("Calendar!E"&MATCH($A198,Calendar!A:A,0)-1),0,IF(INDIRECT("Calendar!E"&MATCH($A198,Calendar!A:A,0)-2),1,2)) -> 0
A199: 2025-01-13 | B199: 1183134 | C199: 443927 | D199: 1183134 | E199: 226 | F199: =IF($A199="","",IF(E199=0,0,SUMPRODUCT($D201:$D450,Parameter!$B$14:$B$263)/E199)) -> 251372.7187 | G199: =IF($A199="","",IF(E199=0,0,SQRT(SUMPRODUCT(IF($D201:$D450>0,(($D201:$D450)-$F199)^2,0),Parameter!$B$14:$B$263)/E199))) -> 356764.3091 | H199: 1607077.093 | I199: 1607077.093 | J199: 3092462.4 | K199: =IF($A200="","",IF($I$3="YES",VLOOKUP(OFFSET(A200,M199,0),Calendar!$A$2:$C$10000,3,FALSE),1)) -> 1 | L199: =IF(A200="","",IF(VLOOKUP(A199,Calendar!A:E,5,FALSE)=0,"",CEILING(K199*CEILING(MAX(OFFSET(J199,M199,0),OFFSET(I199,M199,0)),roundto),roundto)+add_margin)) -> 3150000 | M199: =IF(INDIRECT("Calendar!E"&MATCH($A199,Calendar!A:A,0)-1),0,IF(INDIRECT("Calendar!E"&MATCH($A199,Calendar!A:A,0)-2),1,2)) -> 0
A200: 2025-01-10 | B200: 498189 | C200: 170228 | D200: 498189 | E200: 226 | F200: =IF($A200="","",IF(E200=0,0,SUMPRODUCT($D202:$D451,Parameter!$B$14:$B$263)/E200)) -> 252084.9435 | G200: =IF($A200="","",IF(E200=0,0,SQRT(SUMPRODUCT(IF($D202:$D451>0,(($D202:$D451)-$F200)^2,0),Parameter!$B$14:$B$263)/E200))) -> 358061.8655 | H200: 1612720.032 | I200: 1612720.032 | J200: 3092462.4 | K200: =IF($A201="","",IF($I$3="YES",VLOOKUP(OFFSET(A201,M200,0),Calendar!$A$2:$C$10000,3,FALSE),1)) -> 1 | L200: =IF(A201="","",IF(VLOOKUP(A200,Calendar!A:E,5,FALSE)=0,"",CEILING(K200*CEILING(MAX(OFFSET(J200,M200,0),OFFSET(I200,M200,0)),roundto),roundto)+add_margin)) -> 3150000 | M200: =IF(INDIRECT("Calendar!E"&MATCH($A200,Calendar!A:A,0)-1),0,IF(INDIRECT("Calendar!E"&MATCH($A200,Calendar!A:A,0)-2),1,2)) -> 0
A201: 2025-01-09 | B201: 426838 | C201: 120387 | D201: 426838 | E201: 226 | F201: =IF($A201="","",IF(E201=0,0,SUMPRODUCT($D203:$D452,Parameter!$B$14:$B$263)/E201)) -> 251652.7817 | G201: =IF($A201="","",IF(E201=0,0,SQRT(SUMPRODUCT(IF($D203:$D452>0,(($D203:$D452)-$F201)^2,0),Parameter!$B$14:$B$263)/E201))) -> 358831.7292 | H201: 1615213.353 | I201: 1615213.353 | J201: 3092462.4 | K201: =IF($A202="","",IF($I$3="YES",VLOOKUP(OFFSET(A202,M201,0),Calendar!$A$2:$C$10000,3,FALSE),1)) -> 1 | L201: =IF(A202="","",IF(VLOOKUP(A201,Calendar!A:E,5,FALSE)=0,"",CEILING(K201*CEILING(MAX(OFFSET(J201,M201,0),OFFSET(I201,M201,0)),roundto),roundto)+add_margin)) -> 3150000 | M201: =IF(INDIRECT("Calendar!E"&MATCH($A201,Calendar!A:A,0)-1),0,IF(INDIRECT("Calendar!E"&MATCH($A201,Calendar!A:A,0)-2),1,2)) -> 0
A202: 2025-01-08 | B202: 698006 | C202: 694978 | D202: 698006 | E202: 226 | F202: =IF($A202="","",IF(E202=0,0,SUMPRODUCT($D204:$D453,Parameter!$B$14:$B$263)/E202)) -> 249308.2459 | G202: =IF($A202="","",IF(E202=0,0,SQRT(SUMPRODUCT(IF($D204:$D453>0,(($D204:$D453)-$F202)^2,0),Parameter!$B$14:$B$263)/E202))) -> 356900.9182 | H202: 1605531.735 | I202: 1605531.735 | J202: 3092462.4 | K202: =IF($A203="","",IF($I$3="YES",VLOOKUP(OFFSET(A203,M202,0),Calendar!$A$2:$C$10000,3,FALSE),1)) -> 1 | L202: =IF(A203="","",IF(VLOOKUP(A202,Calendar!A:E,5,FALSE)=0,"",CEILING(K202*CEILING(MAX(OFFSET(J202,M202,0),OFFSET(I202,M202,0)),roundto),roundto)+add_margin)) -> 3150000 | M202: =IF(INDIRECT("Calendar!E"&MATCH($A202,Calendar!A:A,0)-1),0,IF(INDIRECT("Calendar!E"&MATCH($A202,Calendar!A:A,0)-2),1,2)) -> 0
A203: 2025-01-07 | B203: 1129731 | C203: 666572 | D203: 1129731 | E203: 226 | F203: =IF($A203="","",IF(E203=0,0,SUMPRODUCT($D205:$D454,Parameter!$B$14:$B$263)/E203)) -> 246633.3824 | G203: =IF($A203="","",IF(E203=0,0,SQRT(SUMPRODUCT(IF($D205:$D454>0,(($D205:$D454)-$F203)^2,0),Parameter!$B$14:$B$263)/E203))) -> 354410.9071 | H203: =IF($A203="","",F203+alpha*G203) -> 1593394.829 | I203: 1593394.829 | J203: =IF($A203="","",beta*MAX(0,C204,INDIRECT("B" & ROW(A205) & ":B" & ROW(A205) + window_size_max-2))) -> 3092462.4 | K203: =IF($A204="","",IF($I$3="YES",VLOOKUP(OFFSET(A204,M203,0),Calendar!$A$2:$C$10000,3,FALSE),1)) -> 1 | L203: =IF(A204="","",IF(VLOOKUP(A203,Calendar!A:E,5,FALSE)=0,"",CEILING(K203*CEILING(MAX(OFFSET(J203,M203,0),OFFSET(I203,M203,0)),roundto),roundto)+add_margin)) -> 3150000 | M203: =IF(INDIRECT("Calendar!E"&MATCH($A203,Calendar!A:A,0)-1),0,IF(INDIRECT("Calendar!E"&MATCH($A203,Calendar!A:A,0)-2),1,2)) -> 0
A204: 2025-01-06 | B204: 1186026 | C204: 565970 | D204: =IF(B204>minIMSM,B204,minIMSM) -> 1186026 | E204: =COUNTIF($D206:$D455,">0") -> 226 | F204: =IF($A204="","",IF(E204=0,0,SUMPRODUCT($D206:$D455,Parameter!$B$14:$B$263)/E204)) -> 244908.9111 | G204: =IF($A204="","",IF(E204=0,0,SQRT(SUMPRODUCT(IF($D206:$D455>0,(($D206:$D455)-$F204)^2,0),Parameter!$B$14:$B$263)/E204))) -> 353664.7056 | H204: 1588834.792 | I204: =IF($A204="","",IF($D206>0,$H204,MIN($H204,I205))) -> 1588834.792 | J204: 3092462.4 | K204: =IF($A205="","",IF($I$3="YES",VLOOKUP(OFFSET(A205,M204,0),Calendar!$A$2:$C$10000,3,FALSE),1)) -> 1 | L204: =IF(A205="","",IF(VLOOKUP(A204,Calendar!A:E,5,FALSE)=0,"",CEILING(K204*CEILING(MAX(OFFSET(J204,M204,0),OFFSET(I204,M204,0)),roundto),roundto)+add_margin)) -> 3150000 | M204: =IF(INDIRECT("Calendar!E"&MATCH($A204,Calendar!A:A,0)-1),0,IF(INDIRECT("Calendar!E"&MATCH($A204,Calendar!A:A,0)-2),1,2)) -> 0
A205: 2025-01-03 | B205: 971335 | C205: 755741 | D205: 971335 | E205: 226 | F205: =IF($A205="","",IF(E205=0,0,SUMPRODUCT($D207:$D456,Parameter!$B$14:$B$263)/E205)) -> 245090.6558 | G205: =IF($A205="","",IF(E205=0,0,SQRT(SUMPRODUCT(IF($D207:$D456>0,(($D207:$D456)-$F205)^2,0),Parameter!$B$14:$B$263)/E205))) -> 354813.8236 | H205: 1593383.186 | I205: 1593383.186 | J205: 3092462.4 | K205: =IF($A206="","",IF($I$3="YES",VLOOKUP(OFFSET(A206,M205,0),Calendar!$A$2:$C$10000,3,FALSE),1)) -> 1 | L205: =IF(A206="","",IF(VLOOKUP(A205,Calendar!A:E,5,FALSE)=0,"",CEILING(K205*CEILING(MAX(OFFSET(J205,M205,0),OFFSET(I205,M205,0)),roundto),roundto)+add_margin)) -> 3150000 | M205: =IF(INDIRECT("Calendar!E"&MATCH($A205,Calendar!A:A,0)-1),0,IF(INDIRECT("Calendar!E"&MATCH($A205,Calendar!A:A,0)-2),1,2)) -> 0
A206: 2025-01-02 | B206: 543916 | C206: 221462 | D206: 543916 | E206: 226 | F206: =IF($A206="","",IF(E206=0,0,SUMPRODUCT($D208:$D457,Parameter!$B$14:$B$263)/E206)) -> 246561.4208 | G206: =IF($A206="","",IF(E206=0,0,SQRT(SUMPRODUCT(IF($D208:$D457>0,(($D208:$D457)-$F206)^2,0),Parameter!$B$14:$B$263)/E206))) -> 355973.4788 | H206: 1599260.64 | I206: 1599260.64 | J206: 3092462.4 | K206: =IF($A207="","",IF($I$3="YES",VLOOKUP(OFFSET(A207,M206,0),Calendar!$A$2:$C$10000,3,FALSE),1)) -> 1 | L206: =IF(A207="","",IF(VLOOKUP(A206,Calendar!A:E,5,FALSE)=0,"",CEILING(K206*CEILING(MAX(OFFSET(J206,M206,0),OFFSET(I206,M206,0)),roundto),roundto)+add_margin)) -> 3150000 | M206: =IF(INDIRECT("Calendar!E"&MATCH($A206,Calendar!A:A,0)-1),0,IF(INDIRECT("Calendar!E"&MATCH($A206,Calendar!A:A,0)-2),1,2)) -> 1
... 304 more rows

Sheet Parameter
A2: Window Size Statistic | B2: 250
A3: Window Size Maximum | B3: 30
A4: EWMA Factor | B4: 0.99
A5: alpha | B5: 3.8
A6: beta | B6: 1.6
A7: minIMSM in EUR | B7: 0
A8: roundto | B8: 10000
A9: Additional Margin in EUR | B9: 50000
A13: k | B13: lambda^k
A14: 1 | B14: =ewma_factor^A14 -> 0.99
A15: 2 | B15: 0.9801
A16: 3 | B16: 0.970299
A17: 4 | B17: 0.96059601
A18: 5 | B18: 0.9509900499
A19: 6 | B19: 0.9414801494
A20: 7 | B20: 0.9320653479
A21: 8 | B21: 0.9227446944
A22: 9 | B22: 0.9135172475
A23: 10 | B23: 0.904382075
A24: 11 | B24: 0.8953382543
A25: 12 | B25: 0.8863848717
A26: 13 | B26: 0.877521023
A27: 14 | B27: 0.8687458128
A28: 15 | B28: 0.8600583546
A29: 16 | B29: 0.8514577711
A30: 17 | B30: 0.8429431934
A31: 18 | B31: 0.8345137615
A32: 19 | B32: 0.8261686238
A33: 20 | B33: 0.8179069376
A34: 21 | B34: 0.8097278682
A35: 22 | B35: 0.8016305895
A36: 23 | B36: 0.7936142836
A37: 24 | B37: 0.7856781408
A38: 25 | B38: 0.7778213594
A39: 26 | B39: 0.7700431458
A40: 27 | B40: 0.7623427143
A41: 28 | B41: 0.7547192872
A42: 29 | B42: 0.7471720943
A43: 30 | B43: 0.7397003734
A44: 31 | B44: 0.7323033697
A45: 32 | B45: 0.724980336
A46: 33 | B46: 0.7177305326
A47: 34 | B47: 0.7105532273
A48: 35 | B48: 0.703447695
A49: 36 | B49: 0.696413218
A50: 37 | B50: 0.6894490859
A51: 38 | B51: 0.682554595
A52: 39 | B52: 0.6757290491
A53: 40 | B53: 0.6689717586
A54: 41 | B54: 0.662282041
A55: 42 | B55: 0.6556592206
A56: 43 | B56: 0.6491026284
A57: 44 | B57: 0.6426116021
A58: 45 | B58: 0.6361854861
A59: 46 | B59: 0.6298236312
A60: 47 | B60: 0.6235253949
A61: 48 | B61: 0.6172901409
A62: 49 | B62: 0.6111172395
A63: 50 | B63: 0.6050060671
A64: 51 | B64: 0.5989560065
A65: 52 | B65: 0.5929664464
A66: 53 | B66: 0.5870367819
A67: 54 | B67: 0.5811664141
A68: 55 | B68: 0.57535475
A69: 56 | B69: 0.5696012025
A70: 57 | B70: 0.5639051905
A71: 58 | B71: 0.5582661385
A72: 59 | B72: 0.5526834772
A73: 60 | B73: 0.5471566424
A74: 61 | B74: 0.541685076
A75: 62 | B75: 0.5362682252
A76: 63 | B76: 0.530905543
A77: 64 | B77: 0.5255964875
A78: 65 | B78: =ewma_factor^A78 -> 0.5203405227
A79: 66 | B79: 0.5151371174
A80: 67 | B80: 0.5099857462
A81: 68 | B81: 0.5048858888
A82: 69 | B82: 0.4998370299
A83: 70 | B83: 0.4948386596
A84: 71 | B84: 0.489890273
A85: 72 | B85: 0.4849913703
A86: 73 | B86: 0.4801414566
A87: 74 | B87: 0.475340042
A88: 75 | B88: 0.4705866416
A89: 76 | B89: 0.4658807752
A90: 77 | B90: 0.4612219674
A91: 78 | B91: 0.4566097477
A92: 79 | B92: 0.4520436503
A93: 80 | B93: 0.4475232138
A94: 81 | B94: 0.4430479816
A95: 82 | B95: 0.4386175018
A96: 83 | B96: 0.4342313268
A97: 84 | B97: 0.4298890135
A98: 85 | B98: 0.4255901234
A99: 86 | B99: 0.4213342222
A100: 87 | B100: 0.4171208799
A101: 88 | B101: 0.4129496711
A102: 89 | B102: 0.4088201744
A103: 90 | B103: 0.4047319727
A104: 91 | B104: 0.400684653
A105: 92 | B105: 0.3966778064
A106: 93 | B106: 0.3927110284
A107: 94 | B107: 0.3887839181
A108: 95 | B108: 0.3848960789
A109: 96 | B109: 0.3810471181
A110: 97 | B110: 0.3772366469
A111: 98 | B111: 0.3734642805
A112: 99 | B112: 0.3697296376
A113: 100 | B113: 0.3660323413
A114: 101 | B114: 0.3623720179
A115: 102 | B115: 0.3587482977
A116: 103 | B116: 0.3551608147
A117: 104 | B117: 0.3516092066
A118: 105 | B118: 0.3480931145
A119: 106 | B119: 0.3446121833
A120: 107 | B120: 0.3411660615
A121: 108 | B121: 0.3377544009
A122: 109 | B122: 0.3343768569
A123: 110 | B123: 0.3310330883
A124: 111 | B124: 0.3277227574
A125: 112 | B125: 0.3244455299
A126: 113 | B126: 0.3212010746
A127: 114 | B127: 0.3179890638
A128: 115 | B128: 0.3148091732
A129: 116 | B129: 0.3116610814
A130: 117 | B130: 0.3085444706
A131: 118 | B131: 0.3054590259
A132: 119 | B132: 0.3024044357
A133: 120 | B133: 0.2993803913
A134: 121 | B134: 0.2963865874
A135: 122 | B135: 0.2934227215
A136: 123 | B136: 0.2904884943
A137: 124 | B137: 0.2875836094
A138: 125 | B138: 0.2847077733
A139: 126 | B139: 0.2818606955
A140: 127 | B140: 0.2790420886
A141: 128 | B141: 0.2762516677
A142: 129 | B142: =ewma_factor^A142 -> 0.273489151
A143: 130 | B143: 0.2707542595
A144: 131 | B144: 0.2680467169
A145: 132 | B145: 0.2653662497
A146: 133 | B146: 0.2627125873
A147: 134 | B147: 0.2600854614
A148: 135 | B148: 0.2574846068
A149: 136 | B149: 0.2549097607
A150: 137 | B150: 0.2523606631
A151: 138 | B151: 0.2498370565
A152: 139 | B152: 0.2473386859
A153: 140 | B153: 0.244865299
A154: 141 | B154: 0.242416646
A155: 142 | B155: 0.2399924796
A156: 143 | B156: 0.2375925548
A157: 144 | B157: 0.2352166292
A158: 145 | B158: 0.2328644629
A159: 146 | B159: 0.2305358183
A160: 147 | B160: 0.2282304601
A161: 148 | B161: 0.2259481555
A162: 149 | B162: 0.223688674
A163: 150 | B163: 0.2214517872
A164: 151 | B164: 0.2192372694
A165: 152 | B165: 0.2170448967
A166: 153 | B166: 0.2148744477
A167: 154 | B167: 0.2127257032
A168: 155 | B168: 0.2105984462
A169: 156 | B169: 0.2084924617
A170: 157 | B170: 0.2064075371
A171: 158 | B171: 0.2043434617
A172: 159 | B172: 0.2023000271
A173: 160 | B173: 0.2002770269
A174: 161 | B174: 0.1982742566
A175: 162 | B175: 0.196291514
A176: 163 | B176: 0.1943285989
A177: 164 | B177: 0.1923853129
A178: 165 | B178: 0.1904614598
A179: 166 | B179: 0.1885568452
A180: 167 | B180: 0.1866712767
A181: 168 | B181: 0.1848045639
A182: 169 | B182: 0.1829565183
A183: 170 | B183: 0.1811269531
A184: 171 | B184: 0.1793156836
A185: 172 | B185: 0.1775225268
A186: 173 | B186: 0.1757473015
A187: 174 | B187: 0.1739898285
A188: 175 | B188: 0.1722499302
A189: 176 | B189: 0.1705274309
A190: 177 | B190: 0.1688221566
A191: 178 | B191: 0.167133935
A192: 179 | B192: 0.1654625957
A193: 180 | B193: 0.1638079697
A194: 181 | B194: 0.16216989
A195: 182 | B195: 0.1605481911
A196: 183 | B196: 0.1589427092
A197: 184 | B197: 0.1573532821
A198: 185 | B198: 0.1557797493
A199: 186 | B199: 0.1542219518
A200: 187 | B200: 0.1526797323
A201: 188 | B201: 0.151152935
A202: 189 | B202: 0.1496414056
A203: 190 | B203: 0.1481449915
A204: 191 | B204: 0.1466635416
... 59 more rows

Sheet Calendar
A1: ECC Calendar | B1: index | C1: Holiday Adjustment Scaling Factor | D1: Flag Weekday | E1: ECC Business Day | F1: Rows Until Next Business Day | G1: Days Until Business Day After Next BD
A2: 2021-01-01 | B2: =ROW(A2)-1 -> 1 | C2: =1+0.3*MAX(G2-4,0) -> 1 | E2: 0 | F2: =IF($E2=1,MATCH(1,INDIRECT("$E$"&ROW($A2)+1&":$E$2598"),0),0) -> 0 | G2: =IF($E2=1,INDIRECT("$A$"&ROW($A2)+MATCH(1,INDIRECT("$E$"&ROW($A2)+1+$F2&":$E$2598"),0)+$F2)-$A2,0) -> 0
A3: 2021-01-04 | B3: =ROW(A3)-1 -> 2 | C3: =1+0.3*MAX(G3-4,0) -> 1 | D3: =IF(ABS(WEEKDAY($A3)-4)<=1,1,0) -> 0 | E3: 1 | F3: =IF($E3=1,MATCH(1,INDIRECT("$E$"&ROW($A3)+1&":$E$2598"),0),0) -> 1 | G3: 2
A4: 2021-01-05 | B4: 3 | C4: 1 | D4: 1 | E4: 1 | F4: 1 | G4: 2
A5: 2021-01-06 | B5: 4 | C5: 1 | D5: 1 | E5: 1 | F5: 1 | G5: 2
A6: 2021-01-07 | B6: 5 | C6: 1 | D6: 1 | E6: 1 | F6: 1 | G6: 4
A7: 2021-01-08 | B7: 6 | C7: 1 | D7: 0 | E7: 1 | F7: 1 | G7: 4
A8: 2021-01-11 | B8: 7 | C8: 1 | D8: 0 | E8: 1 | F8: 1 | G8: 2
A9: 2021-01-12 | B9: 8 | C9: 1 | D9: 1 | E9: 1 | F9: 1 | G9: 2
A10: 2021-01-13 | B10: 9 | C10: 1 | D10: 1 | E10: 1 | F10: 1 | G10: 2
A11: 2021-01-14 | B11: 10 | C11: 1 | D11: 1 | E11: 1 | F11: 1 | G11: 4
A12: 2021-01-15 | B12: 11 | C12: 1 | D12: 0 | E12: 1 | F12: 1 | G12: 4
A13: 2021-01-18 | B13: 12 | C13: 1 | D13: 0 | E13: 1 | F13: 1 | G13: 2
A14: 2021-01-19 | B14: 13 | C14: 1 | D14: 1 | E14: 1 | F14: 1 | G14: 2
A15: 2021-01-20 | B15: 14 | C15: 1 | D15: 1 | E15: 1 | F15: 1 | G15: 2
A16: 2021-01-21 | B16: 15 | C16: 1 | D16: 1 | E16: 1 | F16: 1 | G16: 4
A17: 2021-01-22 | B17: 16 | C17: 1 | D17: 0 | E17: 1 | F17: 1 | G17: 4
A18: 2021-01-25 | B18: 17 | C18: 1 | D18: 0 | E18: 1 | F18: 1 | G18: 2
A19: 2021-01-26 | B19: 18 | C19: 1 | D19: 1 | E19: 1 | F19: 1 | G19: 2
A20: 2021-01-27 | B20: 19 | C20: 1 | D20: 1 | E20: 1 | F20: 1 | G20: 2
A21: 2021-01-28 | B21: 20 | C21: 1 | D21: 1 | E21: 1 | F21: 1 | G21: 4
A22: 2021-01-29 | B22: 21 | C22: 1 | D22: 0 | E22: 1 | F22: 1 | G22: 4
A23: 2021-02-01 | B23: 22 | C23: 1 | D23: 0 | E23: 1 | F23: 1 | G23: 2
A24: 2021-02-02 | B24: 23 | C24: 1 | D24: 1 | E24: 1 | F24: 1 | G24: 2
A25: 2021-02-03 | B25: 24 | C25: 1 | D25: 1 | E25: 1 | F25: 1 | G25: 2
A26: 2021-02-04 | B26: 25 | C26: 1 | D26: 1 | E26: 1 | F26: 1 | G26: 4
A27: 2021-02-05 | B27: 26 | C27: 1 | D27: 0 | E27: 1 | F27: 1 | G27: 4
A28: 2021-02-08 | B28: 27 | C28: 1 | D28: 0 | E28: 1 | F28: 1 | G28: 2
A29: 2021-02-09 | B29: 28 | C29: 1 | D29: 1 | E29: 1 | F29: 1 | G29: 2
A30: 2021-02-10 | B30: 29 | C30: 1 | D30: 1 | E30: 1 | F30: 1 | G30: 2
A31: 2021-02-11 | B31: 30 | C31: 1 | D31: 1 | E31: 1 | F31: 1 | G31: 4
A32: 2021-02-12 | B32: 31 | C32: 1 | D32: 0 | E32: 1 | F32: 1 | G32: 4
A33: 2021-02-15 | B33: 32 | C33: 1 | D33: 0 | E33: 1 | F33: 1 | G33: 2
A34: 2021-02-16 | B34: 33 | C34: 1 | D34: 1 | E34: 1 | F34: 1 | G34: 2
A35: 2021-02-17 | B35: 34 | C35: 1 | D35: 1 | E35: 1 | F35: 1 | G35: 2
A36: 2021-02-18 | B36: 35 | C36: 1 | D36: 1 | E36: 1 | F36: 1 | G36: 4
A37: 2021-02-19 | B37: 36 | C37: 1 | D37: 0 | E37: 1 | F37: 1 | G37: 4
A38: 2021-02-22 | B38: 37 | C38: 1 | D38: 0 | E38: 1 | F38: 1 | G38: 2
A39: 2021-02-23 | B39: 38 | C39: 1 | D39: 1 | E39: 1 | F39: 1 | G39: 2
A40: 2021-02-24 | B40: 39 | C40: 1 | D40: 1 | E40: 1 | F40: 1 | G40: 2
A41: 2021-02-25 | B41: 40 | C41: 1 | D41: 1 | E41: 1 | F41: 1 | G41: 4
A42: 2021-02-26 | B42: 41 | C42: 1 | D42: 0 | E42: 1 | F42: 1 | G42: 4
A43: 2021-03-01 | B43: 42 | C43: 1 | D43: 0 | E43: 1 | F43: 1 | G43: 2
A44: 2021-03-02 | B44: 43 | C44: 1 | D44: 1 | E44: 1 | F44: 1 | G44: 2
A45: 2021-03-03 | B45: 44 | C45: 1 | D45: 1 | E45: 1 | F45: 1 | G45: 2
A46: 2021-03-04 | B46: 45 | C46: 1 | D46: 1 | E46: 1 | F46: 1 | G46: 4
A47: 2021-03-05 | B47: 46 | C47: 1 | D47: 0 | E47: 1 | F47: 1 | G47: 4
A48: 2021-03-08 | B48: 47 | C48: 1 | D48: 0 | E48: 1 | F48: 1 | G48: 2
A49: 2021-03-09 | B49: 48 | C49: 1 | D49: 1 | E49: 1 | F49: 1 | G49: 2
A50: 2021-03-10 | B50: 49 | C50: 1 | D50: 1 | E50: 1 | F50: 1 | G50: 2
A51: 2021-03-11 | B51: 50 | C51: 1 | D51: 1 | E51: 1 | F51: 1 | G51: 4
A52: 2021-03-12 | B52: 51 | C52: 1 | D52: 0 | E52: 1 | F52: 1 | G52: 4
A53: 2021-03-15 | B53: 52 | C53: 1 | D53: 0 | E53: 1 | F53: 1 | G53: 2
A54: 2021-03-16 | B54: 53 | C54: 1 | D54: 1 | E54: 1 | F54: 1 | G54: 2
A55: 2021-03-17 | B55: 54 | C55: 1 | D55: 1 | E55: 1 | F55: 1 | G55: 2
A56: 2021-03-18 | B56: 55 | C56: 1 | D56: 1 | E56: 1 | F56: 1 | G56: 4
A57: 2021-03-19 | B57: 56 | C57: 1 | D57: 0 | E57: 1 | F57: 1 | G57: 4
A58: 2021-03-22 | B58: 57 | C58: 1 | D58: 0 | E58: 1 | F58: 1 | G58: 2
A59: 2021-03-23 | B59: 58 | C59: 1 | D59: 1 | E59: 1 | F59: 1 | G59: 2
A60: 2021-03-24 | B60: 59 | C60: 1 | D60: 1 | E60: 1 | F60: 1 | G60: 2
A61: 2021-03-25 | B61: 60 | C61: 1 | D61: 1 | E61: 1 | F61: 1 | G61: 4
A62: 2021-03-26 | B62: 61 | C62: 1 | D62: 0 | E62: 1 | F62: 1 | G62: 4
A63: 2021-03-29 | B63: 62 | C63: 1 | D63: 0 | E63: 1 | F63: 1 | G63: 2
A64: 2021-03-30 | B64: 63 | C64: 1 | D64: 1 | E64: 1 | F64: 1 | G64: 2
A65: 2021-03-31 | B65: 64 | C65: 1.6 | D65: 1 | E65: 1 | F65: 1 | G65: 6
A66: 2021-04-01 | B66: 65 | C66: 1.6 | D66: 1 | E66: 1 | F66: 3 | G66: =IF($E66=1,INDIRECT("$A$"&ROW($A66)+MATCH(1,INDIRECT("$E$"&ROW($A66)+1+$F66&":$E$2598"),0)+$F66)-$A66,0) -> 6
A67: 2021-04-02 | B67: =ROW(A67)-1 -> 66 | C67: =1+0.3*MAX(G67-4,0) -> 1 | D67: =IF(ABS(WEEKDAY($A67)-4)<=1,1,0) -> 0 | E67: 0 | F67: =IF($E67=1,MATCH(1,INDIRECT("$E$"&ROW($A67)+1&":$E$2598"),0),0) -> 0 | G67: 0
A68: 2021-04-05 | B68: 67 | C68: 1 | D68: 0 | E68: 0 | F68: 0 | G68: 0
A69: 2021-04-06 | B69: 68 | C69: 1 | D69: 1 | E69: 1 | F69: 1 | G69: 2
A70: 2021-04-07 | B70: 69 | C70: 1 | D70: 1 | E70: 1 | F70: 1 | G70: 2
A71: 2021-04-08 | B71: 70 | C71: 1 | D71: 1 | E71: 1 | F71: 1 | G71: 4
A72: 2021-04-09 | B72: 71 | C72: 1 | D72: 0 | E72: 1 | F72: 1 | G72: 4
A73: 2021-04-12 | B73: 72 | C73: 1 | D73: 0 | E73: 1 | F73: 1 | G73: 2
A74: 2021-04-13 | B74: 73 | C74: 1 | D74: 1 | E74: 1 | F74: 1 | G74: 2
A75: 2021-04-14 | B75: 74 | C75: 1 | D75: 1 | E75: 1 | F75: 1 | G75: 2
A76: 2021-04-15 | B76: 75 | C76: 1 | D76: 1 | E76: 1 | F76: 1 | G76: 4
A77: 2021-04-16 | B77: 76 | C77: 1 | D77: 0 | E77: 1 | F77: 1 | G77: 4
A78: 2021-04-19 | B78: 77 | C78: 1 | D78: 0 | E78: 1 | F78: 1 | G78: 2
A79: 2021-04-20 | B79: 78 | C79: 1 | D79: 1 | E79: 1 | F79: 1 | G79: 2
A80: 2021-04-21 | B80: 79 | C80: 1 | D80: 1 | E80: 1 | F80: 1 | G80: 2
A81: 2021-04-22 | B81: 80 | C81: 1 | D81: 1 | E81: 1 | F81: 1 | G81: 4
A82: 2021-04-23 | B82: 81 | C82: 1 | D82: 0 | E82: 1 | F82: 1 | G82: 4
A83: 2021-04-26 | B83: 82 | C83: 1 | D83: 0 | E83: 1 | F83: 1 | G83: 2
A84: 2021-04-27 | B84: 83 | C84: 1 | D84: 1 | E84: 1 | F84: 1 | G84: 2
A85: 2021-04-28 | B85: 84 | C85: 1 | D85: 1 | E85: 1 | F85: 1 | G85: 2
A86: 2021-04-29 | B86: 85 | C86: 1 | D86: 1 | E86: 1 | F86: 1 | G86: 4
A87: 2021-04-30 | B87: 86 | C87: 1 | D87: 0 | E87: 1 | F87: 1 | G87: 4
A88: 2021-05-03 | B88: 87 | C88: 1 | D88: 0 | E88: 1 | F88: 1 | G88: 2
A89: 2021-05-04 | B89: 88 | C89: 1 | D89: 1 | E89: 1 | F89: 1 | G89: 2
A90: 2021-05-05 | B90: 89 | C90: 1 | D90: 1 | E90: 1 | F90: 1 | G90: 2
A91: 2021-05-06 | B91: 90 | C91: 1 | D91: 1 | E91: 1 | F91: 1 | G91: 4
A92: 2021-05-07 | B92: 91 | C92: 1 | D92: 0 | E92: 1 | F92: 1 | G92: 4
A93: 2021-05-10 | B93: 92 | C93: 1 | D93: 0 | E93: 1 | F93: 1 | G93: 2
A94: 2021-05-11 | B94: 93 | C94: 1 | D94: 1 | E94: 1 | F94: 1 | G94: 2
A95: 2021-05-12 | B95: 94 | C95: 1 | D95: 1 | E95: 1 | F95: 1 | G95: 2
A96: 2021-05-13 | B96: 95 | C96: 1 | D96: 1 | E96: 1 | F96: 1 | G96: 4
A97: 2021-05-14 | B97: 96 | C97: 1 | D97: 0 | E97: 1 | F97: 1 | G97: 4
A98: 2021-05-17 | B98: 97 | C98: 1 | D98: 0 | E98: 1 | F98: 1 | G98: 2
A99: 2021-05-18 | B99: 98 | C99: 1 | D99: 1 | E99: 1 | F99: 1 | G99: 2
A100: 2021-05-19 | B100: 99 | C100: 1 | D100: 1 | E100: 1 | F100: 1 | G100: 2
A101: 2021-05-20 | B101: 100 | C101: 1 | D101: 1 | E101: 1 | F101: 1 | G101: 4
A102: 2021-05-21 | B102: 101 | C102: 1 | D102: 0 | E102: 1 | F102: 1 | G102: 4
A103: 2021-05-24 | B103: 102 | C103: 1 | D103: 0 | E103: 1 | F103: 1 | G103: 2
A104: 2021-05-25 | B104: 103 | C104: 1 | D104: 1 | E104: 1 | F104: 1 | G104: 2
A105: 2021-05-26 | B105: 104 | C105: 1 | D105: 1 | E105: 1 | F105: 1 | G105: 2
A106: 2021-05-27 | B106: 105 | C106: 1 | D106: 1 | E106: 1 | F106: 1 | G106: 4
A107: 2021-05-28 | B107: 106 | C107: 1 | D107: 0 | E107: 1 | F107: 1 | G107: 4
A108: 2021-05-31 | B108: 107 | C108: 1 | D108: 0 | E108: 1 | F108: 1 | G108: 2
A109: 2021-06-01 | B109: 108 | C109: 1 | D109: 1 | E109: 1 | F109: 1 | G109: 2
A110: 2021-06-02 | B110: 109 | C110: 1 | D110: 1 | E110: 1 | F110: 1 | G110: 2
A111: 2021-06-03 | B111: 110 | C111: 1 | D111: 1 | E111: 1 | F111: 1 | G111: 4
A112: 2021-06-04 | B112: 111 | C112: 1 | D112: 0 | E112: 1 | F112: 1 | G112: 4
A113: 2021-06-07 | B113: 112 | C113: 1 | D113: 0 | E113: 1 | F113: 1 | G113: 2
A114: 2021-06-08 | B114: 113 | C114: 1 | D114: 1 | E114: 1 | F114: 1 | G114: 2
A115: 2021-06-09 | B115: 114 | C115: 1 | D115: 1 | E115: 1 | F115: 1 | G115: 2
A116: 2021-06-10 | B116: 115 | C116: 1 | D116: 1 | E116: 1 | F116: 1 | G116: 4
A117: 2021-06-11 | B117: 116 | C117: 1 | D117: 0 | E117: 1 | F117: 1 | G117: 4
A118: 2021-06-14 | B118: 117 | C118: 1 | D118: 0 | E118: 1 | F118: 1 | G118: 2
A119: 2021-06-15 | B119: 118 | C119: 1 | D119: 1 | E119: 1 | F119: 1 | G119: 2
A120: 2021-06-16 | B120: 119 | C120: 1 | D120: 1 | E120: 1 | F120: 1 | G120: 2
A121: 2021-06-17 | B121: 120 | C121: 1 | D121: 1 | E121: 1 | F121: 1 | G121: 4
A122: 2021-06-18 | B122: 121 | C122: 1 | D122: 0 | E122: 1 | F122: 1 | G122: 4
A123: 2021-06-21 | B123: 122 | C123: 1 | D123: 0 | E123: 1 | F123: 1 | G123: 2
A124: 2021-06-22 | B124: 123 | C124: 1 | D124: 1 | E124: 1 | F124: 1 | G124: 2
A125: 2021-06-23 | B125: 124 | C125: 1 | D125: 1 | E125: 1 | F125: 1 | G125: 2
A126: 2021-06-24 | B126: 125 | C126: 1 | D126: 1 | E126: 1 | F126: 1 | G126: 4
A127: 2021-06-25 | B127: 126 | C127: 1 | D127: 0 | E127: 1 | F127: 1 | G127: 4
A128: 2021-06-28 | B128: 127 | C128: 1 | D128: 0 | E128: 1 | F128: 1 | G128: 2
A129: 2021-06-29 | B129: 128 | C129: 1 | D129: 1 | E129: 1 | F129: 1 | G129: 2
A130: 2021-06-30 | B130: 129 | C130: 1 | D130: 1 | E130: 1 | F130: 1 | G130: =IF($E130=1,INDIRECT("$A$"&ROW($A130)+MATCH(1,INDIRECT("$E$"&ROW($A130)+1+$F130&":$E$2598"),0)+$F130)-$A130,0) -> 2
A131: 2021-07-01 | B131: =ROW(A131)-1 -> 130 | C131: =1+0.3*MAX(G131-4,0) -> 1 | D131: =IF(ABS(WEEKDAY($A131)-4)<=1,1,0) -> 1 | E131: 1 | F131: =IF($E131=1,MATCH(1,INDIRECT("$E$"&ROW($A131)+1&":$E$2598"),0),0) -> 1 | G131: 4
A132: 2021-07-02 | B132: 131 | C132: 1 | D132: 0 | E132: 1 | F132: 1 | G132: 4
A133: 2021-07-05 | B133: 132 | C133: 1 | D133: 0 | E133: 1 | F133: 1 | G133: 2
A134: 2021-07-06 | B134: 133 | C134: 1 | D134: 1 | E134: 1 | F134: 1 | G134: 2
A135: 2021-07-07 | B135: 134 | C135: 1 | D135: 1 | E135: 1 | F135: 1 | G135: 2
A136: 2021-07-08 | B136: 135 | C136: 1 | D136: 1 | E136: 1 | F136: 1 | G136: 4
A137: 2021-07-09 | B137: 136 | C137: 1 | D137: 0 | E137: 1 | F137: 1 | G137: 4
A138: 2021-07-12 | B138: 137 | C138: 1 | D138: 0 | E138: 1 | F138: 1 | G138: 2
A139: 2021-07-13 | B139: 138 | C139: 1 | D139: 1 | E139: 1 | F139: 1 | G139: 2
A140: 2021-07-14 | B140: 139 | C140: 1 | D140: 1 | E140: 1 | F140: 1 | G140: 2
A141: 2021-07-15 | B141: 140 | C141: 1 | D141: 1 | E141: 1 | F141: 1 | G141: 4
A142: 2021-07-16 | B142: 141 | C142: 1 | D142: 0 | E142: 1 | F142: 1 | G142: 4
A143: 2021-07-19 | B143: 142 | C143: 1 | D143: 0 | E143: 1 | F143: 1 | G143: 2
A144: 2021-07-20 | B144: 143 | C144: 1 | D144: 1 | E144: 1 | F144: 1 | G144: 2
A145: 2021-07-21 | B145: 144 | C145: 1 | D145: 1 | E145: 1 | F145: 1 | G145: 2
A146: 2021-07-22 | B146: 145 | C146: 1 | D146: 1 | E146: 1 | F146: 1 | G146: 4
A147: 2021-07-23 | B147: 146 | C147: 1 | D147: 0 | E147: 1 | F147: 1 | G147: 4
A148: 2021-07-26 | B148: 147 | C148: 1 | D148: 0 | E148: 1 | F148: 1 | G148: 2
A149: 2021-07-27 | B149: 148 | C149: 1 | D149: 1 | E149: 1 | F149: 1 | G149: 2
A150: 2021-07-28 | B150: 149 | C150: 1 | D150: 1 | E150: 1 | F150: 1 | G150: 2
A151: 2021-07-29 | B151: 150 | C151: 1 | D151: 1 | E151: 1 | F151: 1 | G151: 4
A152: 2021-07-30 | B152: 151 | C152: 1 | D152: 0 | E152: 1 | F152: 1 | G152: 4
A153: 2021-08-02 | B153: 152 | C153: 1 | D153: 0 | E153: 1 | F153: 1 | G153: 2
A154: 2021-08-03 | B154: 153 | C154: 1 | D154: 1 | E154: 1 | F154: 1 | G154: 2
A155: 2021-08-04 | B155: 154 | C155: 1 | D155: 1 | E155: 1 | F155: 1 | G155: 2
A156: 2021-08-05 | B156: 155 | C156: 1 | D156: 1 | E156: 1 | F156: 1 | G156: 4
A157: 2021-08-06 | B157: 156 | C157: 1 | D157: 0 | E157: 1 | F157: 1 | G157: 4
A158: 2021-08-09 | B158: 157 | C158: 1 | D158: 0 | E158: 1 | F158: 1 | G158: 2
A159: 2021-08-10 | B159: 158 | C159: 1 | D159: 1 | E159: 1 | F159: 1 | G159: 2
A160: 2021-08-11 | B160: 159 | C160: 1 | D160: 1 | E160: 1 | F160: 1 | G160: 2
A161: 2021-08-12 | B161: 160 | C161: 1 | D161: 1 | E161: 1 | F161: 1 | G161: 4
A162: 2021-08-13 | B162: 161 | C162: 1 | D162: 0 | E162: 1 | F162: 1 | G162: 4
A163: 2021-08-16 | B163: 162 | C163: 1 | D163: 0 | E163: 1 | F163: 1 | G163: 2
A164: 2021-08-17 | B164: 163 | C164: 1 | D164: 1 | E164: 1 | F164: 1 | G164: 2
A165: 2021-08-18 | B165: 164 | C165: 1 | D165: 1 | E165: 1 | F165: 1 | G165: 2
A166: 2021-08-19 | B166: 165 | C166: 1 | D166: 1 | E166: 1 | F166: 1 | G166: 4
A167: 2021-08-20 | B167: 166 | C167: 1 | D167: 0 | E167: 1 | F167: 1 | G167: 4
A168: 2021-08-23 | B168: 167 | C168: 1 | D168: 0 | E168: 1 | F168: 1 | G168: 2
A169: 2021-08-24 | B169: 168 | C169: 1 | D169: 1 | E169: 1 | F169: 1 | G169: 2
A170: 2021-08-25 | B170: 169 | C170: 1 | D170: 1 | E170: 1 | F170: 1 | G170: 2
A171: 2021-08-26 | B171: 170 | C171: 1 | D171: 1 | E171: 1 | F171: 1 | G171: 4
A172: 2021-08-27 | B172: 171 | C172: 1 | D172: 0 | E172: 1 | F172: 1 | G172: 4
A173: 2021-08-30 | B173: 172 | C173: 1 | D173: 0 | E173: 1 | F173: 1 | G173: 2
A174: 2021-08-31 | B174: 173 | C174: 1 | D174: 1 | E174: 1 | F174: 1 | G174: 2
A175: 2021-09-01 | B175: 174 | C175: 1 | D175: 1 | E175: 1 | F175: 1 | G175: 2
A176: 2021-09-02 | B176: 175 | C176: 1 | D176: 1 | E176: 1 | F176: 1 | G176: 4
A177: 2021-09-03 | B177: 176 | C177: 1 | D177: 0 | E177: 1 | F177: 1 | G177: 4
A178: 2021-09-06 | B178: 177 | C178: 1 | D178: 0 | E178: 1 | F178: 1 | G178: 2
A179: 2021-09-07 | B179: 178 | C179: 1 | D179: 1 | E179: 1 | F179: 1 | G179: 2
A180: 2021-09-08 | B180: 179 | C180: 1 | D180: 1 | E180: 1 | F180: 1 | G180: 2
A181: 2021-09-09 | B181: 180 | C181: 1 | D181: 1 | E181: 1 | F181: 1 | G181: 4
A182: 2021-09-10 | B182: 181 | C182: 1 | D182: 0 | E182: 1 | F182: 1 | G182: 4
A183: 2021-09-13 | B183: 182 | C183: 1 | D183: 0 | E183: 1 | F183: 1 | G183: 2
A184: 2021-09-14 | B184: 183 | C184: 1 | D184: 1 | E184: 1 | F184: 1 | G184: 2
A185: 2021-09-15 | B185: 184 | C185: 1 | D185: 1 | E185: 1 | F185: 1 | G185: 2
A186: 2021-09-16 | B186: 185 | C186: 1 | D186: 1 | E186: 1 | F186: 1 | G186: 4
A187: 2021-09-17 | B187: 186 | C187: 1 | D187: 0 | E187: 1 | F187: 1 | G187: 4
A188: 2021-09-20 | B188: 187 | C188: 1 | D188: 0 | E188: 1 | F188: 1 | G188: 2
A189: 2021-09-21 | B189: 188 | C189: 1 | D189: 1 | E189: 1 | F189: 1 | G189: 2
A190: 2021-09-22 | B190: 189 | C190: 1 | D190: 1 | E190: 1 | F190: 1 | G190: 2
A191: 2021-09-23 | B191: 190 | C191: 1 | D191: 1 | E191: 1 | F191: 1 | G191: 4
A192: 2021-09-24 | B192: 191 | C192: 1 | D192: 0 | E192: 1 | F192: 1 | G192: 4
A193: 2021-09-27 | B193: 192 | C193: 1 | D193: 0 | E193: 1 | F193: 1 | G193: 2
A194: 2021-09-28 | B194: 193 | C194: 1 | D194: 1 | E194: 1 | F194: 1 | G194: =IF($E194=1,INDIRECT("$A$"&ROW($A194)+MATCH(1,INDIRECT("$E$"&ROW($A194)+1+$F194&":$E$2598"),0)+$F194)-$A194,0) -> 2
A195: 2021-09-29 | B195: =ROW(A195)-1 -> 194 | C195: =1+0.3*MAX(G195-4,0) -> 1 | D195: =IF(ABS(WEEKDAY($A195)-4)<=1,1,0) -> 1 | E195: 1 | F195: =IF($E195=1,MATCH(1,INDIRECT("$E$"&ROW($A195)+1&":$E$2598"),0),0) -> 1 | G195: 2
A196: 2021-09-30 | B196: 195 | C196: 1 | D196: 1 | E196: 1 | F196: 1 | G196: 4
A197: 2021-10-01 | B197: 196 | C197: 1 | D197: 0 | E197: 1 | F197: 1 | G197: 4
A198: 2021-10-04 | B198: 197 | C198: 1 | D198: 0 | E198: 1 | F198: 1 | G198: 2
A199: 2021-10-05 | B199: 198 | C199: 1 | D199: 1 | E199: 1 | F199: 1 | G199: 2
A200: 2021-10-06 | B200: 199 | C200: 1 | D200: 1 | E200: 1 | F200: 1 | G200: 2
... 1627 more rows

Sheet Disclaimer
D5: Disclaimer
D6: last update: 2025-03-06
D8: This tool is only a service for recalculating the Initial Margin Spot Market. Although the tool was constructed with greatest diligence, errors, rounding errors and therefore deviations from the productive process cannot be excluded. In cases of doubt, the calculated value of the IMSM programm shall prevail. The disclaimer at http://www.ecc.de/ecc-en/extras/disclaimer shall apply to the use of this tool as well.
